date,department,beneficiary,amount,summary of purpose,category,Transaction number,SAP vendor number
18.12.2023,Collection Fund,GREATER LONDON AUTHORITY,"9,289,051.00",NNDR ACCOUNT - GLA SHARE,EXTERNAL AGENCIES AND BODIES,5902613552,1000015827
29.12.2023,Collection Fund,GREATER LONDON AUTHORITY,"4,752,146.41",GLA PRECEPT,LEVIES,5902615267,1000015827
21.12.2023,Housing,HILL PARTNERSHIP LTD,"3,375,808.25",CAPITAL PS (HRA),CONSTRUCTION MAIN CONTRACT -CERTIFICATED,2103796181,3000002185
19.12.2023,Suspense,HM REVENUE & CUSTOMS,"2,970,314.41",SUSPENSE ACCOUNT (COMPANY CODE 1000),INLAND REVENUE,2103787774,1016231
02.12.2023,Housing,BY DEVELOPMENT LTD,"2,446,292.76",CAPITAL PS (HRA),CONSTRUCTION MAIN CONTRACT -CERTIFICATED,2103788944,3000002255
19.12.2023,Suspense,HM REVENUE & CUSTOMS,"2,444,469.78",SUSPENSE ACCOUNT (COMPANY CODE 1000),INLAND REVENUE,2103787773,1016231
04.12.2023,Environment Neighbourhoods and Growth,VEOLIA ES SOUTHWARK LTD,"2,400,425.48",WASTE PFI,PFI/PPP PAYMENTS,5902611142,1000056979
24.12.2023,Housing,BY DEVELOPMENT LTD,"2,342,487.77",CAPITAL PS (HRA),CONSTRUCTION MAIN CONTRACT -CERTIFICATED,2103798699,3000002255
27.12.2023,Corporate,ZURICH MUNICIPAL,"1,967,418.14",PROPERTY RELATED INSURANCE,PROPERTY INSURANCE COSTS,5902614817,11011168
20.12.2023,Finance,TRANSPORT FOR LONDON - TFL CIL,"1,820,412.89",S106 & CIL ADMINISTRATION,LEVIES,5902614121,1000090435
17.12.2023,Housing,HILL PARTNERSHIP LTD,"1,725,914.72",CAPITAL PS (HRA),CONSTRUCTION MAIN CONTRACT -CERTIFICATED,2103795016,3000002185
11.12.2023,Housing,EQUANS REGENERATION LTD,"1,560,730.00",CAPITAL PS (HRA),CONSTRUCTION MAIN CONTRACT -CERTIFICATED,2103794517,3000002035
18.12.2023,Environment Neighbourhoods and Growth,BL CW HOLDINGS LTD,"1,558,081.11",CAPITAL PS (REGEN),CONSTRUCTION FEES  - EXTERNAL,5902613652,1000086680
14.12.2023,Children and Adults,TEACHERS' PENSIONS,"1,544,635.07",TEACHERS PENSION MONTHLY RETURN,PAYROLL CREDITORS - TEACHERS PENSIONS & AVCS,5902613218,1000015184
12.12.2023,Housing,KENT COUNTY COUNCIL - LASER,"1,444,471.26",HEATING ACCOUNT,GAS,5902612761,1000012926
08.12.2023,Environment Neighbourhoods and Growth,DURKAN LTD,"1,386,934.19",CAPITAL PS (REGEN),LAND & BUILDINGS ACQUISITION,2103794509,3000000960
18.12.2023,Housing,A & E ELKINS LTD,"1,287,378.61",CAPITAL PS (HRA),CONSTRUCTION MAIN CONTRACT -CERTIFICATED,2103800298,4012501
23.12.2023,Housing,A & E ELKINS LTD,"1,210,851.78",CAPITAL PS (HRA),CONSTRUCTION,2103800297,4012501
27.12.2023,Housing,SMITH & BYFORD LTD,"997,651.57",SMITH AND BYFORD,I-WORLD CONTRACTORS HOLDING ACCOUNT,2103803911,3000000520
22.12.2023,Governance and Assurance,MATRIX SCM LIMITED,"932,839.16",WEEKLY PAYMENTS,AGENCY STAFF,5902614474,1000089740
18.12.2023,Housing,A & E ELKINS LTD,"920,232.65",CAPITAL PS (HRA),CONSTRUCTION MAIN CONTRACT -CERTIFICATED,2103800299,4012501
10.12.2023,Finance,LONDON BOROUGH OF BRENT,"904,813.00",SHARED SERVICES,COMMS & COMPUTING CONTRACT CHARGES,5902611974,1000064734
08.12.2023,Governance and Assurance,MATRIX SCM LIMITED,"901,016.91",WEEKLY PAYMENTS,AGENCY STAFF,5902612126,1000089740
13.12.2023,Collection Fund,GREATER LONDON AUTHORITY,"823,053.00",GLA CROSSRAIL BUSINESS RATE SUPPLEMENT,LEVIES,5902612888,1000015827
15.12.2023,Governance and Assurance,MATRIX SCM LIMITED,"820,140.13",WEEKLY PAYMENTS,AGENCY STAFF,5902613354,1000089740
29.12.2023,Governance and Assurance,MATRIX SCM LIMITED,"773,868.68",WEEKLY PAYMENTS,AGENCY STAFF,5902615281,1000089740
28.12.2023,Finance,LONDON BOROUGH OF BRENT,"761,128.00",SHARED SERVICES,COMMS & COMPUTING CONTRACT CHARGES,5902614448,1000064734
12.12.2023,Children and Adults,HATS GROUP LTD,"750,871.00",SCH TRANS � TRAVEL,EXTERNAL AGENCIES AND BODIES,5902612789,1000042743
19.12.2023,Housing,BUILDTRUST LTD,"742,981.16",BUILD TRUST,I-WORLD CONTRACTORS HOLDING ACCOUNT,2103800314,3000002010
29.12.2023,Housing,A & E ELKINS LTD,"733,940.09",CAPITAL PS (HRA),CONSTRUCTION MAIN CONTRACT -CERTIFICATED,2103803050,4012501
22.12.2023,Housing,OCO LIMITED,"664,602.70",PAYMENTS CONTROL ACCOUNT - OCO,I-WORLD CONTRACTORS HOLDING ACCOUNT,5902614547,1006066
18.12.2023,Collection Fund,MINISTRY OF HOUSING COMMUNITIES & LOCAL GOVERNMENT,"619,186.00",NNDR CLG SHARE,EXTERNAL AGENCIES AND BODIES,5902613555,1000081809
12.12.2023,Children and Adults,THE ST THOMAS THE APOSTLE COLLEGE,"601,029.00",THE ST THOMAS THE APOSTLE COLLEGE,SCHOOLS CAPITATION,5902612618,5001000074
14.12.2023,Housing,GLENMAN CORPORATION LTD,"563,569.98",CAPITAL PS (HRA),CONSTRUCTION MAIN CONTRACT -CERTIFICATED,2103796102,3000002230
12.12.2023,Housing,SALTASH ENTERPRISES LTD,"514,475.13",CAPITAL PS (HRA),CONSTRUCTION MAIN CONTRACT -CERTIFICATED,2103794992,4013605
12.12.2023,Children and Adults,ST SAVIOURS & ST OLAVES SCHOOL,"500,000.00",ST SAVIOUR & OLAVE'S CE,SCHOOLS CAPITATION,5902612639,5001000084
13.12.2023,Environment Neighbourhoods and Growth,APCOA PARKING (UK) LTD,"494,745.35",PARKING OVERHEADS,OTHER CONTRACTORS,5902612820,1718645
11.12.2023,Housing,GUILDMORE LTD,"393,099.78",CAPITAL PS (HRA),CONSTRUCTION MAIN CONTRACT -CERTIFICATED,2103794514,3000002150
10.12.2023,Children and Adults,CHANGE GROW LIVE SERVICES LTD,"375,015.41",ADULT SM SERVICE,OTHER CONTRACTORS,5902609211,1000082721
24.12.2023,Governance and Assurance,ATALIAN SERVEST LTD,"372,522.36",FM SERVICES BY INTERSERVE,INTEGRATED FACILITIES MANAGEMENT CONTRACT,5902614131,1000088775
21.12.2023,Environment Neighbourhoods and Growth,GUILDMORE LTD,"363,860.86",CAPITAL PS (REGEN),CONSTRUCTION MAIN CONTRACT -CERTIFICATED,2103798275,3000002150
14.12.2023,Housing,SPOKEMEAD MAINTENANCE LTD,"355,687.03",PAYMENTS CONTROL ACCOUNT - SPOKEMEAD,I-WORLD CONTRACTORS HOLDING ACCOUNT,5902611564,1000059211
28.12.2023,Housing,ARJ CONSTRUCTION LTD,"325,671.96",CAPITAL PS (HRA),CONSTRUCTION MAIN CONTRACT,2103801974,3000002232
13.12.2023,Children and Adults,KINTORE WAY CHILDRENS CENTRE,"325,000.00",KINTORE WAY CHILDRENS CENTRE,EARLY YEARS - 3 AND 4 YEAR OLDS,2103795976,5001000047
15.12.2023,Environment Neighbourhoods and Growth,GUILDMORE LTD,"303,293.60",CAPITAL PS (REGEN),CONSTRUCTION MAIN CONTRACT -CERTIFICATED,2103794991,3000002150
20.12.2023,Housing,STACK LONDON LTD,"297,404.37",CAPITAL PS (HRA),CONSTRUCTION MAIN CONTRACT -CERTIFICATED,2103800703,3000002216
05.12.2023,Housing,BUILDTRUST LTD,"289,919.13",BUILD TRUST,I-WORLD CONTRACTORS HOLDING ACCOUNT,2103793146,3000002010
08.12.2023,Environment Neighbourhoods and Growth,DURKAN LTD,"278,988.89",CAPITAL PS (REGEN),CONSTRUCTION MAIN CONTRACT -CERTIFICATED,2103794509,3000000960
13.12.2023,Housing,NIBLOCK (BUILDERS) LTD,"268,624.34",CAPITAL PS (HRA),CONSTRUCTION,2103795021,3000000235
11.12.2023,DSO,BCS (ELECTRICAL & BUILDING) LTD,"268,477.73",SR - VOIDS TEAM,OTHER CONTRACTORS,2103794519,3000001471
13.12.2023,Environment Neighbourhoods and Growth,QUADRON SERVICES LIMITED,"268,277.79",CLIENT SERV(GRNS MAIN),OTHER CONTRACTORS,5902612933,1000066528
25.12.2023,Environment Neighbourhoods and Growth,QUADRON SERVICES LIMITED,"268,274.04",CLIENT SERV(GRNS MAIN),OTHER CONTRACTORS,5902614179,1000066528
12.12.2023,Environment Neighbourhoods and Growth,GLENMAN CORPORATION LTD,"262,357.56",CAPITAL PS (REGEN),CONSTRUCTION MAIN CONTRACT -CERTIFICATED,2103794988,3000002230
12.12.2023,Children and Adults,PHOENIX PRIMARY SCHOOL,"261,582.00",PHOENIX PRIMARY SCHOOL,SCHOOLS CAPITATION,5902612513,5001000032
05.12.2023,Housing,BUILDTRUST LTD,"260,977.62",BUILD TRUST,I-WORLD CONTRACTORS HOLDING ACCOUNT,2103793146,3000002010
14.12.2023,Housing,PRB ESTATES LTD,"260,343.04",PRBE,I-WORLD CONTRACTORS HOLDING ACCOUNT,2103796173,3000001691
13.12.2023,Environment Neighbourhoods and Growth,GLENMAN CORPORATION LTD,"251,719.62",CAPITAL PS (REGEN),CONSTRUCTION MAIN CONTRACT -CERTIFICATED,2103795003,3000002230
06.12.2023,Housing,BCS (ELECTRICAL & BUILDING SERVICES LTD),"251,434.70",BCS,I-WORLD CONTRACTORS HOLDING ACCOUNT,5902611575,1000062321
05.12.2023,Corporate,4 FUTURES PHASE 1 LIMITED,"250,642.05",ONGOING SCHOOLS PFI COSTS,PFI/PPP PAYMENTS,5902611322,1000061400
04.12.2023,Housing,KENT COUNTY COUNCIL - LASER,"250,519.93",HEATING ACCOUNT,ELECTRICITY,5902611133,1000012926
22.12.2023,DSO,ARMINA LTD,"247,821.77",SR TEMPORARY ACCOMMODATION DD,OTHER CONTRACTORS,2103802843,3000002121
13.12.2023,Housing,ARJ CONSTRUCTION LTD,"239,362.03",CAPITAL PS (HRA),CONSTRUCTION MAIN CONTRACT,2103795017,3000002232
11.12.2023,Corporate,4 FUTURES PHASE 2 LTD,"235,804.20",ONGOING SCHOOLS PFI COSTS,PFI/PPP PAYMENTS,5902611323,1000068567
11.12.2023,Corporate,4 FUTURES PHASE 2 LTD,"235,804.20",ONGOING SCHOOLS PFI COSTS,PFI/PPP PAYMENTS,5902611323,1000068567
12.12.2023,Children and Adults,BESSEMER GRANGE PRIMARY SCHOOL,"235,656.00",BESSEMER GRANGE PRIMARY SCHOOL,SCHOOLS CAPITATION,5902612455,5001000009
12.12.2023,Children and Adults,GOODRICH PRIMARY SCHOOL,"228,097.00",GOODRICH PRIMARY SCHOOL,SCHOOLS CAPITATION,5902612500,5001000028
05.12.2023,Environment Neighbourhoods and Growth,F M CONWAY LTD,"226,953.13",CAPITAL PS (LEISURE),CONSTRUCTION,2103793143,4001384
12.12.2023,Children and Adults,JOHN RUSKIN PRIMARY SCHOOL,"221,989.00",JOHN RUSKIN PRIMARY SCHOOL,SCHOOLS CAPITATION,5902612533,5001000040
14.12.2023,Housing,PRB ESTATES LTD,"219,303.62",PRBE,I-WORLD CONTRACTORS HOLDING ACCOUNT,2103796174,3000001691
27.12.2023,Housing,VEOLIA ES (UK)LTD,"215,962.49",HEATING ACCOUNT,GAS,5902614806,1824835
12.12.2023,Children and Adults,CRAWFORD PRIMARY SCHOOL,"209,469.00",CRAWFORD PRIMARY SCHOOL,SCHOOLS CAPITATION,5902612494,5001000024
21.12.2023,Housing,SPOKEMEAD MAINTENANCE LTD,"207,034.06",PAYMENTS CONTROL ACCOUNT - SPOKEMEAD,I-WORLD CONTRACTORS HOLDING ACCOUNT,5902613599,1000059211
11.12.2023,Housing,TKC HOUSING LIMITED,"206,911.73",PSL PLACEMENTS,EXTERNAL AGENCIES AND BODIES,5902611973,1000088199
12.12.2023,Children and Adults,MICHAEL FARADAY PRIMARY SCHOOL,"206,283.00",MICHAEL FARADAY PRIMARY SCHOOL,SCHOOLS CAPITATION,5902612550,5001000048
12.12.2023,Children and Adults,ST JAMES CE PRIMARY SCHOOL,"206,053.00",ST JAMES' CE PRIMARY SCHOOL,SCHOOLS CAPITATION,5902612607,5001000070
23.12.2023,Environment Neighbourhoods and Growth,BOUYGUES (UK) LTD,"204,871.24",CAPITAL PS (REGEN),CONSTRUCTION MAIN CONTRACT -CERTIFICATED,2103800702,3000002179
11.12.2023,Housing,VEOLIA ES (UK)LTD,"204,567.92",HEATING ACCOUNT,GAS,5902612266,1824835
12.12.2023,Children and Adults,ALBION PRIMARY SCHOOL,"204,446.00",ALBION PRIMARY SCHOOL,SCHOOLS CAPITATION,5902612441,5001000000
12.12.2023,Children and Adults,DULWICH WOOD PRIMARY SCHOOL,"204,089.00",DULWICH WOOD PRIMARY SCHOOL,SCHOOLS CAPITATION,5902612542,5001000042
16.12.2023,Corporate,GALLAGHER BASSETT INTERNATIONAL LTD,"200,000.00",LIABILITY RELATED INSURANCE,COMPENSATION,5902612407,1000005701
12.12.2023,Children and Adults,SOUTHWARK PARK PRIMARY SCHOOL,"199,293.00",SOUTHWARK PARK PRIMARY SCHOOL,SCHOOLS CAPITATION,5902612589,5001000062
12.12.2023,Children and Adults,HEBER PRIMARY SCHOOL,"197,113.00",HEBER PRIMARY SCHOOL,SCHOOLS CAPITATION,5902612521,5001000035
04.12.2023,DSO,ARMINA LTD,"196,472.95",SR TEMPORARY ACCOMMODATION DD,OTHER CONTRACTORS,2103792633,3000002121
21.12.2023,Environment Neighbourhoods and Growth,KENT COUNTY COUNCIL - LASER,"195,794.07",STREET LIGHTING REACTIVE,ELECTRICITY,5902614421,1000012926
12.12.2023,Children and Adults,ST ANTHONYS RC SCHOOL,"193,935.00",ST ANTHONY'S CATHOLIC PRIMARY SCHOOL,SCHOOLS CAPITATION,5902612593,5001000064
21.12.2023,Housing,WILLOW ESTATE AGENTS (LONDON) LTD,"190,722.55",NIGHTLY TA (NSC),EXTERNAL AGENCIES AND BODIES,5902614282,1000060607
22.12.2023,DSO,BCS (ELECTRICAL & BUILDING) LTD,"188,727.35",SR - VOIDS TEAM,OTHER CONTRACTORS,2103802842,3000001471
12.12.2023,Children and Adults,ALFRED SALTER PRIMARY SCHOOL,"187,229.00",ALFRED SALTER PRIMARY SCHOOL,SCHOOLS CAPITATION,5902612445,5001000005
22.12.2023,DSO,CRATUS BUILDING SERVICES LIMITED,"186,647.60",SR - VOIDS TEAM,OTHER CONTRACTORS,2103802841,3000001055
14.12.2023,Housing,GLENMAN CORPORATION LTD,"185,718.68",CAPITAL PS (HRA),CONSTRUCTION MAIN CONTRACT -CERTIFICATED,2103796103,3000002230
12.12.2023,Children and Adults,BRUNSWICK PARK PRIMARY SCHOOL,"185,605.00",BRUNSWICK PARK PRIMARY SCHOOL,SCHOOLS CAPITATION,5902612463,5001000013
13.12.2023,Children and Adults,GROUNDWORK LONDON,"185,308.00",THE NEST 255 RYELANE,EXTERNAL AGENCIES AND BODIES,5902612839,1897585
13.12.2023,Housing,BRIDGEWATER ROOFING CONTRACTORS LTD,"185,041.60",BRC,I-WORLD CONTRACTORS HOLDING ACCOUNT,2103795023,3000001482
12.12.2023,Children and Adults,HATS GROUP LTD,"184,898.45",SCH TRANS � TRAVEL,EXTERNAL AGENCIES AND BODIES,5902612784,1000042743
21.12.2023,Housing,FINEFAIR LTD,"184,869.53",PSL PLACEMENTS,EXTERNAL AGENCIES AND BODIES,5902614262,1000075570
21.12.2023,Children and Adults,THE SALVATION ARMY,"183,202.51",SEMI-IND CONTRACTS,EXTERNAL AGENCIES AND BODIES,5902614400,1000016253
12.12.2023,Children and Adults,CAMELOT PRIMARY SCHOOL,"179,542.00",CAMELOT PRIMARY SCHOOL,SCHOOLS CAPITATION,5902612469,5001000014
12.12.2023,Children and Adults,OLIVER GOLDSMITH PRIMARY SCHOOL,"177,788.00",OLIVER GOLDSMITH PRIMARY SCHOOL,SCHOOLS CAPITATION,5902612555,5001000051
12.12.2023,Children and Adults,HIGHSHORE SCHOOL,"175,500.00",HIGHSHORE,HIGH NEEDS - TOP UP FUNDING,5902612547,5001000046
12.12.2023,Children and Adults,ST JOHNS & ST CLEMENTS CE SCHOOL,"175,491.00",ST JOHN'S & ST CLEMENT'S CE PRIMARY SCHO,SCHOOLS CAPITATION,5902612614,5001000073
14.12.2023,Housing,A & E ELKINS LTD,"174,574.81",A&E ELKINS,I-WORLD CONTRACTORS HOLDING ACCOUNT,2103796099,4012501
19.12.2023,Environment Neighbourhoods and Growth,F M CONWAY LTD,"174,117.58",CAPITAL PS (LEISURE),CONSTR'N SUB CONTRACT - NON CERTIFICATED,2103800320,4001384
28.12.2023,Children and Adults,STANDAGE & CO LTD,"173,581.25",CAPITAL PS (SOC SERV),CONSTRUCTION MAIN CONTRACT -CERTIFICATED,2103803124,4002817
13.12.2023,Children and Adults,HATS GROUP LTD,"173,251.72",SCH TRANS � TRAVEL,CAB FARES,5902612948,1000042743
12.12.2023,Children and Adults,KEYWORTH PRIMARY SCHOOL,"170,721.00",KEYWORTH PRIMARY SCHOOL,SCHOOLS CAPITATION,5902612539,5001000041
12.12.2023,Children and Adults,CHERRY GARDEN SCHOOL,"169,333.00",CHERRY GARDEN PRIMARY SCHOOL,HIGH NEEDS - TOP UP FUNDING,5902612486,5001000020
12.12.2023,Children and Adults,GRANGE PRIMARY SCHOOL,"168,700.00",GRANGE PRIMARY SCHOOL,SCHOOLS CAPITATION,5902612503,5001000029
12.12.2023,Children and Adults,ENGLISH MARTYRS RC PRIMARY SCHOOL,"168,613.00",ENGLISH MARTYRS RC PRIMARY SCHOOL,SCHOOLS CAPITATION,5902612507,5001000030
17.12.2023,Housing,COLEMAN & COMPANY LTD,"167,777.83",CAPITAL PS (HRA),CONSTRUCTION SITE COSTS,2103795022,3000002278
15.12.2023,Environment Neighbourhoods and Growth,GUILDMORE LTD,"167,631.65",CAPITAL PS (REGEN),CONSTRUCTION MAIN CONTRACT -CERTIFICATED,2103794991,3000002150
15.12.2023,Housing,SPOKEMEAD MAINTENANCE LTD,"165,508.35",PAYMENTS CONTROL ACCOUNT - SPOKEMEAD,I-WORLD CONTRACTORS HOLDING ACCOUNT,5902612989,1000059211
18.12.2023,Housing,A & E ELKINS LTD,"165,506.55",A&E ELKINS,I-WORLD CONTRACTORS HOLDING ACCOUNT,2103798703,4012501
27.12.2023,Housing,LETTING INTERNATIONAL LTD,"161,810.00",NIGHTLY TA (NSC),EXTERNAL AGENCIES AND BODIES,5902614715,1000070102
04.12.2023,Housing,OCO LIMITED,"161,372.83",PAYMENTS CONTROL ACCOUNT - OCO,I-WORLD CONTRACTORS HOLDING ACCOUNT,5902611102,1006066
21.12.2023,Environment Neighbourhoods and Growth,KENT COUNTY COUNCIL - LASER,"161,168.33",STREET LIGHTING REACTIVE,ELECTRICITY,5902614381,1000012926
08.12.2023,Environment Neighbourhoods and Growth,THE DULWICH ESTATE,"160,781.25",ACCOMMODATION,RENTS,2103794461,3000036
19.12.2023,Housing,BRIDGEWATER ROOFING CONTRACTORS LTD,"159,310.29",BRC,I-WORLD CONTRACTORS HOLDING ACCOUNT,2103800319,3000001482
21.12.2023,Environment Neighbourhoods and Growth,KENT COUNTY COUNCIL - LASER,"155,933.86",STREET LIGHTING REACTIVE,ELECTRICITY,5902614383,1000012926
20.12.2023,Children and Adults,NHS SOUTH EAST LONDON CCG,"154,091.72",S75 SUPHSG SCH SEL ICB,EXTERNAL AGENCIES AND BODIES,5902614136,1000085592
13.12.2023,Housing,EQUANS REGENERATION (APOLLO) LTD,"153,890.04",CAPITAL PS (HRA),CONSTRUCTION MAIN CONTRACT -CERTIFICATED,2103795012,4000449
04.12.2023,DSO,CRATUS BUILDING SERVICES LIMITED,"153,810.09",SR - VOIDS TEAM,OTHER CONTRACTORS,2103792599,3000001055
12.12.2023,Children and Adults,TUKE SCHOOL,"152,750.00",TUKE SCHOOL,HIGH NEEDS - TOP UP FUNDING,5902612657,5001000097
29.12.2023,Corporate,GREATER LONDON AUTHORITY,"152,354.90",LONDON PENSION FUND,LEVIES,5902615266,1000015827
21.12.2023,Housing,ZFA ACCOMMODATION LTD,"151,041.53",PSL PLACEMENTS,EXTERNAL AGENCIES AND BODIES,5902614358,1000082620
18.12.2023,Housing,PRB ESTATES LTD,"149,136.92",PRBE,I-WORLD CONTRACTORS HOLDING ACCOUNT,2103798696,3000001691
12.12.2023,Children and Adults,ST FRANCIS'S RC PRIMARY SCHOOL,"148,391.00",ST FRANCIS RC PRIMARY SCHOOL,SCHOOLS CAPITATION,5902612597,5001000067
12.12.2023,Children and Adults,THE ST THOMAS THE APOSTLE COLLEGE,"147,515.00",YPLA SCHL SIXTH FORM,SCHOOLS CAPITATION,5902612619,5001000074
21.12.2023,Environment Neighbourhoods and Growth,KENT COUNTY COUNCIL - LASER,"146,627.36",STREET LIGHTING REACTIVE,ELECTRICITY,5902614377,1000012926
16.12.2023,Environment Neighbourhoods and Growth,F M CONWAY LTD,"145,463.87",HIGHWAY MAINTENANCE OVERHEADS,HIGHWAYS TERM CONTRACT,2103794990,4001384
03.12.2023,Governance and Assurance,ATALIAN SERVEST LTD,"144,843.99",FM SERVICES BY INTERSERVE,BUILDING R&M,5902610834,1000088775
06.12.2023,Children and Adults,LEWISHAM AND GREENWICH NHS TRUST,"143,318.70",SEXUAL HEALTH - STI,MEDICAL / HEALTH & SAFETY SERVICES,5902611655,1000076183
04.12.2023,Housing,SMITH & BYFORD LTD,"140,141.00",SMITH AND BYFORD,I-WORLD CONTRACTORS HOLDING ACCOUNT,5902611103,11212119
27.12.2023,Housing,HIGGINS PARTNERSHIPS,"139,802.05",CAPITAL PS (HRA),CONSTRUCTION,2103803054,4000859
30.12.2023,Finance,KPMG LLP,"138,971.25",EXTERNAL AUDIT CORE FEES,PROFESSIONAL FEES,5902615326,1000080537
21.12.2023,Suspense,LONDON MUTUAL CREDIT UNION,"135,510.00",SUSPENSE ACCOUNT (COMPANY CODE 1000),PAYROLL - 3RD PARTY DEDUCTIONS,2103802103,1000015860
12.12.2023,Children and Adults,RYE OAK PRIMARY SCHOOL,"135,089.00",RYE OAK  DFES,SCHOOLS CAPITATION,5902612577,5001000059
21.12.2023,Environment Neighbourhoods and Growth,KENT COUNTY COUNCIL - LASER,"134,970.42",STREET LIGHTING REACTIVE,ELECTRICITY,5902614375,1000012926
12.12.2023,Children and Adults,BETHLEM & MAUDSLEY HOSPITAL SCHOOL,"130,340.00",MAUDSLEY & BETHLEM,HIGH NEEDS - TOP UP FUNDING,5902612459,5001000010
12.12.2023,DSO,PROPERTY FACILITIES GROUP PLC,"129,980.92",SR COMMUNAL - DELIVERY TEAM,OTHER CONTRACTORS,2103795001,3000001420
12.12.2023,Children and Adults,ILDERTON PRIMARY SCHOOL,"129,347.00",ILDERTON PRIMARY SCHOOL,SCHOOLS CAPITATION,5902612526,5001000037
14.12.2023,Housing,SPOKEMEAD MAINTENANCE LTD,"128,969.34",PAYMENTS CONTROL ACCOUNT - SPOKEMEAD,I-WORLD CONTRACTORS HOLDING ACCOUNT,5902611563,1000059211
12.12.2023,Children and Adults,DULWICH VILLAGE CE INFANTS SCHOOL,"128,946.00",DULWICH VILLAGE CE INFANTS' SCHOOL,SCHOOLS CAPITATION,5902612497,5001000027
22.12.2023,Finance,COVERED MARKETS LTD,"128,750.00",SANDGATE ST INDUSTRIAL ESTATE,RENTS,2103802963,3000134
21.12.2023,Environment Neighbourhoods and Growth,KENT COUNTY COUNCIL - LASER,"128,109.71",STREET LIGHTING REACTIVE,ELECTRICITY,5902614407,1000012926
12.12.2023,Children and Adults,HIGHSHORE SCHOOL,"127,500.00",HIGHSHORE,HIGH NEEDS - BASE FUNDING,5902612546,5001000046
13.12.2023,Children and Adults,CITY OF LONDON CORPORATION,"127,480.91",SEXUAL HEALTH - STI,MEDICAL / HEALTH & SAFETY SERVICES,5902612988,1000052061
21.12.2023,Environment Neighbourhoods and Growth,KENT COUNTY COUNCIL - LASER,"126,706.75",STREET LIGHTING REACTIVE,ELECTRICITY,5902614385,1000012926
01.12.2023,Housing,BUILDING ASSOCIATES LTD,"125,834.49",CAPITAL PS (HRA),CONSTRUCTION MAIN CONTRACT,2103788830,3000002218
25.12.2023,Housing,BUILDING ASSOCIATES LTD,"125,091.03",CAPITAL PS (HRA),CONSTRUCTION MAIN CONTRACT,2103802847,3000002218
11.12.2023,Environment Neighbourhoods and Growth,CENTRAL BUILDERS & SCAFFOLDING SERVICES LTD,"125,000.00",CAMBERWELL LEISURE CENTRE,BUILDING R&M,2103793148,3000002247
12.12.2023,Children and Adults,HAYMERLE SCHOOL,"124,417.00",HAYMERLE PRIMARY SCHOOL,HIGH NEEDS - TOP UP FUNDING,5902612545,5001000045
12.12.2023,Children and Adults,ST JOSEPHS RC JUNIOR  SCHOOL,"123,142.00",ST JOSEPHS RC JUNIOR(5203) SCHOOL,SCHOOLS CAPITATION,5902612477,5001000017
21.12.2023,Environment Neighbourhoods and Growth,KENT COUNTY COUNCIL - LASER,"122,688.97",STREET LIGHTING REACTIVE,ELECTRICITY,5902614415,1000012926
18.12.2023,Housing,STAR PEOPLE LTD,"122,653.00",NIGHTLY TA (NSC),EXTERNAL AGENCIES AND BODIES,5902613491,1000088790
21.12.2023,Environment Neighbourhoods and Growth,KENT COUNTY COUNCIL - LASER,"121,390.47",STREET LIGHTING REACTIVE,ELECTRICITY,5902614389,1000012926
04.12.2023,DSO,SANDERSONS BUILDING SERVICES LTD,"120,832.16",SR - VOIDS TEAM,OTHER CONTRACTORS,2103792594,3000002065
18.12.2023,Suspense,INLAND REVENUE,"119,524.78",SUSPENSE ACCOUNT (COMPANY CODE 1000),CONSTRUCTION INDUSTRY TAX,2103800205,4003039
12.12.2023,Children and Adults,CAMELOT PRIMARY SCHOOL,"119,466.35",CAMELOT PRIMARY SCHOOL,SCHOOLS CAPITATION,5902612472,5001000014
25.12.2023,Housing,NEWINGTON BUTTS MANAGEMENT LTD,"117,495.75",PRIVATE SERVICE CHARGES,SERVICE CHARGES,5902614072,1000081298
20.12.2023,Children and Adults,NHS SOUTH EAST LONDON CCG,"117,172.82",S75 SUPHSG SCH SEL ICB,EXTERNAL AGENCIES AND BODIES,5902614132,1000085592
12.12.2023,Children and Adults,ST JAMES THE GREAT RC SCHOOL,"115,945.00",ST JAMES THE GREAT RC PRIMARY SCHOOL,SCHOOLS CAPITATION,5902612611,5001000071
30.12.2023,Children and Adults,MIHOMECARE LTD,"115,920.00",REABLEMENT CONTRACT,HOMECARE - IC,5902614888,1000042594
18.12.2023,Finance,BETTER BANKSIDE,"115,414.76",BETTER BANKSIDE,EXTERNAL AGENCIES AND BODIES,5902613640,1000036227
19.12.2023,Housing,MX ESTATES LTD,"114,782.50",NIGHTLY TA (NSC),EXTERNAL AGENCIES AND BODIES,5902613860,1000083639
12.12.2023,Children and Adults,CRAMPTON PRIMARY SCHOOL,"113,229.00",CRAMPTON PRIMARY SCHOOL,SCHOOLS CAPITATION,5902612491,5001000023
21.12.2023,Housing,A & E ELKINS LTD,"111,956.34",CAPITAL PS (HRA),CONSTRUCTION MAIN CONTRACT -CERTIFICATED,2103801973,4012501
18.12.2023,Housing,BCS (ELECTRICAL & BUILDING SERVICES LTD),"111,951.11",PAYMENTS CONTROL ACCOUNT - SPOKEMEAD,I-WORLD CONTRACTORS HOLDING ACCOUNT,5902613607,1000062321
13.12.2023,Children and Adults,HATS GROUP LTD,"110,259.64",SCH TRANS � TRAVEL,CAB FARES,5902612941,1000042743
18.12.2023,Housing,MAIER LANG LIMITED,"110,210.90",NIGHTLY TA (NSC),EXTERNAL AGENCIES AND BODIES,5902613496,1000084930
20.12.2023,Children and Adults,NHS SOUTH EAST LONDON CCG,"110,155.49",S75 SUPHSG SCH SEL ICB,EXTERNAL AGENCIES AND BODIES,5902614130,1000085592
12.12.2023,Children and Adults,ST JOHNS RC PRIMARY SCHOOL,"109,938.00",ST JOHN'S RC PRIMARY SCHOOL,SCHOOLS CAPITATION,5902612622,5001000075
12.12.2023,Children and Adults,ST JOSEPHS CATHOLIC PRIMARY SCHOOL,"109,513.00",ST JOSEPHS RC (3476) PRIMARY SCHOOL,SCHOOLS CAPITATION,5902612630,5001000078
21.12.2023,Environment Neighbourhoods and Growth,KENT COUNTY COUNCIL - LASER,"108,535.84",STREET LIGHTING REACTIVE,ELECTRICITY,5902614409,1000012926
11.12.2023,Housing,BONDS BUILDERS AND CONTRACTORS LTD,"108,337.71",CAPITAL PS (HRA),CONSTRUCTION MAIN CONTRACT -CERTIFICATED,2103794536,3000002137
12.12.2023,Children and Adults,CATHEDRAL SCHOOL OF ST SAVIOUR & MARY,"107,888.00",THE CATHEDRAL OF ST. SAVIOUR & ST OLAVES,SCHOOLS CAPITATION,5902612644,5001000088
12.12.2023,Children and Adults,PILGRIM'S WAY PRIMARY SCHOOL,"107,575.00",PILGRIMS WAY PRIMARY SCHOOL,SCHOOLS CAPITATION,5902612564,5001000054
12.12.2023,Children and Adults,BOUCHER C OF E PRIMARY SCHOOL,"106,752.00",BOUTCHER CE PRIMARY SCHOOL,SCHOOLS CAPITATION,5902612460,5001000011
12.12.2023,Children and Adults,RIVERSIDE PRIMARY SCHOOL,"106,304.00",RIVERSIDE PRIMARY SCHOOL,SCHOOLS CAPITATION,5902612568,5001000056
13.12.2023,Children and Adults,GROUNDWORK LONDON,"106,000.00",THE NEST 255 RYELANE,EXTERNAL AGENCIES AND BODIES,5902612839,1897585
04.12.2023,DSO,ARMINA LTD,"105,675.83",DAMP & MOULD TEAM,OTHER CONTRACTORS,2103792638,3000002121
14.12.2023,Housing,BCS (ELECTRICAL & BUILDING SERVICES LTD),"104,489.25",PAYMENTS CONTROL ACCOUNT - SPOKEMEAD,I-WORLD CONTRACTORS HOLDING ACCOUNT,5902613089,1000062321
06.12.2023,Housing,KENT COUNTY COUNCIL - LASER,"104,369.91",RESIDENT SERVICES BUSINESS SUPPORT,ELECTRICITY,5902611626,1000012926
05.12.2023,Environment Neighbourhoods and Growth,F M CONWAY LTD,"104,331.27",CAPITAL PS (LEISURE),CONSTRUCTION,2103793144,4001384
12.12.2023,Children and Adults,BELLENDEN PRIMARY SCHOOL,"104,329.00",BELLENDEN PRIMARY SCHOOL,SCHOOLS CAPITATION,5902612449,5001000007
12.12.2023,Housing,NATIONWIDE ACCOMMODATION,"104,234.17",PSL PLACEMENTS,EXTERNAL AGENCIES AND BODIES,5902612786,1000076112
12.12.2023,Children and Adults,ALLPAY LTD (0-25),"104,000.00",SCH TRANS � TRAVEL,OTHER PAYMENTS FOR CLIENTS,5902612802,1000083062
12.12.2023,Children and Adults,ST JOSEPHS CATHOLIC SCHOOL,"103,446.00",ST JOSEPHS RC (3484) SCHOOL,SCHOOLS CAPITATION,5902612626,5001000076
12.12.2023,Children and Adults,ROBERT BROWNING PRIMARY SCHOOL,"103,224.00",ROBERT BROWNING PRIMARY SCHOOL,SCHOOLS CAPITATION,5902612572,5001000057
12.12.2023,Children and Adults,HATS GROUP LTD,"102,960.00",SCH TRANS � TRAVEL,EXTERNAL AGENCIES AND BODIES,5902612779,1000042743
22.12.2023,DSO,SANDERSONS BUILDING SERVICES LTD,"102,888.97",SR - VOIDS TEAM,OTHER CONTRACTORS,2103802844,3000002065
21.12.2023,Environment Neighbourhoods and Growth,KENT COUNTY COUNCIL - LASER,"102,176.05",STREET LIGHTING REACTIVE,ELECTRICITY,5902614411,1000012926
12.12.2023,Children and Adults,ST PETERS CE SCHOOL,"101,694.00",ST PETER'S CE PRIMARY SCHOOL,SCHOOLS CAPITATION,5902612636,5001000083
15.12.2023,Environment Neighbourhoods and Growth,F M CONWAY LTD,"101,074.08",HIGHWAY MAINTENANCE OVERHEADS,HIGHWAYS TERM CONTRACT,2103796628,4001384
13.12.2023,Housing,NATIONWIDE ACCOMMODATION,"100,012.77",PSL PLACEMENTS,EXTERNAL AGENCIES AND BODIES,5902612833,1000076112
12.12.2023,Children and Adults,FRIARS PRIMARY (FOUNDATION) SCHOOL,"99,265.00",FRIARS FOUNDATION PRIMARY SCHOOL,SCHOOLS CAPITATION,5902612517,5001000033
08.12.2023,Housing,A & E ELKINS LTD,"98,883.94",CAPITAL PS (HRA),CONSTRUCTION MAIN CONTRACT -CERTIFICATED,2103792593,4012501
22.12.2023,DSO,PROPERTY FACILITIES GROUP PLC,"98,268.00",SR TEMPORARY ACCOMMODATION DD,OTHER CONTRACTORS,2103802829,3000001420
12.12.2023,Children and Adults,SNOWSFIELDS PRIMARY SCHOOL,"97,656.00",SNOWSFIELDS PRIMARY SCHOOL,SCHOOLS CAPITATION,5902612583,5001000061
13.12.2023,Housing,EQUANS REGENERATION (APOLLO) LTD,"96,722.29",CAPITAL PS (HRA),CONSTRUCTION MAIN CONTRACT -CERTIFICATED,2103795013,4000449
12.12.2023,Children and Adults,CHARLOTTE  SHARMAN PRIMARY SCHOOL,"96,267.00",CHARLOTTE SHARMAN PRIMARY SCHOOL,SCHOOLS CAPITATION,5902612474,5001000016
10.12.2023,Environment Neighbourhoods and Growth,F M CONWAY LTD,"96,245.05",HIGHWAY MAINTENANCE OVERHEADS,HIGHWAYS TERM CONTRACT,2103793147,4001384
12.12.2023,Children and Adults,TOWER BRIDGE PRIMARY SCHOOL,"95,256.00",TOWER BRIDGE PRIMARY SCHOOL,SCHOOLS CAPITATION,5902612653,5001000095
18.12.2023,Children and Adults,EQUINOX CARE,"93,587.25",S75 SUPHSG SCH LBS LEAD,EXTERNAL AGENCIES AND BODIES,5902613522,11297438
18.12.2023,Children and Adults,EQUINOX CARE,"93,587.25",S75 SUPHSG SCH LBS LEAD,EXTERNAL AGENCIES AND BODIES,5902613526,11297438
21.12.2023,Environment Neighbourhoods and Growth,KENT COUNTY COUNCIL - LASER,"92,611.66",STREET LIGHTING REACTIVE,ELECTRICITY,5902614410,1000012926
12.12.2023,Children and Adults,ST GEORGES CE SCHOOL,"92,127.00",ST GEORGE'S CE PRIMARY SCHOOL,SCHOOLS CAPITATION,5902612604,5001000069
12.12.2023,Children and Adults,ST GEORGES RC SCHOOL,"92,116.00",ST GEORGE'S CATHEDRAL RC PRIMARY SCHOOL,SCHOOLS CAPITATION,5902612601,5001000068
12.12.2023,Children and Adults,SOUTHWARK INCLUSIVE LEARNING SERVICE,"92,071.00",SILS,HIGH NEEDS - TOP UP FUNDING,5902612664,5001000105
12.12.2023,Children and Adults,HOLLYDALE PRIMARY SCHOOL,"91,852.00",HOLLYDALE PRIMARY SCHOOL,SCHOOLS CAPITATION,5902612523,5001000036
12.12.2023,Children and Adults,COMBER GROVE PRIMARY SCHOOL,"91,381.00",COMBER GROVE PRIMARY SCHOOL,SCHOOLS CAPITATION,5902612488,5001000022
18.12.2023,Housing,PRB ESTATES LTD,"88,828.55",PRBE,I-WORLD CONTRACTORS HOLDING ACCOUNT,2103798698,3000001691
12.12.2023,Environment Neighbourhoods and Growth,KIER CONSTRUCTION LTD,"85,747.94",CAPITAL PS (REGEN),CONSTRUCTION FEES,2103795000,3000001970
05.12.2023,Environment Neighbourhoods and Growth,ALLPAY LTD,"85,518.00",NO RECOURSE TO PUBLIC FUNDS,OTHER PAYMENTS FOR CLIENTS,5902611266,1000078859
04.12.2023,Environment Neighbourhoods and Growth,VOLKERSTEVIN LIMITED,"84,982.50",CAPITAL PS (LEISURE),CONSTR'N SUB CONTRACT - NON CERTIFICATED,5902611167,1000090456
12.12.2023,Children and Adults,ST SAVIOURS & ST OLAVES SCHOOL,"84,467.00",YPLA SCHL SIXTH FORM,SCHOOLS CAPITATION,5902612640,5001000084
14.12.2023,Housing,PRB ESTATES LTD,"84,093.81",PRBE,I-WORLD CONTRACTORS HOLDING ACCOUNT,2103796104,3000001691
07.12.2023,Children and Adults,GIMS CARE SOLUTION LIMITED,"82,535.00",CHILDREN�S RESID,RESIDENTIAL CARE,2103794099,1000090263
08.12.2023,Children and Adults,THE HYDE GROUP,"81,942.30","43,47,51KIMMINSCOURT",RENTS,2103794459,1000052138
19.12.2023,Housing,DENHAN PROPERTY SERVICES LTD,"81,745.14",PSL PLACEMENTS,EXTERNAL AGENCIES AND BODIES,5902613813,1000082464
13.12.2023,Children and Adults,ANN BERNADT NURSERY SCHOOL,"80,000.00",ANN BERNADT (SUMNER),EARLY YEARS - 3 AND 4 YEAR OLDS,2103795977,5001000085
12.12.2023,Children and Adults,SOUTHWARK INCLUSIVE LEARNING SERVICE,"79,167.00",SILS,HIGH NEEDS - BASE FUNDING,5902612663,5001000105
18.12.2023,Housing,DUCTCLEAN (UK) LTD,"78,505.31",DUCTCLEAN,I-WORLD CONTRACTORS HOLDING ACCOUNT,2103798269,3000001635
12.12.2023,Children and Adults,TUKE SCHOOL,"78,403.00",TUKE SCHOOL,HIGH NEEDS - BASE FUNDING,5902612656,5001000097
06.12.2023,Housing,SILK & MACKMAN SERVICES LTD,"77,690.52",PAYMENTS CONTROL ACCOUNT SILK & MACKMAN,I-WORLD CONTRACTORS HOLDING ACCOUNT,5902611695,1000035282
19.12.2023,Housing,DUCTCLEAN (UK) LTD,"77,523.74",DUCTCLEAN,I-WORLD CONTRACTORS HOLDING ACCOUNT,2103800413,3000001635
22.12.2023,DSO,GC CONSTRUCT LTD,"77,002.11",SR - VOIDS TEAM,OTHER CONTRACTORS,2103802793,3000002106
18.12.2023,Housing,MX ESTATES LTD,"76,748.46",PSL PLACEMENTS,EXTERNAL AGENCIES AND BODIES,5902613571,1000083639
19.12.2023,Housing,PROPERTYPLACEBOOK LTD,"76,147.50",NIGHTLY TA (NSC),EXTERNAL AGENCIES AND BODIES,5902613804,1000077817
29.12.2023,Housing,BUILDTRUST LTD,"76,143.79",BUILD TRUST,I-WORLD CONTRACTORS HOLDING ACCOUNT,2103804417,3000002010
08.12.2023,Children and Adults,GIMS CARE SOLUTION LIMITED,"76,108.00",CHILDREN�S RESID,RESIDENTIAL CARE,2103794471,1000090263
10.12.2023,Housing,APCOA PARKING (UK) LTD,"76,033.95",PARKING CONTROL,OTHER CONTRACTORS,5902611672,1718645
22.12.2023,DSO,GC CONSTRUCT LTD,"75,987.96",SR - VOIDS TEAM,OTHER CONTRACTORS,2103802808,3000002106
12.12.2023,Housing,SITTARA LTD,"75,467.20",NIGHTLY TA (NSC),EXTERNAL AGENCIES AND BODIES,5902612438,1000080857
08.12.2023,Children and Adults,ACCESS MOBILITY TRANSPORT LTD,"74,806.60",SCH TRANS � TRAVEL,CAB FARES,5902612178,1000074637
12.12.2023,Children and Adults,EVELINA HOSPITAL SCHOOL,"74,231.00",EVELINA HOSPITAL SCHOOL,HIGH NEEDS - TOP UP FUNDING,5902612511,5001000031
22.12.2023,DSO,ARMINA LTD,"72,104.68",CAMBERWELL DD,OTHER CONTRACTORS,2103802839,3000002121
22.12.2023,Governance and Assurance,KENT COUNTY COUNCIL - LASER,"71,225.07",160 TOOLEY ST.,ELECTRICITY,5902614675,1000012926
27.12.2023,Corporate,ZURICH MUNICIPAL,"71,102.98",MOTOR RELATED INSURANCE,TRANSPORT INSURANCE COSTS,5902614812,11011168
21.12.2023,Housing,DURKAN LTD,"70,497.45",CAPITAL PS (HRA),CONSTRUCTION MAIN CONTRACT -CERTIFICATED,2103802083,3000000960
12.12.2023,Environment Neighbourhoods and Growth,SYD BISHOP & SONS(DEMOLITION) LTD,"70,096.23",CAPITAL PS (REGEN),CONSTRUCTION FEES  - EXTERNAL,2103794986,3000000990
11.12.2023,Housing,BONDS BUILDERS AND CONTRACTORS LTD,"69,997.14",CAPITAL PS (HRA),CONSTRUCTION MAIN CONTRACT -CERTIFICATED,2103794536,3000002137
12.12.2023,Children and Adults,PETER HILLS CE SCHOOL,"69,509.00",PETER HILLS CE PRIMARY SCHOOL,SCHOOLS CAPITATION,5902612559,5001000053
12.12.2023,Children and Adults,VICTORY SCHOOL,"68,672.00",VICTORY PRIMARY SCHOOL,SCHOOLS CAPITATION,5902612659,5001000098
27.12.2023,Children and Adults,IVORY COTTAGE LTD,"68,219.17",CHILDREN�S RESID,RESIDENTIAL CARE,2103803692,1000089809
21.12.2023,Housing,BONDS BUILDERS AND CONTRACTORS LTD,"67,595.66",CAPITAL PS (HRA),CONSTRUCTION MAIN CONTRACT -CERTIFICATED,2103796177,3000002137
19.12.2023,Corporate,HM REVENUE & CUSTOMS,"67,486.86",APPRENTICESHIP LEVY,APPRENTICESHIP LEVY,2103787791,1016231
18.12.2023,Housing,ZFA ACCOMMODATION LTD,"66,605.00",TA PLACEMENTS,EXTERNAL AGENCIES AND BODIES,5902613732,1000082620
12.12.2023,Children and Adults,ST MARY MAGDALENE CE SCHOOL,"66,404.00",ST MARY MAGDALENE CE PRIMARY SCHOOL,SCHOOLS CAPITATION,5902612633,5001000080
27.12.2023,Children and Adults,SEVA CHILDCARE LTD,"65,237.28",DISABILITIES LAC,RESIDENTIAL CARE,2103803710,1000090283
12.12.2023,Children and Adults,ST JOSEPHS CATHOLIC INFANTS SCHOOL,"65,237.00",ST JOSEPHS RC INFANT(5204),SCHOOLS CAPITATION,5902612479,5001000018
24.12.2023,Governance and Assurance,KENT COUNTY COUNCIL - LASER,"64,901.26",160 TOOLEY ST.,ELECTRICITY,5902614661,1000012926
28.12.2023,Corporate,ENVIRONMENT AGENCY,"64,544.98",ENVIRONMENT AGENCY,LEVIES,5902614901,1000007201
21.12.2023,Housing,LETTING INTERNATIONAL LTD,"64,391.11",PSL PLACEMENTS,EXTERNAL AGENCIES AND BODIES,5902614291,1000070102
25.12.2023,Environment Neighbourhoods and Growth,J C CONSULTANT SERVICES LTD,"64,000.00",CHIEF EXECUTIVE'S OFFICE,EXTERNAL AGENCIES AND BODIES,5902614123,1000042476
25.12.2023,Housing,BUILDING ASSOCIATES LTD,"63,146.11",CAPITAL PS (HRA),CONSTRUCTION MAIN CONTRACT,2103800706,3000002218
07.12.2023,Children and Adults,SEVA CHILDCARE LTD,"63,132.85",DISABILITIES LAC,RESIDENTIAL CARE,2103794202,1000090283
28.12.2023,Children and Adults,CORAM FAMILY,"63,098.20",ALS INTER AGENCY,EXTERNAL AGENCIES AND BODIES,5902615065,1000023579
21.12.2023,Environment Neighbourhoods and Growth,KENT COUNTY COUNCIL - LASER,"62,945.43",STREET LIGHTING REACTIVE,ELECTRICITY,5902614418,1000012926
27.12.2023,Children and Adults,AEGIS 24/7 LTD,"61,964.35",CHILDREN�S RESID,RESIDENTIAL CARE,2103803708,1000089533
18.12.2023,Housing,STANDAGE & CO LTD,"61,315.00",AYLESBURY,SECURITY SERVICES,2103798708,4002817
12.12.2023,Children and Adults,HAYMERLE SCHOOL,"60,278.00",HAYMERLE PRIMARY SCHOOL,HIGH NEEDS - BASE FUNDING,5902612544,5001000045
22.12.2023,Housing,CENTRAL & CECIL HOUSING TRUST,"60,000.00",NORTHCOTT HOUSE,RENTS,2103802883,1809267
27.12.2023,Children and Adults,THE VILLA SCHOOL & NURSERY LTD,"59,316.75",NURSERY ED GRANT 3 AND 4 YR OLDS,GRANTS,2103802064,1000003742
08.12.2023,Environment Neighbourhoods and Growth,GLADSTONE MRM LTD,"59,100.00",LEISURE INSOURCING MOBILISATION COST,SOFTWARE,5902612059,1000088994
08.12.2023,Environment Neighbourhoods and Growth,GLADSTONE MRM LTD,"59,100.00",LEISURE INSOURCING MOBILISATION COST,SOFTWARE,5902612059,1000088994
08.12.2023,Children and Adults,SEVA CHILDCARE LTD,"58,924.00",DISABILITIES LAC,RESIDENTIAL CARE,2103794473,1000090283
27.12.2023,Housing,NIBLOCK (BUILDERS) LTD,"58,440.40",CAPITAL PS (HRA),CONSTRUCTION MAIN CONTRACT -CERTIFICATED,2103803123,3000000235
12.12.2023,Children and Adults,ST JUDES CHURCH OF ENGLAND PRIMARY,"56,091.00",ST JUDE'S CE PRIMARY SCHOOL,SCHOOLS CAPITATION,5902612482,5001000019
04.12.2023,DSO,ARMINA LTD,"55,977.69",CAMBERWELL DD,OTHER CONTRACTORS,2103792638,3000002121
15.12.2023,Governance and Assurance,ATALIAN SERVEST LTD,"55,636.39",FM SERVICES BY INTERSERVE,BUILDING R&M,5902613388,1000088775
27.12.2023,Children and Adults,SOLACE CARE PARTNERS LTD,"55,451.56",CHILDREN�S RESID,RESIDENTIAL CARE,2103803707,1000090499
13.12.2023,Environment Neighbourhoods and Growth,F M CONWAY LTD,"55,199.43",CAPITAL PS (LEISURE),CONSTR'N SUB CONTRACT - NON CERTIFICATED,2103795020,4001384
06.12.2023,Housing,GUIDELINE LIFT SERVICES LTD,"55,071.98",GUIDELINE,I-WORLD CONTRACTORS HOLDING ACCOUNT,5902611562,1000064176
24.12.2023,Environment Neighbourhoods and Growth,F M CONWAY LTD,"54,729.35",CAPITAL PS (LEISURE),CONSTRUCTION,2103800710,4001384
29.12.2023,Housing,SPOKEMEAD MAINTENANCE LTD,"54,318.58",PAYMENTS CONTROL ACCOUNT - SPOKEMEAD,I-WORLD CONTRACTORS HOLDING ACCOUNT,5902615298,4002791
18.12.2023,Children and Adults,BETHAM SUPPORT LIVING LTD,"53,541.43",LD LTS 18-64,SUPPORTED LIVING,2103799809,1000087649
18.12.2023,Housing,STANDAGE & CO LTD,"53,440.00",AYLESBURY,SECURITY SERVICES,2103798707,4002817
12.12.2023,Governance and Assurance,CORPORATE DOCUMENT SERVICES LTD,"53,405.75",REPAIR AND MAINTENANCE SERVICES,PRINTING,5902612766,11324274
12.12.2023,Children and Adults,BETHLEM & MAUDSLEY HOSPITAL SCHOOL,"53,333.00",MAUDSLEY & BETHLEM,HIGH NEEDS - BASE FUNDING,5902612458,5001000010
11.12.2023,Housing,GEM ENVIRONMENTAL BUILDING,"53,259.56",CAPITAL PS (HRA),CONSTRUCTION,5902611721,1000075428
04.12.2023,DSO,SER CONTRACTOR LTD,"53,221.68",SR - VOIDS TEAM,OTHER CONTRACTORS,2103792615,3000002234
08.12.2023,Finance,LUMINA LONDON LIMITED,"50,678.70",PLANNING APPEALS AND INQUIRIES,PROFESSIONAL FEES,5902612000,1000090371
15.12.2023,Children and Adults,LONDON CARE LTD,"50,395.02",EXTRA CARE CONTRACT,HOMECARE - C&V,5902612024,1000003398
27.12.2023,Children and Adults,TIGERS CHILDCARE LTD,"50,266.50",NURSERY ED GRANT 3 AND 4 YR OLDS,GRANTS,2103802065,1000084290
05.12.2023,Housing,BUILDTRUST LTD,"49,999.12",BUILD TRUST,I-WORLD CONTRACTORS HOLDING ACCOUNT,2103793146,3000002010
23.12.2023,Housing,A & E ELKINS LTD,"49,585.21",CAPITAL PS (HRA),CONSTRUCTION,2103800206,4012501
30.12.2023,Housing,A & E ELKINS LTD,"49,302.78",CAPITAL PS (HRA),CONSTRUCTION,2103803126,4012501
19.12.2023,Children and Adults,ACCESS MOBILITY TRANSPORT LTD,"49,287.20",SCH TRANS � TRAVEL,CAB FARES,5902613831,1000074637
18.12.2023,Housing,STANDAGE & CO LTD,"49,258.00",AYLESBURY,SECURITY SERVICES,2103798709,4002817
15.12.2023,Children and Adults,LONDON CARE LTD,"49,192.52",EXTRA CARE CONTRACT,HOMECARE - C&V,5902612018,1000003398
07.12.2023,Housing,NEC SOFTWARE SOLUTIONS UK LTD,"49,179.75",BUSINESS APPLICATIONS,SOFTWARE,5902611812,1000087043
06.12.2023,Finance,INFOSYS LIMITED,"48,796.00",CAPITAL PS (STRAT SERV),ICT ACQUISITION,5902611548,1000088973
22.12.2023,Housing,GEM ENVIRONMENTAL BUILDING,"48,625.78",CAPITAL PS (HRA),CONSTRUCTION,5902614579,1000075428
15.12.2023,Housing,WILLMOTT DIXON CONSTRUCTION LIMITED,"48,338.79",CAPITAL PS (HRA),CONSTRUCTION FEES  - EXTERNAL,5902612413,1000047807
14.12.2023,Children and Adults,SOLACE CARE PARTNERS LTD,"48,309.18",CHILDREN�S RESID,RESIDENTIAL CARE,2103796612,1000090499
04.12.2023,DSO,SER CONTRACTOR LTD,"47,810.07",SR - VOIDS TEAM,OTHER CONTRACTORS,2103792629,3000002234
21.12.2023,Environment Neighbourhoods and Growth,GUILDMORE LTD,"47,281.36",CAPITAL PS (REGEN),CONSTRUCTION MAIN CONTRACT -CERTIFICATED,2103798275,3000002150
12.12.2023,Housing,DIAMOND PROPERTY MANAGEMENT LTD,"47,177.50",NIGHTLY TA (NSC),EXTERNAL AGENCIES AND BODIES,5902612809,1000088789
18.12.2023,Housing,DUCTCLEAN (UK) LTD,"46,893.38",DUCTCLEAN,I-WORLD CONTRACTORS HOLDING ACCOUNT,2103798271,3000001635
14.12.2023,Housing,K3 PROPERTY MANAGEMENT LTD,"46,872.00",NIGHTLY TA (NSC),EXTERNAL AGENCIES AND BODIES,5902613215,1000068219
07.12.2023,Housing,1ST ACE SECURITY LTD,"46,807.20",LAKANAL (TENANCY),SECURITY SERVICES,5902610776,1000006992
18.12.2023,Housing,ARCHITECTURAL DECORATORS LTD,"46,776.08",CAPITAL PS (HRA),CONSTRUCTION MAIN CONTRACT -CERTIFICATED,2103800300,3000001065
18.12.2023,Environment Neighbourhoods and Growth,BL CW HOLDINGS LTD,"46,742.43",CAPITAL PS (REGEN),CONSTRUCTION FEES  - EXTERNAL,5902613653,1000086680
15.12.2023,Environment Neighbourhoods and Growth,F M CONWAY LTD,"46,713.12",CAPITAL PS (LEISURE),CONSTR'N SUB CONTRACT - NON CERTIFICATED,2103796630,4001384
21.12.2023,Housing,A & E ELKINS LTD,"46,392.12",CAPITAL PS (HRA),CONSTRUCTION MAIN CONTRACT -CERTIFICATED,2103802079,4012501
04.12.2023,DSO,CRATUS BUILDING SERVICES LIMITED,"46,184.42",SR - VOIDS TEAM,OTHER CONTRACTORS,2103792607,3000001055
18.12.2023,Children and Adults,ALLEN CARR'S EASYWAY (INTERNATIONAL,"45,617.00",STOP SMOKING,EXTERNAL AGENCIES AND BODIES,5902613658,1000090277
27.12.2023,Children and Adults,HIGHSHORE SCHOOL,"45,559.01",TEACHERS PAY GRANT,SCHOOLS CAPITATION,2103803096,5001000046
08.12.2023,Children and Adults,OLM SYSTEMS LTD,"45,474.00",C&AS SOFTWARE APPS,SOFTWARE,5902612101,1000018864
27.12.2023,Corporate,ZURICH MUNICIPAL,"45,360.00",PROPERTY RELATED INSURANCE,PROPERTY INSURANCE COSTS,5902614809,11011168
07.12.2023,Finance,FAMILY FUND TRADING LTD,"45,197.64",SESS,OTHER PAYMENTS FOR CLIENTS,5902611835,1000071092
12.12.2023,Children and Adults,CHERRY GARDEN SCHOOL,"44,777.00",CHERRY GARDEN PRIMARY SCHOOL,HIGH NEEDS - BASE FUNDING,5902612485,5001000020
17.12.2023,Children and Adults,LONDON CARE LTD,"44,638.99",EXTRA CARE CONTRACT,HOMECARE - C&V,5902612707,1000003398
12.12.2023,Children and Adults,BEORMUND PRIMARY SCHOOL,"44,500.00",BEORMUND PRIMARY SCHOOL,HIGH NEEDS - TOP UP FUNDING,5902612453,5001000008
14.12.2023,Children and Adults,NEILCOTT SPECIAL WORKS LTD,"44,427.31",CAPITAL PS (EDUCATION),CONSTRUCTION,5902613204,1000049404
11.12.2023,Children and Adults,GIMS CARE SOLUTION LIMITED,"44,246.56",CHILDREN�S RESID,RESIDENTIAL CARE,2103794595,1000090263
18.12.2023,Housing,BRIDGEWATER ROOFING CONTRACTORS LTD,"44,232.28",A&E ELKINS,I-WORLD CONTRACTORS HOLDING ACCOUNT,2103798694,3000001482
27.12.2023,Children and Adults,REDRIFF PRIMARY SCHOOL,"44,187.75",NURSERY ED GRANT 3 AND 4 YR OLDS,GRANTS,2103802046,1000067877
12.12.2023,Children and Adults,EVELINA HOSPITAL SCHOOL,"44,167.00",EVELINA HOSPITAL SCHOOL,HIGH NEEDS - BASE FUNDING,5902612510,5001000031
13.12.2023,Housing,MARTIN ARNOLD LTD,"44,083.15",CAPITAL PS (HRA),CONSTRUCTION FEES - EMPLOYERS AGENT,5902612993,1000076993
14.12.2023,Housing,TAAKSVALE HOUSING LTD,"44,069.85",NIGHTLY TA (NSC),EXTERNAL AGENCIES AND BODIES,5902613180,1000073665
04.12.2023,Housing,TAAKSVALE HOUSING LTD,"43,959.74",NIGHTLY TA (NSC),EXTERNAL AGENCIES AND BODIES,5902611095,1000073665
22.12.2023,Governance and Assurance,WANDLE HOUSING ASSOCIATION LTD,"43,750.00",QUEENS ROAD 3 (BLOCK C),RENTS,2103802905,1039321
04.12.2023,Housing,URANG PROPERTY MANAGEMENT LTD,"43,500.70",RESIDENT SERVICES BUSINESS SUPPORT,SERVICE CHARGES,5902610026,1000083463
11.12.2023,Children and Adults,NORTHUMBERLAND COUNTY COUNCIL,"43,500.00",CHILDREN�S RESID,RESIDENTIAL CARE,2103794590,1000030424
19.12.2023,Corporate,ALBION PRIMARY SCHOOL,"42,986.03",EDUCATION VAT INPUTS,VAT CONTROL ACCOUNT,2103800378,5001000000
19.12.2023,DSO,CRATUS BUILDING SERVICES LIMITED,"42,832.69",SR - VOIDS TEAM,OTHER CONTRACTORS,2103800686,3000001055
18.12.2023,Housing,STANDAGE & CO LTD,"42,565.00",AYLESBURY,SECURITY SERVICES,2103798704,4002817
30.12.2023,Housing,BRIDGEWATER ROOFING CONTRACTORS LTD,"42,500.00",DISREPAIR,BUILDING R&M,2103802803,3000001482
13.12.2023,Children and Adults,AGINCARE (SOUTHWARK) LIMITED,"42,456.56",PHY LTS 65+,RESIDENTIAL CARE,5902612872,1000089635
11.12.2023,Children and Adults,INTEGRATED FOSTERING SERVICES LTD,"42,411.30",FRIENDS & FAMILY FOSTERING,EXTERNAL AGENCIES AND BODIES,2103794599,1000082605
20.12.2023,Environment Neighbourhoods and Growth,F M CONWAY LTD,"41,757.00",CAPITAL PS (LEISURE),CONSTRUCTION,2103800709,4001384
06.12.2023,Children and Adults,CHELSEA AND WESTMINSTER HOSPITAL,"41,713.66",SEXUAL HEALTH - STI,MEDICAL / HEALTH & SAFETY SERVICES,5902611612,1000072053
12.12.2023,Children and Adults,TRANSFORMING YOUNG PEOPLE LTD,"41,571.42",SEMI-IND LAC 16-17,EXTERNAL AGENCIES AND BODIES,2103794841,1000089530
17.12.2023,Children and Adults,COUNTRY COURT CARE HOMES 2 LTD,"41,421.71",PHY LTS 65+,RESIDENTIAL CARE,5902612328,1000080172
04.12.2023,DSO,E & E BUILDING SERVICES LTD,"41,303.39",SR - VOIDS TEAM,OTHER CONTRACTORS,2103792630,3000001176
22.12.2023,Governance and Assurance,M J MAPP LTD,"41,250.00",47B EAST DULWICH ROAD,RENTS,2103802887,1000056816
18.12.2023,Housing,CROMWOOD HOUSING,"41,225.00",NIGHTLY TA (NSC),EXTERNAL AGENCIES AND BODIES,5902613606,1000071450
20.12.2023,DSO,J KASH LTD,"40,493.36",DAMP & MOULD TEAM,OTHER CONTRACTORS,2103800704,3000002219
14.12.2023,Housing,FRANKLYN SHAW ASSOCIATES LTD,"40,329.36",FRANKLIN SHAW ASSOCIATES,I-WORLD CONTRACTORS HOLDING ACCOUNT,2103796172,3000001465
06.12.2023,Environment Neighbourhoods and Growth,C S G (USHERS) LTD,"40,055.00",TREES TERM CONTRACT,TREE MAINTENANCE,5902611530,1000073203
25.12.2023,Children and Adults,SOUTHWARK IRISH PENSIONERS PROJECT,"40,000.00",DIR OF ASC,EXTERNAL AGENCIES AND BODIES,5902614452,1000082558
12.12.2023,Environment Neighbourhoods and Growth,BRITISH TELECOM PLC,"39,845.31",CAPITAL PS (LEISURE),CONSTR'N SUB CONTRACT - NON CERTIFICATED,5902612728,1756938
22.12.2023,Housing,SHARPE PRITCHARD LLP,"39,683.35",CAPITAL PS (HRA),CONSTRUCTION FEES - LEGAL,5902614536,1790085
27.12.2023,Housing,GUILDMORE LTD,"39,525.52",CAPITAL PS (HRA),CONSTRUCTION MAIN CONTRACT -CERTIFICATED,2103803121,3000002150
18.12.2023,Children and Adults,OVAL CARE HOMES LTD,"39,438.00",LD LTS 18-64 AAD,SUPPORTED LIVING,2103799500,1000089506
18.12.2023,Housing,STANDAGE & CO LTD,"39,390.00",AYLESBURY,SECURITY SERVICES,2103798706,4002817
19.12.2023,Suspense,EDWARDES BROS (DULWICH) LTD,"39,138.50",SUSPENSE ACCOUNT (COMPANY CODE 1000),CREDITORS -GR/IR CLEARING ACCOUNT,5902613967,1004945
30.12.2023,Environment Neighbourhoods and Growth,TILHILL FORESTRY LTD,"38,674.49",CAPITAL PS (REGEN),CONSTRUCTION,2103803113,3000001208
19.12.2023,DSO,SANDERSONS BUILDING SERVICES LTD,"38,539.67",SR - VOIDS TEAM,OTHER CONTRACTORS,2103800685,3000002065
05.12.2023,Environment Neighbourhoods and Growth,C S G (USHERS) LTD,"38,339.40",CAPITAL PS (LEISURE),CONSTRUCTION,5902611363,1000073203
21.12.2023,Housing,BONDS BUILDERS AND CONTRACTORS LTD,"38,327.57",CAPITAL PS (HRA),CONSTRUCTION MAIN CONTRACT -CERTIFICATED,2103796177,3000002137
11.12.2023,Housing,KINDLY PROPERTIES LTD,"38,238.50",NIGHTLY TA (NSC),EXTERNAL AGENCIES AND BODIES,5902612273,1000060734
18.12.2023,Housing,STANDAGE & CO LTD,"38,101.48",CAPITAL PS (HRA),CONSTRUCTION MAIN CONTRACT -CERTIFICATED,2103798273,4002817
11.12.2023,Housing,PREMIER PROPERTY LAWYERS LTD,"38,000.00",CAPITAL PS (HRA),CAPITAL GRANTS,2103792585,1000060267
22.12.2023,DSO,ARMINA LTD,"37,999.52",DAMP & MOULD TEAM,OTHER CONTRACTORS,2103802839,3000002121
18.12.2023,Children and Adults,SOUTH EAST LONDON BAPTIST HOME,"37,820.35",MEM LTS 65+,"MAND STATUTORY CHARGES, RESIDENTIAL",2103799965,1670766
11.12.2023,Children and Adults,CEDAR HOUSE (KENT) LTD,"37,789.07",CHILDREN�S RESID,RESIDENTIAL CARE,2103794592,1000090433
22.12.2023,Children and Adults,PREMIER ROOFING AND CONSTRUCTION LTD,"37,788.63",CAPITAL PS (EDUCATION),CONSTRUCTION,2103802810,3000002158
20.12.2023,Housing,STEF & PHILIPS LTD,"37,681.00",NIGHTLY TA (NSC),EXTERNAL AGENCIES AND BODIES,5902614119,1000088522
06.12.2023,Children and Adults,BLAK DIAMOND SOCIAL CARE LTD,"37,251.30",SEMI-IND LAC 16-17,EXTERNAL AGENCIES AND BODIES,2103793806,1000090161
07.12.2023,Corporate,SCOTTISH EQUITABLE PLC,"37,220.78",A. V. C. TO OTHER PENSION,PAYROLL CREDITORS - EXTERNAL AVCS (LOCAL GOVT),2103793875,1000026367
08.12.2023,Housing,KENT COUNTY COUNCIL - LASER,"37,075.97",RESIDENT SERVICES BUSINESS SUPPORT,ELECTRICITY,5902612005,1000012926
20.12.2023,Children and Adults,BESSEMER GRANGE PRIMARY SCHOOL,"37,039.80",FREE HEALTHY SCHOOL MEALS,EARLY YEARS - 3 AND 4 YEAR OLDS,2103800419,5001000009
24.12.2023,Environment Neighbourhoods and Growth,F M CONWAY LTD,"36,959.70",CAPITAL PS (LEISURE),CONSTRUCTION,2103802845,4001384
19.12.2023,DSO,BCS (ELECTRICAL & BUILDING) LTD,"36,820.07",SR - VOIDS TEAM,OTHER CONTRACTORS,2103800690,3000001471
11.12.2023,Children and Adults,CHAILEY HERITAGE FOUNDATION,"36,362.67",NMSS/ INDEP SPECIAL,STATEMENTED FEES,2103794737,1000045082
22.12.2023,Housing,HOMES 2 LET UK LTD,"36,233.80",NIGHTLY TA (NSC),EXTERNAL AGENCIES AND BODIES,5902614672,1000079868
08.12.2023,Housing,NORBURY PROPERTY SERVICES (LONDON) LTD,"36,227.80",NIGHTLY TA (NSC),EXTERNAL AGENCIES AND BODIES,5902612035,1000075566
08.12.2023,DSO,BCS (ELECTRICAL & BUILDING) LTD,"36,048.31",SR - VOIDS TEAM,OTHER CONTRACTORS,2103794507,3000001471
18.12.2023,Housing,DUCTCLEAN (UK) LTD,"35,623.44",DUCTCLEAN,I-WORLD CONTRACTORS HOLDING ACCOUNT,2103798715,3000001635
18.12.2023,Children and Adults,BARNARDO'S FINANCE,"35,565.00",ALS INTER AGENCY,EXTERNAL AGENCIES AND BODIES,5902613604,1000085616
18.12.2023,Children and Adults,P.A.K.S,"35,479.00",PHY LTS 18-64,RESIDENTIAL CARE,2103799876,1000078011
21.12.2023,Environment Neighbourhoods and Growth,BARBOUR LOGIC LIMITED,"35,400.00",PARKING OVERHEADS,OTHER CONTRACTORS,5902612977,1000086547
06.12.2023,Children and Adults,BLAK DIAMOND SOCIAL CARE LTD,"35,185.50",SEMI-IND LAC 16-17,EXTERNAL AGENCIES AND BODIES,2103793787,1000090161
10.12.2023,Environment Neighbourhoods and Growth,SOUTHWARK REFUGEE COMMUNITIES FORUM,"35,000.00",ASYLUM DISPERSAL,GRANTS,5902611238,1000036926
18.12.2023,Environment Neighbourhoods and Growth,ESTATE LIGHTING SOLUTIONS LTD,"34,672.00",PUBLIC LIGHTING,OTHER CONTRACTORS,2103798712,3000002130
11.12.2023,Environment Neighbourhoods and Growth,F M CONWAY LTD,"34,584.37",CAPITAL PS (LEISURE),CONSTR'N SUB CONTRACT - NON CERTIFICATED,2103794515,4001384
12.12.2023,Children and Adults,AON SOLUTIONS UK LTD,"34,470.00",DIRECTOR OF EDUCATION,PROFESSIONAL FEES,5902612755,1000000036
18.12.2023,Housing,STANDAGE & CO LTD,"34,462.00",AYLESBURY,SECURITY SERVICES,2103798705,4002817
18.12.2023,Children and Adults,HC-ONE LTD (TOWER BRIDGE CARE HOME),"34,417.82",PHY LTS 65+,NURSING PLACEMENTS FEES,2103799160,1000067670
12.12.2023,Housing,APEX HOUSING SOLUTIONS LTD,"34,298.50",NIGHTLY TA (NSC),EXTERNAL AGENCIES AND BODIES,5902612675,1000079786
30.12.2023,Housing,KARAKUSEVIC CARSON ARCHITECTS,"34,170.00",CAPITAL PS (HRA),CONSTRUCTION FEES - ARCHITECT,5902611275,1000055150
30.12.2023,Housing,KARAKUSEVIC CARSON ARCHITECTS,"34,170.00",CAPITAL PS (HRA),CONSTRUCTION FEES - ARCHITECT,5902614914,1000055150
28.12.2023,Housing,NIBLOCK (BUILDERS) LTD,"33,850.48",CAPITAL PS (HRA),CONSTRUCTION MAIN CONTRACT -CERTIFICATED,2103804050,3000000235
31.12.2023,Housing,NIBLOCK (BUILDERS) LTD,"33,850.48",CAPITAL PS (HRA),CONSTRUCTION MAIN CONTRACT -CERTIFICATED,2103804052,3000000235
27.12.2023,Children and Adults,DULWICH OAKS MONTESSORI NURSERY SCHOOL,"33,735.98",NURSERY ED GRANT 3 AND 4 YR OLDS,GRANTS,2103801999,1000070726
13.12.2023,Children and Adults,KHIN FAMILY SERVICES LTD,"33,661.12",RESID PARENT ASSESS,RESIDENTIAL CARE,5902612983,1000089379
15.12.2023,Housing,WILLMOTT DIXON CONSTRUCTION LIMITED,"33,519.21",CAPITAL PS (HRA),CONSTRUCTION FEES  - EXTERNAL,5902612413,1000047807
06.12.2023,Children and Adults,OAKLEY HOUSE (KENT) LIMITED,"33,264.80",CHILDREN�S RESID,RESIDENTIAL CARE,2103793741,1000090039
18.12.2023,Children and Adults,WELLSPRING CARE HOMES LIMITED,"33,264.00",LD LTS 18-64 AAD,SUPPORTED LIVING,2103799163,1000088216
18.12.2023,Environment Neighbourhoods and Growth,F M CONWAY LTD,"33,077.71",CAPITAL PS (LEISURE),CONSTR'N SUB CONTRACT - NON CERTIFICATED,2103798701,4001384
20.12.2023,Children and Adults,IVYDALE PRIMARY SCHOOL,"32,981.90",FREE HEALTHY SCHOOL MEALS,EARLY YEARS - 3 AND 4 YEAR OLDS,2103800432,5001000038
27.12.2023,Children and Adults,SPA EDUCATION TRUST,"32,754.85",TEACHERS PAY GRANT,SCHOOLS CAPITATION,2103803105,1000081600
18.12.2023,Housing,EQUANS REGENERATION (APOLLO) LTD,"32,692.94",CAPITAL PS (HRA),CONSTRUCTION MAIN CONTRACT -CERTIFICATED,2103798272,4000449
15.12.2023,Governance and Assurance,ATALIAN SERVEST LTD,"32,400.00",TSFM CONTINGENCY,INTEGRATED FACILITIES MANAGEMENT CONTRACT,5902613295,1000088775
20.12.2023,Environment Neighbourhoods and Growth,F M CONWAY LTD,"32,268.42",CAPITAL PS (LEISURE),CONSTRUCTION,2103800708,4001384
27.12.2023,Children and Adults,CHARLES DICKENS PRIMARY SCHOOL,"32,160.38",NURSERY ED GRANT 3 AND 4 YR OLDS,GRANTS,2103801995,1000085158
11.12.2023,Housing,T BROWN & SONS (HEATING) LTD,"32,077.63",HEATING AND HOT WATER,HEATING -DISTRICT SERVICE (CONTRACT SUM),5902611778,1000040191
18.12.2023,Environment Neighbourhoods and Growth,F M CONWAY LTD,"31,970.92",CAPITAL PS (LEISURE),CONSTR'N SUB CONTRACT - NON CERTIFICATED,2103798701,4001384
27.12.2023,Children and Adults,1ST PLACE CHILDREN & PARENTS CENTRE,"31,970.25",NURSERY ED GRANT 3 AND 4 YR OLDS,GRANTS,2103801977,1000049952
18.12.2023,Children and Adults,HC-ONE LTD (TOWER BRIDGE CARE HOME),"31,696.50",MEM LTS 65+,RESIDENTIAL CARE,2103799109,1000067670
27.12.2023,Children and Adults,SURREY SQUARE PRIMARY SCHOOL,"31,635.38",NURSERY ED GRANT 3 AND 4 YR OLDS,GRANTS,2103802062,1000082648
20.12.2023,Children and Adults,HEBER PRIMARY SCHOOL,"31,329.79",FREE HEALTHY SCHOOL MEALS,EARLY YEARS - 3 AND 4 YEAR OLDS,2103800429,5001000035
27.12.2023,Children and Adults,EVELINA HOSPITAL SCHOOL,"31,265.99",TEACHERS PAY GRANT,SCHOOLS CAPITATION,2103803097,5001000031
07.12.2023,Housing,NEC SOFTWARE SOLUTIONS UK LTD,"31,250.00",BUSINESS APPLICATIONS,SOFTWARE,5902611813,1000087043
14.12.2023,Housing,FRANKLYN SHAW ASSOCIATES LTD,"31,224.64",FRANKLIN SHAW ASSOCIATES,I-WORLD CONTRACTORS HOLDING ACCOUNT,2103796172,3000001465
29.12.2023,Housing,BUILDTRUST LTD,"31,224.16",BUILD TRUST,I-WORLD CONTRACTORS HOLDING ACCOUNT,2103804419,3000002010
10.12.2023,Environment Neighbourhoods and Growth,KENT COUNTY COUNCIL - LASER,"31,175.47",THE CASTLE CENTRE,GAS,5902611310,1000012926
21.12.2023,Children and Adults,AMBITIOUS ABOUT AUTISM,"30,980.42",NMSS/ INDEP SPECIAL,STATEMENTED FEES,2103802741,1000035784
22.12.2023,DSO,ARMINA LTD,"30,735.13",PECKHAM & DULWICH DD,OTHER CONTRACTORS,2103802839,3000002121
12.12.2023,Children and Adults,DULWICH WOOD CHILDRENS CENTRE,"30,639.00",DULWICH WOOD NURSERY SCHOOL,EARLY YEARS - 3 AND 4 YEAR OLDS,5902612661,5001000099
18.12.2023,Children and Adults,SPECTRA CARE LTD,"30,590.00",LD LTS 18-64,SUPPORTED LIVING,2103799235,1000086280
10.12.2023,Children and Adults,STANDAGE & CO LTD,"30,543.96",CAPITAL PS (EDUCATION),CONSTRUCTION,2103793080,4002817
02.12.2023,Environment Neighbourhoods and Growth,F M CONWAY LTD,"30,438.87",CAPITAL PS (LEISURE),CONSTRUCTION,2103792004,4001384
20.12.2023,Children and Adults,ST ANTHONYS RC SCHOOL,"30,421.10",FREE HEALTHY SCHOOL MEALS,EARLY YEARS - 3 AND 4 YEAR OLDS,2103800445,5001000064
08.12.2023,Environment Neighbourhoods and Growth,THE GREAT OUTDOOR GYM COMPANY LTD,"30,250.00",CAPITAL PS (LEISURE),CONSTRUCTION,2103794504,3000001915
04.12.2023,Environment Neighbourhoods and Growth,THE GREAT OUTDOOR GYM COMPANY LTD,"30,250.00",CAPITAL PS (LEISURE),CONSTRUCTION,5902611581,3000001915
11.12.2023,Environment Neighbourhoods and Growth,PROPERTYPLACEBOOK LTD,"30,214.00",NO RECOURSE TO PUBLIC FUNDS,ACCOMMODATION CHARGES,5902612071,1000077817
13.12.2023,Children and Adults,HATS GROUP LTD,"30,178.36",SCH TRANS � TRAVEL,CAB FARES,5902612962,1000042743
21.12.2023,Children and Adults,AMBITIOUS ABOUT AUTISM,"30,129.56",NMSS/ INDEP SPECIAL,STATEMENTED FEES,2103802745,1000035784
27.12.2023,Children and Adults,SPA EDUCATION TRUST,"30,074.90",TEACHERS PAY GRANT,SCHOOLS CAPITATION,2103803104,1000081600
27.12.2023,Governance and Assurance,CIVICA UK LTD,"30,037.50",ELECTORAL REGISTRATION,SOFTWARE,2103803078,1730625
04.12.2023,Housing,AFG LAW LIMITED,"30,000.00",CAPITAL PS (HRA),CAPITAL GRANTS,2103793053,1000090413
08.12.2023,Housing,PARIS SMITH LLP,"30,000.00",CAPITAL PS (HRA),CAPITAL GRANTS,2103794494,1000008059
20.12.2023,Housing,AVRILLO LLP,"30,000.00",CAPITAL PS (HRA),CAPITAL GRANTS,2103802811,1000075169
21.12.2023,Housing,ANAYSSE-JACOBS SOLICITORS,"30,000.00",CAPITAL PS (HRA),CAPITAL GRANTS,2103803055,1000086247
28.12.2023,Housing,ANAYSSE-JACOBS SOLICITORS,"30,000.00",CAPITAL PS (HRA),CAPITAL GRANTS,2103803057,1000086247
01.12.2023,Finance,NEC SOFTWARE SOLUTIONS UK LTD,"30,000.00",ADMINISTRATIVE SUPPORT,SOFTWARE,5902610285,1000087043
02.12.2023,Finance,BDO LLP,"29,936.08",INTERNAL AUDIT CONTRACTS,PAYMENTS FOR FINANCIAL SERVICES,5902610782,1000057898
30.12.2023,Finance,BDO LLP,"29,936.08",INTERNAL AUDIT CONTRACTS,PAYMENTS FOR FINANCIAL SERVICES,5902614850,1000057898
21.12.2023,Children and Adults,AMBITIOUS ABOUT AUTISM,"29,903.26",NMSS/ INDEP SPECIAL,STATEMENTED FEES,2103802743,1000035784
21.12.2023,Children and Adults,AMBITIOUS ABOUT AUTISM,"29,903.26",NMSS/ INDEP SPECIAL,STATEMENTED FEES,2103802744,1000035784
22.12.2023,Children and Adults,COUNTRY COURT CARE HOMES 2 LTD,"29,792.92",RESIDENTIAL CARE CHARTER,EXTERNAL AGENCIES AND BODIES,5902613479,1000080172
21.12.2023,Children and Adults,AMBITIOUS ABOUT AUTISM,"29,542.97",NMSS/ INDEP SPECIAL,STATEMENTED FEES,2103802747,1000035784
21.12.2023,Children and Adults,AMBITIOUS ABOUT AUTISM,"29,542.97",NMSS/ INDEP SPECIAL,STATEMENTED FEES,2103802753,1000035784
12.12.2023,Children and Adults,AON SOLUTIONS UK LTD,"29,359.99",DIRECTOR OF EDUCATION,PROFESSIONAL FEES,5902612758,1000000036
22.12.2023,Housing,SHARPE PRITCHARD LLP,"29,239.85",CAPITAL PS (HRA),CONSTRUCTION FEES - LEGAL,5902614536,1790085
12.12.2023,Children and Adults,BEORMUND PRIMARY SCHOOL,"29,167.00",BEORMUND PRIMARY SCHOOL,HIGH NEEDS - BASE FUNDING,5902612452,5001000008
04.12.2023,Environment Neighbourhoods and Growth,METIS CONSULTANTS LIMITED,"29,100.00",FLOOD RISK MANAGEMENT,HIGHWAYS TERM CONTRACT,5902611118,1000086330
19.12.2023,DSO,E & E BUILDING SERVICES LTD,"29,053.70",SR - VOIDS TEAM,OTHER CONTRACTORS,2103800689,3000001176
12.12.2023,Environment Neighbourhoods and Growth,DIAMOND PROPERTY MANAGEMENT LTD,"29,007.00",NO RECOURSE TO PUBLIC FUNDS,ACCOMMODATION CHARGES,5902612687,1000088789
24.12.2023,Children and Adults,MIME CONSULTING LTD,"29,000.00",INTERVENTION FUND,DATA COMMUNICATIONS,5902614118,1000057079
27.12.2023,Children and Adults,TUKE SCHOOL,"28,883.82",TEACHERS PAY GRANT,SCHOOLS CAPITATION,2103803101,5001000097
03.12.2023,Environment Neighbourhoods and Growth,PEDDLE MY WHEELS LTD,"28,875.00",STREETS FOR PEOPLE - CYCLING,MISCELLANEOUS RECHARGES,5902610321,1000083767
20.12.2023,Children and Adults,PHOENIX PRIMARY SCHOOL,"28,809.52",FREE HEALTHY SCHOOL MEALS,EARLY YEARS - 3 AND 4 YEAR OLDS,2103800437,5001000032
15.12.2023,DSO,TOTALMOBILE LTD,"28,800.00",ICT & COMMUNICATIONS,SOFTWARE,5902613413,1000085502
06.12.2023,Children and Adults,ELIALI MPC LTD,"28,785.71",CHILDREN�S RESID,RESIDENTIAL CARE,2103793733,1000089944
21.12.2023,Children and Adults,AMBITIOUS ABOUT AUTISM,"28,713.60",NMSS/ INDEP SPECIAL,STATEMENTED FEES,2103802751,1000035784
21.12.2023,Children and Adults,AMBITIOUS ABOUT AUTISM,"28,713.60",NMSS/ INDEP SPECIAL,STATEMENTED FEES,2103802757,1000035784
20.12.2023,Housing,PRB ESTATES LTD,"28,602.67",GARAGE REPAIRS,BUILDING R&M,2103800707,3000001691
27.12.2023,Children and Adults,CHARTER SCHOOLS EDUCATIONAL TRUST T/A LYNDHURST PRIMARY SCHOOL,"28,582.13",NURSERY ED GRANT 3 AND 4 YR OLDS,GRANTS,2103802033,1000086766
21.12.2023,Children and Adults,AMBITIOUS ABOUT AUTISM,"28,532.25",NMSS/ INDEP SPECIAL,STATEMENTED FEES,2103802749,1000035784
21.12.2023,Children and Adults,AMBITIOUS ABOUT AUTISM,"28,532.25",NMSS/ INDEP SPECIAL,STATEMENTED FEES,2103802750,1000035784
21.12.2023,Children and Adults,AMBITIOUS ABOUT AUTISM,"28,532.25",NMSS/ INDEP SPECIAL,STATEMENTED FEES,2103802755,1000035784
21.12.2023,Children and Adults,AMBITIOUS ABOUT AUTISM,"28,532.25",NMSS/ INDEP SPECIAL,STATEMENTED FEES,2103802756,1000035784
20.12.2023,Children and Adults,HIGHSHORE SCHOOL,"28,507.65",TRUST FUND DRAW DOWN,SCHOOLS CAPITATION,2103800414,5001000046
18.12.2023,Children and Adults,DIAGRAMA HEALTH CARE,"28,380.04",LD LTS 18-64,RESIDENTIAL CARE,2103799238,1000075492
27.12.2023,Children and Adults,SOUTHWARK INCLUSIVE LEARNING SERVICE,"28,288.28",TEACHERS PAY GRANT,SCHOOLS CAPITATION,2103803095,5001000105
18.12.2023,Housing,EASYMOVE EA LIMITED,"28,277.00",PSL PLACEMENTS,EXTERNAL AGENCIES AND BODIES,5902613619,1000066859
19.12.2023,Corporate,CHERRY GARDEN SCHOOL,"28,151.82",EDUCATION VAT INPUTS,VAT CONTROL ACCOUNT,2103800355,5001000020
18.12.2023,Housing,NATIONWIDE ACCOMMODATION,"28,035.00",TA PLACEMENTS,EXTERNAL AGENCIES AND BODIES,5902613529,1000076112
19.12.2023,DSO,SER CONTRACTOR LTD,"27,979.76",SR - VOIDS TEAM,OTHER CONTRACTORS,2103800688,3000002234
11.12.2023,Housing,SALVATION ARMY HOUSING ASSOCIATION,"27,964.24",DAVID BARKER HOSTEL,EXTERNAL AGENCIES AND BODIES,5902612329,1000089956
06.12.2023,Children and Adults,KATTZ (YH) LTD,"27,891.13",RESID PARENT ASSESS,RESIDENTIAL CARE,2103793731,1000090473
06.12.2023,Children and Adults,ELIALI MPC LTD,"27,857.14",CHILDREN�S RESID,RESIDENTIAL CARE,2103793744,1000089944
28.12.2023,Environment Neighbourhoods and Growth,BUXTON BUILDING CONTRACTORS LTD,"27,753.00",CAPITAL PS (LEISURE),CONSTRUCTION MAIN CONTRACT -CERTIFICATED,2103802846,3000000830
29.12.2023,Environment Neighbourhoods and Growth,BUXTON BUILDING CONTRACTORS LTD,"27,753.00",CAPITAL PS (LEISURE),CONSTRUCTION MAIN CONTRACT -CERTIFICATED,2103804054,3000000830
07.12.2023,Environment Neighbourhoods and Growth,KENT COUNTY COUNCIL - LASER,"27,638.40",PECKHAM PULSE LEISURE CENTRE,ELECTRICITY,5902611896,1000012926
18.12.2023,Children and Adults,ANCHOR TRUST,"27,519.05",PHY LTS 65+,"MAND STATUTORY CHARGES, RESIDENTIAL",2103800075,11257534
04.12.2023,Children and Adults,BLOOM PROCUREMENT SERVICES LTD,"27,500.00",CAPITAL PS (EDUCATION),CONSTRUCTION FEES,5902611162,1000082531
27.12.2023,Children and Adults,SMART START NURSERY,"27,444.00",NURSERY ED GRANT 3 AND 4 YR OLDS,GRANTS,2103802054,1000056317
21.12.2023,Environment Neighbourhoods and Growth,KENT COUNTY COUNCIL - LASER,"27,419.89",STREET LIGHTING REACTIVE,ELECTRICITY,5902614418,1000012926
20.12.2023,Children and Adults,CAMELOT PRIMARY SCHOOL,"27,370.56",FREE HEALTHY SCHOOL MEALS,EARLY YEARS - 3 AND 4 YEAR OLDS,2103800421,5001000014
22.12.2023,Housing,HOMES 2 LET UK LTD,"27,348.20",NIGHTLY TA (NSC),EXTERNAL AGENCIES AND BODIES,5902614672,1000079868
08.12.2023,Children and Adults,INTEGRATED FOSTERING SERVICES LTD,"27,226.99",FRIENDS & FAMILY FOSTERING,EXTERNAL AGENCIES AND BODIES,2103794470,1000082605
18.12.2023,Children and Adults,HC-ONE LTD (TOWER BRIDGE CARE HOME),"27,201.36",MEM LTS 65+,RESIDENTIAL CARE,2103799641,1000067670
04.12.2023,DSO,ARMINA LTD,"27,193.04",PECKHAM & DULWICH DD,OTHER CONTRACTORS,2103792638,3000002121
19.12.2023,Corporate,DULWICH WOOD PRIMARY SCHOOL,"27,136.71",EDUCATION VAT INPUTS,VAT CONTROL ACCOUNT,2103800351,5001000042
27.12.2023,Children and Adults,LOGICOUS LTD,"27,134.63",NURSERY ED GRANT 3 AND 4 YR OLDS,GRANTS,2103801984,1000073852
27.12.2023,Environment Neighbourhoods and Growth,HODGE JONES & ALLEN SOLICITORS,"26,964.69",SASBU,LEGAL FEES & COURT COSTS,5902614816,11011881
06.12.2023,Children and Adults,TUTELAGE CARE GROUP LTD,"26,845.44",CHILDREN�S RESID,RESIDENTIAL CARE,2103793737,1000088232
27.12.2023,Children and Adults,CHILDHOOD FIRST,"26,739.71",CHILDREN�S RESID,RESIDENTIAL CARE,2103803691,1000076330
22.12.2023,Children and Adults,FLEET TUTORS,"26,689.00",ALTERNATIVE PROVISION,EXTERNAL AGENCIES AND BODIES,5902614494,1000044820
29.12.2023,Environment Neighbourhoods and Growth,CAMBRIDGE ENVIRONMENTAL RESEARCH,"26,550.00",CAPITAL PS (LEISURE),"PLANT, MACHINERY & EQUIPMENT ACQUISITION",5902615161,1000004793
27.12.2023,Children and Adults,1ST PLACE CHILDREN & PARENTS CENTRE,"26,417.63",NURSERY ED GRANT 3 AND 4 YR OLDS,GRANTS,2103801979,1000049952
27.12.2023,Children and Adults,GOOSE GREEN PRIMARY AND NURSERY SCHOOL,"26,383.50",NURSERY ED GRANT 3 AND 4 YR OLDS,GRANTS,2103802011,1000070613
16.12.2023,Environment Neighbourhoods and Growth,KELTBRAY LTD,"26,383.20",CAPITAL PS (REGEN),CONSTRUCTION FEES,5902612280,1000075518
11.12.2023,Children and Adults,INTEGRATED FOSTERING SERVICES LTD,"26,348.70",FRIENDS & FAMILY FOSTERING,EXTERNAL AGENCIES AND BODIES,2103794600,1000082605
11.12.2023,Children and Adults,THE KENNEDY AND ELLIOTT PARTNERSHIP,"26,313.74",CHILDREN�S RESID,RESIDENTIAL CARE,2103794593,1000089711
18.12.2023,Environment Neighbourhoods and Growth,CYCLE CONFIDENT LTD,"26,013.09",NON LCN CYCLE TRAINING,PROFESSIONAL FEES,5902612894,1000070228
13.12.2023,Children and Adults,HM PRISON & PROBATION SERVICE,"25,978.00",REMAND - YDA STC & SCH,RESIDENTIAL CARE,2103795624,1000083827
08.12.2023,Environment Neighbourhoods and Growth,SITTARA LTD,"25,919.00",NO RECOURSE TO PUBLIC FUNDS,ACCOMMODATION CHARGES,5902612061,1000080857
21.12.2023,Environment Neighbourhoods and Growth,KENT COUNTY COUNCIL - LASER,"25,863.45",STREET LIGHTING REACTIVE,ELECTRICITY,5902614418,1000012926
21.12.2023,Children and Adults,MITIE PROPERTY SERVICES (UK) LTD,"25,757.75",CAPITAL PS (EDUCATION),CONSTRUCTION,2103802088,4010766
27.12.2023,Children and Adults,TUTELAGE CARE HARTLEY LTD,"25,735.39",CHILDREN�S RESID,RESIDENTIAL CARE,2103803709,1000088664
19.12.2023,Corporate,TUKE SCHOOL,"25,712.56",EDUCATION VAT INPUTS,VAT CONTROL ACCOUNT,2103800335,5001000097
27.12.2023,Children and Adults,LONDON EARLY YEARS FOUNDATION,"25,635.85",NURSERY ED GRANT 3 AND 4 YR OLDS,GRANTS,2103801990,1000077919
27.12.2023,Children and Adults,CHERRY GARDEN SCHOOL,"25,608.33",TEACHERS PAY GRANT,SCHOOLS CAPITATION,2103803102,5001000020
11.12.2023,Housing,SK HOUSING LTD,"25,451.00",NIGHTLY TA (NSC),EXTERNAL AGENCIES AND BODIES,5902612325,1000070716
05.12.2023,Environment Neighbourhoods and Growth,CENTRAL BUILDERS & SCAFFOLDING SERVICES LTD,"25,450.00",CAPITAL PS (REGEN),CONSTRUCTION MAIN CONTRACT,2103793145,3000002247
13.12.2023,Housing,SILK & MACKMAN SERVICES LTD,"25,389.10",EXTRA CARE,SECURITY SERVICES,5902612873,1000035282
22.12.2023,Housing,FAITHFUL & GOULD,"25,328.30",CAPITAL PS (HRA),CONSTRUCTION FEES - EMPLOYERS AGENT,5902613351,1000061390
06.12.2023,Children and Adults,KATTZ (YH) LTD,"25,231.42",RESID PARENT ASSESS,RESIDENTIAL CARE,2103793732,1000090473
07.12.2023,Environment Neighbourhoods and Growth,KENT COUNTY COUNCIL - LASER,"25,215.86",PECKHAM PULSE LEISURE CENTRE,ELECTRICITY,5902611898,1000012926
13.12.2023,Children and Adults,HM PRISON & PROBATION SERVICE,"25,140.00",REMAND - YDA STC & SCH,RESIDENTIAL CARE,2103795623,1000083827
13.12.2023,Housing,EQUANS REGENERATION (APOLLO) LTD,"25,035.31",CAPITAL PS (HRA),CONSTRUCTION MAIN CONTRACT -CERTIFICATED,2103795011,4000449
13.12.2023,Children and Adults,ALLPAY LTD (CHILDREN - PETTY CASH),"25,000.00",C & F FINANCE TEAM,OTHER PAYMENTS FOR CLIENTS,5902612954,1000079888
13.12.2023,Children and Adults,ALLPAY LTD (CHILDREN - INSTANT ISSU,"25,000.00",C & F FINANCE TEAM,OTHER PAYMENTS FOR CLIENTS,5902612956,1000079883
22.12.2023,Children and Adults,KIDS,"25,000.00",PORTAGE,CONSULTANTS SERVICES,5902614540,1000030036
11.12.2023,Children and Adults,BLANDFORD HOUSE UK LTD,"24,996.43",DISABILITIES LAC,EXTERNAL AGENCIES AND BODIES,2103794591,1000088662
04.12.2023,Strategy and Communities,GATE ONE LIMITED,"24,950.00",CORPORATE & DEPARTMENTAL EXPENDITURE,CONSULTANTS SERVICES,5902610558,1000090308
20.12.2023,Children and Adults,DULWICH WOOD PRIMARY SCHOOL,"24,942.94",FREE HEALTHY SCHOOL MEALS,EARLY YEARS - 3 AND 4 YEAR OLDS,2103800425,5001000042
13.12.2023,Children and Adults,TCOM ENGLAND CIC LTD,"24,900.00",CLINICAL SERVICE,TRAINING,5902612831,1000088240
06.12.2023,Finance,INFOSYS LIMITED,"24,785.00",CAPITAL PS (STRAT SERV),ICT ACQUISITION,5902611552,1000088973
11.12.2023,Children and Adults,INTEGRATED FOSTERING SERVICES LTD,"24,771.30",FRIENDS & FAMILY FOSTERING,EXTERNAL AGENCIES AND BODIES,2103794601,1000082605
06.12.2023,Children and Adults,OWNLIFE RESIDENTIAL LTD,"24,428.57",CHILDREN�S RESID,RESIDENTIAL CARE,2103793739,1000085398
15.12.2023,Housing,LONDON CARE LTD,"24,154.20",CAPITAL PS (HRA),CONSTRUCTION MAIN CONTRACT -CERTIFICATED,5902612060,1000003398
03.12.2023,Environment Neighbourhoods and Growth,PEDDLE MY WHEELS LTD,"24,000.00",STREETS FOR PEOPLE - CYCLING,MISCELLANEOUS RECHARGES,5902610300,1000083767
18.12.2023,Housing,A & E ELKINS LTD,"23,839.29",A&E ELKINS,I-WORLD CONTRACTORS HOLDING ACCOUNT,2103798702,4012501
19.12.2023,Corporate,SOUTHWARK PARK PRIMARY SCHOOL,"23,756.29",EDUCATION VAT INPUTS,VAT CONTROL ACCOUNT,2103800401,5001000062
14.12.2023,Housing,FINEFAIR LTD,"23,619.30",NIGHTLY TA (NSC),EXTERNAL AGENCIES AND BODIES,5902613003,1000075570
12.12.2023,Children and Adults,DULWICH WOOD CHILDRENS CENTRE,"23,571.00",DULWICH WOOD NURSERY SCHOOL,EARLY YEARS - 3 AND 4 YEAR OLDS,5902612662,5001000099
08.12.2023,DSO,J KASH LTD,"23,525.82",DAMP & MOULD TEAM,OTHER CONTRACTORS,2103794505,3000002219
19.12.2023,Corporate,ALBION PRIMARY SCHOOL,"23,521.68",EDUCATION VAT INPUTS,VAT CONTROL ACCOUNT,2103800337,5001000000
19.12.2023,Housing,DUCTCLEAN (UK) LTD,"23,520.86",DUCTCLEAN,I-WORLD CONTRACTORS HOLDING ACCOUNT,2103800412,3000001635
28.12.2023,Housing,LONDON BOROUGH OF BRENT,"23,311.00",CAPITAL PS (HOUSING GF),ICT ACQUISITION,5902614448,1000064734
19.12.2023,Corporate,PHOENIX PRIMARY SCHOOL,"23,206.55",EDUCATION VAT INPUTS,VAT CONTROL ACCOUNT,2103800357,5001000032
20.12.2023,Environment Neighbourhoods and Growth,LEE VALLEY REGIONAL PARK AUTHORITY,"23,113.31",LEE VALLEY LEVY,LEVIES,5902614141,11020407
29.12.2023,Housing,LOXAL SECURITY LTD,"23,100.00",TA ESTATE VOIDS,PAYMENTS FOR PROPERTY MANAGEMENT SERVS,5902614455,1000070144
27.12.2023,Children and Adults,LILIES DAY NURSERY,"23,039.25",NURSERY ED GRANT 3 AND 4 YR OLDS,GRANTS,2103802022,1000078155
29.12.2023,Environment Neighbourhoods and Growth,CAMBRIDGE ENVIRONMENTAL RESEARCH,"23,010.00",CAPITAL PS (LEISURE),"PLANT, MACHINERY & EQUIPMENT ACQUISITION",5902615148,1000004793
08.12.2023,Environment Neighbourhoods and Growth,HOMELY HOUSING LETS LTD,"23,007.60",NO RECOURSE TO PUBLIC FUNDS,ACCOMMODATION CHARGES,5902612066,1000050013
19.12.2023,Environment Neighbourhoods and Growth,ASBESTOS SOLUTIONS LIMITED,"23,000.00",CAPITAL PS (REGEN),CONSTRUCTION MAIN CONTRACT,2103800318,3000002114
04.12.2023,DSO,ARMINA LTD,"22,976.01",TASK TEAM & HAT,OTHER CONTRACTORS,2103792638,3000002121
18.12.2023,Housing,DUCTCLEAN (UK) LTD,"22,810.99",DUCTCLEAN,I-WORLD CONTRACTORS HOLDING ACCOUNT,2103798713,3000001635
21.12.2023,Environment Neighbourhoods and Growth,KENT COUNTY COUNCIL - LASER,"22,644.74",STREET LIGHTING REACTIVE,ELECTRICITY,5902614418,1000012926
24.12.2023,Environment Neighbourhoods and Growth,F M CONWAY LTD,"22,624.05",CAPITAL PS (LEISURE),CONSTRUCTION,2103800711,4001384
20.12.2023,Children and Adults,ST JOSEPHS RC JUNIOR  SCHOOL,"22,576.35",FREE HEALTHY SCHOOL MEALS,EARLY YEARS - 3 AND 4 YEAR OLDS,2103800453,5001000017
18.12.2023,Children and Adults,JOHN F HUNT REGENERATION LTD,"22,524.53",CAPITAL PS (EDUCATION),CONSTRUCTION SITE COSTS,2103798276,3000002170
19.12.2023,Environment Neighbourhoods and Growth,INDO LIGHTING LTD,"22,494.00",PUBLIC LIGHTING,MATERIALS,5902613894,1000063084
27.12.2023,Children and Adults,LONDON EARLY YEARS FOUNDATION,"22,469.65",NURSERY ED GRANT 3 AND 4 YR OLDS,GRANTS,2103802055,1000077919
27.12.2023,Children and Adults,FRAMEWORK HOUSING ASSOCIATION,"22,230.00",TIER 4 SERVICES,OTHER CONTRACTORS,5902614839,1000086098
29.12.2023,Environment Neighbourhoods and Growth,METIS CONSULTANTS LIMITED,"22,201.92",STREETS FOR PEOPLE - WALKING,CONSULTANTS SERVICES,5902615373,1000086330
11.12.2023,Children and Adults,V-CARE HOMES (UK) LIMITED,"22,178.57",CHILDREN�S RESID,RESIDENTIAL CARE,2103794594,1000090470
12.12.2023,Children and Adults,JOHN RUSKIN PRIMARY SCHOOL,"22,169.00",NURSERY ED GRANT 3 AND 4 YR OLDS,EARLY YEARS - 3 AND 4 YEAR OLDS,5902612532,5001000040
19.12.2023,Children and Adults,JOHN F HUNT REGENERATION LTD,"22,156.42",CAPITAL PS (EDUCATION),CONSTRUCTION SITE COSTS,2103800315,3000002170
18.12.2023,Children and Adults,DIAGRAMA HEALTH CARE,"22,150.80",LD LTS 18-64,RESIDENTIAL CARE,2103800107,1000075492
03.12.2023,Finance,POST OFFICE LTD,"22,076.30",ENERGY BILLS REBATE GRANT,EXTERNAL AGENCIES AND BODIES,5902610670,1000069858
27.12.2023,Children and Adults,HAYMERLE SCHOOL,"22,035.08",TEACHERS PAY GRANT,SCHOOLS CAPITATION,2103803099,5001000045
12.12.2023,Children and Adults,THE GROVE CHILDRENS CENTRE,"21,996.00",THE GROVE NURSERY SCHOOL,EARLY YEARS - 3 AND 4 YEAR OLDS,5902612647,5001000090
19.12.2023,Corporate,BRUNSWICK PARK PRIMARY SCHOOL,"21,993.43",EDUCATION VAT INPUTS,VAT CONTROL ACCOUNT,2103800352,5001000013
04.12.2023,Housing,BEACON PARTNERSHIP LLP,"21,920.00",DEVELOPMENT DELIVERY,CONSULTANTS SERVICES,5902611085,1000082300
27.12.2023,Children and Adults,ROCKINGHAM COMMUNITY DAY NURSERY,"21,891.38",NURSERY ED GRANT 3 AND 4 YR OLDS,GRANTS,2103802047,1095826
24.12.2023,Environment Neighbourhoods and Growth,KENT COUNTY COUNCIL - LASER,"21,861.92",DULWICH LEISURE CENTRE,GAS,5902614075,1000012926
27.12.2023,Children and Adults,1ST PLACE CHILDREN & PARENTS CENTRE,"21,713.63",NURSERY ED GRANT 3 AND 4 YR OLDS,GRANTS,2103801978,1000049952
28.12.2023,Children and Adults,INTERPRETING DIRECT CO (UK) LTD,"21,705.00",CENTRAL SUPPORT,INTERPRETING SERVICES,5902615066,1000070133
07.12.2023,Children and Adults,REDACTED PERSONAL DATA,"21,700.00",CHILDREN�S RESID,RESIDENTIAL CARE,2103794201,1000057909
21.12.2023,Children and Adults,AMBITIOUS ABOUT AUTISM,"21,630.56",NMSS/ INDEP SPECIAL,STATEMENTED FEES,2103802740,1000035784
27.12.2023,Children and Adults,ALLEYNS JUNIOR SCHOOL,"21,586.50",NURSERY ED GRANT 3 AND 4 YR OLDS,GRANTS,2103801981,1000020848
27.12.2023,Children and Adults,LITTLE JUNGLE (U.K.) LIMITED,"21,586.50",NURSERY ED GRANT 3 AND 4 YR OLDS,GRANTS,2103802028,1000067064
20.12.2023,Children and Adults,ALFRED SALTER PRIMARY SCHOOL,"21,582.14",FREE HEALTHY SCHOOL MEALS,EARLY YEARS - 3 AND 4 YEAR OLDS,2103800417,5001000005
08.12.2023,Environment Neighbourhoods and Growth,ZFA ACCOMMODATION LTD,"21,550.00",NO RECOURSE TO PUBLIC FUNDS,ACCOMMODATION CHARGES,5902612069,1000082620
25.12.2023,Governance and Assurance,KENT COUNTY COUNCIL - LASER,"21,525.48",QUEENS RD 1 (BLOCK F),ELECTRICITY,5902614702,1000012926
19.12.2023,Environment Neighbourhoods and Growth,INDO LIGHTING LTD,"21,516.00",PUBLIC LIGHTING,MATERIALS,5902613893,1000063084
18.12.2023,Children and Adults,SOUTH EAST LONDON BAPTIST HOME,"21,505.00",PHY LTS 18-64,OTHER PAYMENTS FOR CLIENTS,2103786792,1670766
27.12.2023,Children and Adults,HEADSTART RESIDENTIAL CARE LIMITED,"21,478.66",CHILDREN�S RESID,RESIDENTIAL CARE,2103803693,1000088836
27.12.2023,Children and Adults,NEWLANDS ACADEMY,"21,439.54",TEACHERS PAY GRANT,SCHOOLS CAPITATION,2103803103,1000072567
21.12.2023,Environment Neighbourhoods and Growth,KENT COUNTY COUNCIL - LASER,"21,398.72",STREET LIGHTING REACTIVE,ELECTRICITY,5902614418,1000012926
20.12.2023,Children and Adults,MICHAEL FARADAY PRIMARY SCHOOL,"21,376.35",FREE HEALTHY SCHOOL MEALS,EARLY YEARS - 3 AND 4 YEAR OLDS,2103800435,5001000048
27.12.2023,Children and Adults,THE CALDECOTT FOUNDATION,"21,367.86",CHILDREN�S RESID,RESIDENTIAL CARE,2103803699,1000074757
19.12.2023,DSO,CRATUS BUILDING SERVICES LIMITED,"21,333.06",SR TEMPORARY ACCOMMODATION DD,OTHER CONTRACTORS,2103800698,3000001055
28.12.2023,Environment Neighbourhoods and Growth,FAITHFUL & GOULD,"21,322.20",CAPITAL PS (REGEN),CONSTRUCTION FEES  - EXTERNAL,5902614858,1000061390
04.12.2023,DSO,J KASH LTD,"21,310.10",SR COMMUNAL - DELIVERY TEAM,OTHER CONTRACTORS,2103792606,3000002219
24.12.2023,Governance and Assurance,KENT COUNTY COUNCIL - LASER,"21,259.51",160 TOOLEY ST.,GAS,5902613834,1000012926
20.12.2023,Children and Adults,ST JOHNS & ST CLEMENTS CE SCHOOL,"21,193.72",FREE HEALTHY SCHOOL MEALS,EARLY YEARS - 3 AND 4 YEAR OLDS,2103800451,5001000073
08.12.2023,Housing,SILK & MACKMAN SERVICES LTD,"21,041.20",TA HOSTELS,SECURITY SERVICES,2103794503,3000001590
28.12.2023,Children and Adults,STANDAGE & CO LTD,"21,039.38",CAPITAL PS (SOC SERV),CONSTRUCTION MAIN CONTRACT -CERTIFICATED,2103803125,4002817
07.12.2023,Children and Adults,REDACTED PERSONAL DATA,"21,000.00",CHILDREN�S RESID,RESIDENTIAL CARE,2103794100,1000057909
27.12.2023,Children and Adults,THE BEECHES NURSERY GROUP LTD,"20,986.88",NURSERY ED GRANT 3 AND 4 YR OLDS,GRANTS,2103802005,11215743
08.12.2023,Children and Adults,ACCESS MOBILITY TRANSPORT LTD,"20,908.40",SCH TRANS � TRAVEL,CAB FARES,5902612169,1000074637
19.12.2023,Corporate,THE ST THOMAS THE APOSTLE COLLEGE,"20,875.54",EDUCATION VAT INPUTS,VAT CONTROL ACCOUNT,2103800367,5001000074
20.12.2023,Children and Adults,ENGLISH MARTYRS RC PRIMARY SCHOOL,"20,856.09",FREE HEALTHY SCHOOL MEALS,EARLY YEARS - 3 AND 4 YEAR OLDS,2103800426,5001000030
07.12.2023,Children and Adults,FRESH START CARE SOLUTIONS LTD,"20,785.70",SEMI-IND LAC 16-17,EXTERNAL AGENCIES AND BODIES,2103794106,1000070537
19.12.2023,Children and Adults,GOODMAN NASH LIMITED,"20,759.05",PROPERTY MANAGEMENT,PROFESSIONAL FEES,5902613976,1000032542
06.12.2023,Environment Neighbourhoods and Growth,C S G (USHERS) LTD,"20,755.50",TREES TERM CONTRACT,TREE MAINTENANCE,5902611528,1000073203
18.12.2023,Children and Adults,HESLEY GROUP LIMITED,"20,642.16",LD LTS 18-64,SUPPORTED LIVING,2103799588,1000089729
21.12.2023,Children and Adults,AMBITIOUS ABOUT AUTISM,"20,578.79",NMSS/ INDEP SPECIAL,STATEMENTED FEES,2103802746,1000035784
21.12.2023,Children and Adults,AMBITIOUS ABOUT AUTISM,"20,578.79",NMSS/ INDEP SPECIAL,STATEMENTED FEES,2103802752,1000035784
27.12.2023,Children and Adults,LITTLE RABBIT DAY NURSERY,"20,421.38",NURSERY ED GRANT 3 AND 4 YR OLDS,GRANTS,2103802031,1000084320
12.12.2023,Children and Adults,BESSEMER GRANGE PRIMARY SCHOOL,"20,411.00",NURSERY ED GRANT 3 AND 4 YR OLDS,EARLY YEARS - 3 AND 4 YEAR OLDS,5902612454,5001000009
07.12.2023,Children and Adults,ELEVEN D'S LTD,"20,400.00",SEMI-IND LAC 16-17,EXTERNAL AGENCIES AND BODIES,2103794206,1000089531
27.12.2023,Children and Adults,GALAXY EXPLORERS DAY NURSERY LIMITED,"20,387.25",NURSERY ED GRANT 3 AND 4 YR OLDS,GRANTS,2103802007,1000085260
02.12.2023,Governance and Assurance,KENT COUNTY COUNCIL - LASER,"20,374.63",QUEENS RD 1 (BLOCK F),ELECTRICITY,5902610232,1000012926
27.12.2023,Children and Adults,ROCKSTEADY CARE LTD,"20,366.67",CHILDREN�S RESID,RESIDENTIAL CARE,2103803704,1000089573
10.12.2023,Environment Neighbourhoods and Growth,FRASER BROWN MACKENNA LTD,"20,294.25",CAPITAL PS (REGEN),CONSTRUCTION FEES,5902611229,1000081651
19.12.2023,DSO,BUDMAX CONSTRUCTION LTD,"20,189.71",SR COMMUNAL - DELIVERY TEAM,OTHER CONTRACTORS,2103800691,3000001936
06.12.2023,Environment Neighbourhoods and Growth,CENTRAL BUILDERS & SCAFFOLDING SERVICES LTD,"20,000.00",CAMBERWELL LEISURE CENTRE,BUILDING R&M,2103793149,3000002247
08.12.2023,Environment Neighbourhoods and Growth,CENTRAL BUILDERS & SCAFFOLDING SERVICES LTD,"20,000.00",CAMBERWELL LEISURE CENTRE,BUILDING R&M,2103794502,3000002247
15.12.2023,Children and Adults,HEADSTART EDUCATIONAL ADOLESCENT SERVICE LTD,"20,000.00",NMSS/ INDEP SPECIAL,STATEMENTED FEES,2103798244,1000089122
04.12.2023,Environment Neighbourhoods and Growth,SWK DAY CTR FOR ASYLUM SEEKERS,"20,000.00",ASYLUM DISPERSAL,GRANTS,5902611081,1000040491
13.12.2023,Children and Adults,HUBBUB FOUNDATION UK,"20,000.00",SUSTAINABLE FOOD,EXTERNAL AGENCIES AND BODIES,5902612979,1000082298
27.12.2023,Children and Adults,LIONCARE LIMITED,"19,938.76",CHILDREN�S RESID,RESIDENTIAL CARE,2103803702,1000065330
25.12.2023,Environment Neighbourhoods and Growth,C S G (USHERS) LTD,"19,838.00",TREES TERM CONTRACT,TREE MAINTENANCE,5902614433,1000073203
06.12.2023,Children and Adults,CHANNELS & CHOICES FOSTERING LTD,"19,800.00",CHILDREN�S RESID,RESIDENTIAL CARE,2103793738,1000052855
20.12.2023,Housing,POWER ON CONNECTIONS LTD,"19,767.23",CAPITAL PS (HRA),UTILITIES INSTALLATION,5902614057,1000083135
04.12.2023,DSO,SANDERSONS BUILDING SERVICES LTD,"19,756.55",SR - VOIDS TEAM,OTHER CONTRACTORS,2103792595,3000002065
12.12.2023,Children and Adults,GOODRICH PRIMARY SCHOOL,"19,625.00",NURSERY ED GRANT 3 AND 4 YR OLDS,EARLY YEARS - 3 AND 4 YEAR OLDS,5902612499,5001000028
19.12.2023,Corporate,GOODRICH PRIMARY SCHOOL,"19,587.93",EDUCATION VAT INPUTS,VAT CONTROL ACCOUNT,2103800374,5001000028
12.12.2023,Housing,BETHEL ROCK LTD,"19,556.31",PSL PLACEMENTS,EXTERNAL AGENCIES AND BODIES,5902612797,1000080864
05.12.2023,Environment Neighbourhoods and Growth,IMPERIAL COLLEGE PROJECTS LTD,"19,540.00",ENVIRONMENTAL PROTECTION,OTHER CONTRACTORS,5902611347,1000080106
11.12.2023,Environment Neighbourhoods and Growth,ROYAL BOROUGH OF WINDSOR & MAIDENHEAD,"19,505.00",LIBRARIES DEVELOPMENT,SUBSCRIPTIONS,5902612326,1000054837
27.12.2023,Children and Adults,THE FRUIT TREE DAY NURSERY,"19,504.88",NURSERY ED GRANT 3 AND 4 YR OLDS,GRANTS,2103802063,1000072492
13.12.2023,Finance,UIPATH LTD,"19,475.44",CAPITAL PS (STRAT SERV),ICT ACQUISITION,5902612910,1000088352
17.12.2023,Children and Adults,LONDON CARE LTD,"19,323.36",TRANSFORMING COM E,HOMECARE - C&V,5902612710,1000003398
18.12.2023,Children and Adults,"WILMINGTON MANOR NURSING HOME, BUPA","19,318.65",PHY LTS 65+,NURSING PLACEMENTS FEES,2103800201,1000064678
18.12.2023,Children and Adults,NATIONAL LITERACY TRUST,"19,250.00",FAMILY HUBS GRANT,EXTERNAL AGENCIES AND BODIES,5902613512,1000049473
18.12.2023,Children and Adults,NATIONAL LITERACY TRUST,"19,250.00",FAMILY HUBS GRANT,EXTERNAL AGENCIES AND BODIES,5902613512,1000049473
27.12.2023,Children and Adults,ROTHERHITHE PRIMARY SCHOOL,"19,188.00",NURSERY ED GRANT 3 AND 4 YR OLDS,GRANTS,2103802049,1000089862
19.12.2023,Corporate,IVYDALE PRIMARY SCHOOL,"19,138.26",EDUCATION VAT INPUTS,VAT CONTROL ACCOUNT,2103800376,5001000038
27.12.2023,Children and Adults,BETHLEM & MAUDSLEY HOSPITAL SCHOOL,"19,057.37",TEACHERS PAY GRANT,SCHOOLS CAPITATION,2103803098,5001000010
07.12.2023,Environment Neighbourhoods and Growth,F M CONWAY LTD,"19,029.01",CAPITAL PS (LEISURE),CONSTRUCTION,2103793078,4001384
12.12.2023,Children and Adults,THE GROVE CHILDRENS CENTRE,"18,943.00",THE GROVE NURSERY SCHOOL,EARLY YEARS - 3 AND 4 YEAR OLDS,5902612649,5001000090
21.12.2023,Environment Neighbourhoods and Growth,KENT COUNTY COUNCIL - LASER,"18,915.10",STREET LIGHTING REACTIVE,ELECTRICITY,5902614418,1000012926
22.12.2023,Environment Neighbourhoods and Growth,CITY OF LONDON CORPORATION,"18,878.99",WASTE DISPOSAL,OTHER CONTRACTORS,5902614622,1000052061
11.12.2023,Children and Adults,HIGHVIEW CARE LTD,"18,857.10",CHILDREN�S RESID,RESIDENTIAL CARE,2103794596,1000089728
14.12.2023,Housing,HILTON INTERNATIONAL HOTELS (UK) LTD,"18,837.00",NIGHTLY TA (NSC),EXTERNAL AGENCIES AND BODIES,5902611576,1000052384
20.12.2023,Children and Adults,JOHN RUSKIN PRIMARY SCHOOL,"18,824.24",FREE HEALTHY SCHOOL MEALS,EARLY YEARS - 3 AND 4 YEAR OLDS,2103800433,5001000040
18.12.2023,Children and Adults,THE BEECHES UK LTD,"18,776.88",LD LTS 18-64,SUPPORTED LIVING,2103800094,1000083173
18.12.2023,Finance,LAND USE CONSULTANTS LTD,"18,773.61",STRATEGIC APPLICATIONS,PROFESSIONAL FEES,5902613669,11132526
12.12.2023,Children and Adults,JOHN RUSKIN PRIMARY SCHOOL,"18,750.00",LBS MAINSTREAM,HIGH NEEDS - TOP UP FUNDING,5902612537,5001000040
27.12.2023,Children and Adults,JOHN DONNE PRIMARY SCHOOL,"18,680.63",NURSERY ED GRANT 3 AND 4 YR OLDS,GRANTS,2103802015,1000073253
18.12.2023,Children and Adults,ALWAYS INCLUSIVE LTD,"18,620.00",LD LTS 18-64,SUPPORTED LIVING,2103800081,1000088268
27.12.2023,Children and Adults,MAGIC ROUNDABOUT NURSERIES LTD,"18,599.63",NURSERY ED GRANT 3 AND 4 YR OLDS,GRANTS,2103802034,1000045128
06.12.2023,Children and Adults,KATTZ (YH) LTD,"18,563.14",RESID PARENT ASSESS,RESIDENTIAL CARE,2103793730,1000090473
18.12.2023,Children and Adults,POSITIVE SOLUTIONS KENT,"18,550.72",LD LTS 18-64,RESIDENTIAL CARE,2103800170,1000090389
19.12.2023,Corporate,ALFRED SALTER PRIMARY SCHOOL,"18,452.83",EDUCATION VAT INPUTS,VAT CONTROL ACCOUNT,2103800341,5001000005
12.12.2023,Environment Neighbourhoods and Growth,INFINITY NETWORKS LTD,"18,326.00",CAPITAL PS (REGEN),ICT ACQUISITION,5902612727,1000035571
27.12.2023,Children and Adults,JUDITH KERR PRIMARY SCHOOL,"18,265.50",NURSERY ED GRANT 3 AND 4 YR OLDS,GRANTS,2103802018,1000073200
22.12.2023,Housing,HARROW GREEN LTD,"18,244.35",RESIDENT SERVICES BUSINESS SUPPORT,REMOVAL EXPENSES,5902614342,1000076673
06.12.2023,Children and Adults,KEYS PCE LTD,"18,240.00",CHILDREN�S RESID,RESIDENTIAL CARE,2103793742,1000080090
27.12.2023,Children and Adults,KEYS PCE LTD,"18,240.00",CHILDREN�S RESID,RESIDENTIAL CARE,2103803695,1000080090
20.12.2023,Children and Adults,CRAWFORD PRIMARY SCHOOL,"18,224.24",FREE HEALTHY SCHOOL MEALS,EARLY YEARS - 3 AND 4 YEAR OLDS,2103800424,5001000024
04.12.2023,Housing,C&C BUILDERS LTD,"18,219.12",CAPITAL PS (HOUSING GF),CAPITAL GRANTS,2103793063,3000001986
06.12.2023,Children and Adults,WESTGATE LIFESTYLE PROJECT LTD,"18,214.20",CHILDREN�S RESID,RESIDENTIAL CARE,2103793734,1000089215
12.12.2023,Housing,HOMELY HOUSING LETS LTD,"18,156.00",NIGHTLY TA (NSC),EXTERNAL AGENCIES AND BODIES,5902612691,1000050013
08.12.2023,Housing,LONDON CARE LTD,"18,115.65",CAPITAL PS (HRA),CONSTRUCTION MAIN CONTRACT -CERTIFICATED,5902612043,1000003398
01.12.2023,Finance,PRECISELY SOFTWARE LIMITED,"18,029.32",INCOME MANAGEMENT,SOFTWARE,5902610910,1000088954
11.12.2023,Children and Adults,FRANK BARNES SCHOOL FOR DEAF CHILDREN,"18,027.98",OTHER LA SPECIAL,STATEMENTED FEES,2103794735,1000072261
21.12.2023,Housing,ARCHITECTURAL DECORATORS LTD,"17,990.72",CAPITAL PS (HRA),CONSTRUCTION MAIN CONTRACT -CERTIFICATED,2103802070,3000001065
27.12.2023,Children and Adults,ST. JOSEPH'S RC PRIMARY SCHOOL,"17,988.75",NURSERY ED GRANT 3 AND 4 YR OLDS,GRANTS,2103802059,1000089163
10.12.2023,Environment Neighbourhoods and Growth,KENT COUNTY COUNCIL - LASER,"17,885.48",THE CASTLE CENTRE,GAS,5902611298,1000012926
22.12.2023,Housing,CENTENNIAL PROPERTY LIMITED,"17,874.00",NIGHTLY TA (NSC),EXTERNAL AGENCIES AND BODIES,5902614685,1000083022
12.12.2023,Housing,THAMES VALLEY CONTROLS LTD,"17,842.00",THAMES VALLEY CONTROL,I-WORLD CONTRACTORS HOLDING ACCOUNT,5902612435,1295718
20.12.2023,Children and Adults,ST FRANCIS'S RC PRIMARY SCHOOL,"17,712.66",FREE HEALTHY SCHOOL MEALS,EARLY YEARS - 3 AND 4 YEAR OLDS,2103800446,5001000067
19.12.2023,Environment Neighbourhoods and Growth,NOOMA STUDIO LTD,"17,655.23",CAPITAL PS (REGEN),CONSTRUCTION FEES - ARCHITECT,5902614025,1000088638
20.12.2023,Children and Adults,SOUTHWARK PARK PRIMARY SCHOOL,"17,618.45",FREE HEALTHY SCHOOL MEALS,EARLY YEARS - 3 AND 4 YEAR OLDS,2103800444,5001000062
11.12.2023,Environment Neighbourhoods and Growth,CITYGLEN LTD,"17,583.00",NO RECOURSE TO PUBLIC FUNDS,ACCOMMODATION CHARGES,5902611351,1000026239
07.12.2023,Housing,WALWORTH HOMES LTD,"17,500.00",CAPITAL PS (HRA),CONSTRUCTION FEES  - EXTERNAL,5902611755,1000079197
20.12.2023,Children and Adults,OLIVER GOLDSMITH PRIMARY SCHOOL,"17,495.29",FREE HEALTHY SCHOOL MEALS,EARLY YEARS - 3 AND 4 YEAR OLDS,2103800436,5001000051
03.12.2023,Housing,NIBLOCK (BUILDERS) LTD,"17,483.49",CAPITAL PS (HRA),CONSTRUCTION MAIN CONTRACT -CERTIFICATED,2103791407,3000000235
18.12.2023,Children and Adults,ROSEDENE NURSING HOME,"17,468.80",LD LTS 18-64,RESIDENTIAL CARE,2103799548,1163215
27.12.2023,Children and Adults,MY CHOICE CHILDREN'S HOMES LIMITED,"17,439.71",CHILDREN�S RESID,RESIDENTIAL CARE,2103803700,1000085839
06.12.2023,Children and Adults,CAMERON & COOPER LIMITED,"17,400.00",CHILDREN�S RESID,RESIDENTIAL CARE,2103793735,1000087598
24.12.2023,Environment Neighbourhoods and Growth,KENT COUNTY COUNCIL - LASER,"17,394.61",CAMBERWELL LEISURE CENTRE,ELECTRICITY,5902614104,1000012926
06.12.2023,Children and Adults,KEYS PCE LTD,"17,380.00",CHILDREN�S RESID,RESIDENTIAL CARE,2103793736,1000080090
27.12.2023,Children and Adults,KEYS PCE LTD,"17,380.00",CHILDREN�S RESID,RESIDENTIAL CARE,2103803694,1000080090
04.12.2023,Housing,HSB ENGINEERING INSURANCE SERVICES,"17,370.00",LIFTS,LIFTS,5902611177,1000089047
04.12.2023,DSO,BUDMAX CONSTRUCTION LTD,"17,349.58",SR COMMUNAL - DELIVERY TEAM,OTHER CONTRACTORS,2103792605,3000001936
04.12.2023,Children and Adults,KNOWLEDGE DOCK (UEL) LIMITED,"17,345.30",COMMUNITY HEALTH AMBASSADORS,EXTERNAL AGENCIES AND BODIES,5902610934,1000090487
12.12.2023,Children and Adults,RYE OAK PRIMARY SCHOOL,"17,333.00",LBS RB / SEN UNIT,HIGH NEEDS - TOP UP FUNDING,5902612580,5001000059
12.12.2023,Children and Adults,ALBION PRIMARY SCHOOL,"17,329.00",NURSERY ED GRANT 3 AND 4 YR OLDS,EARLY YEARS - 3 AND 4 YEAR OLDS,5902612440,5001000000
27.12.2023,Children and Adults,S R C COMMUNITY NURSERY,"17,296.50",NURSERY ED GRANT 3 AND 4 YR OLDS,GRANTS,2103802057,1414681
29.12.2023,Housing,HSB ENGINEERING INSURANCE SERVICES,"17,268.25",LIFTS,LIFTS,5902615313,1000089047
06.12.2023,Children and Adults,INTERPRETING DIRECT CO (UK) LTD,"17,232.00",CENTRAL SUPPORT,INTERPRETING SERVICES,5902611669,1000070133
12.12.2023,Housing,THAMES VALLEY CONTROLS LTD,"17,181.00",THAMES VALLEY CONTROL,I-WORLD CONTRACTORS HOLDING ACCOUNT,5902612434,1295718
27.12.2023,Children and Adults,SPECTRA CARE LTD,"17,137.12",DISABILITIES LAC,EXTERNAL AGENCIES AND BODIES,2103803696,1000086280
25.12.2023,Environment Neighbourhoods and Growth,C S G (USHERS) LTD,"17,117.50",TREES TERM CONTRACT,TREE MAINTENANCE,5902614434,1000073203
05.12.2023,Housing,CENTENNIAL PROPERTY LIMITED,"17,103.00",NIGHTLY TA (NSC),EXTERNAL AGENCIES AND BODIES,5902611377,1000083022
05.12.2023,Environment Neighbourhoods and Growth,BUILDING DESIGN PARTNERSHIP LTD,"17,050.00",CAPITAL PS (LEISURE),CONSTR'N SUB CONTRACT - NON CERTIFICATED,5902611254,1000023260
25.12.2023,Environment Neighbourhoods and Growth,KENT COUNTY COUNCIL - LASER,"17,034.88",SEVEN ISLANDS LEISURE CENTRE,ELECTRICITY,5902614060,1000012926
13.12.2023,Environment Neighbourhoods and Growth,PWLC PROJECTS,"17,000.00","ROAD SAFETY EDUCATION,TRAINING&PUBLICITY",MISCELLANEOUS RECHARGES,5902612924,1000079351
27.12.2023,Children and Adults,CTY NURSERY LTD,"16,967.63",NURSERY ED GRANT 3 AND 4 YR OLDS,GRANTS,2103801997,1000063131
27.12.2023,Children and Adults,HORIZON CARE & EDUCATION GROUP LTD,"16,881.67",CHILDREN�S RESID,RESIDENTIAL CARE,2103803721,1000075467
19.12.2023,Corporate,ENGLISH MARTYRS RC PRIMARY SCHOOL,"16,830.91",EDUCATION VAT INPUTS,VAT CONTROL ACCOUNT,2103800398,5001000030
23.12.2023,Environment Neighbourhoods and Growth,LONDON SCHOOL OF MOSAIC,"16,820.00",CAPITAL PS (REGEN),CONSTRUCTION FEES - INTERNAL,5902613637,1000089366
18.12.2023,Children and Adults,WESTCOMBE PARK NURSING HOME,"16,687.39",PHY LTS 65+,NURSING PLACEMENTS FEES,2103799738,1792988
12.12.2023,Housing,HODGE JONES & ALLEN SOLICITORS,"16,666.67",DISREPAIR,PAYMENTS FOR LEGAL SERVICES,2103794809,11011881
21.12.2023,Environment Neighbourhoods and Growth,METIS CONSULTANTS LIMITED,"16,666.67",FLOOD RISK MANAGEMENT,HIGHWAYS TERM CONTRACT,5902612938,1000086330
15.12.2023,Environment Neighbourhoods and Growth,METIS CONSULTANTS LIMITED,"16,666.67",FLOOD RISK MANAGEMENT,HIGHWAYS TERM CONTRACT,5902613438,1000086330
10.12.2023,Environment Neighbourhoods and Growth,GRAEME MASSIE ARCHITECTS LTD,"16,623.75",CAPITAL PS (REGEN),CONSTRUCTION FEES - ARCHITECT,5902611236,1000085622
02.12.2023,Governance and Assurance,IN DIVERSE COMPANY LTD,"16,552.68",HR PAYROLL COSTS,PROFESSIONAL FEES,5902610380,1000089438
22.12.2023,Children and Adults,FAITHFUL & GOULD,"16,500.00",CAPITAL PS (EDUCATION),CONSTRUCTION FEES  - EXTERNAL,5902613384,1000061390
20.12.2023,Corporate,COMBER GROVE PRIMARY SCHOOL,"16,438.45",EDUCATION VAT INPUTS,VAT CONTROL ACCOUNT,2103801556,5001000022
13.12.2023,Children and Adults,HATS GROUP LTD,"16,415.32",SCH TRANS � TRAVEL,CAB FARES,5902612947,1000042743
18.12.2023,Environment Neighbourhoods and Growth,STREETSPACE LIMITED,"16,398.00",CAPITAL PS (LEISURE),CONSTRUCTION FEES - INTERNAL,5902613497,1000087223
07.12.2023,Housing,BUILDING ASSOCIATES LTD,"16,382.65",CAPITAL PS (HRA),CONSTRUCTION MAIN CONTRACT,2103791402,3000002218
18.12.2023,Children and Adults,HIGH VIEW CARE SERVICES LTD,"16,359.22",SUB LTS 18-64,RESIDENTIAL CARE,2103799446,1000065920
18.12.2023,Corporate,GROUP FINANCE SOLUTIONS CONSULTING,"16,350.00",CORPORATE SOFTWARE APPLICATION PROGRAMME,PROFESSIONAL FEES,5902613423,1000090315
23.12.2023,Environment Neighbourhoods and Growth,SOUTH LONDON RENEGADES,"16,346.00",CAPITAL PS (LEISURE),CAPITAL GRANTS,5902613474,1000063575
27.12.2023,Children and Adults,DAISYBROOK LTD,"16,341.43",DISABILITIES LAC,RESIDENTIAL CARE,2103803698,1000088357
27.12.2023,Children and Adults,LONDON EARLY YEARS FOUNDATION,"16,340.55",NURSERY ED GRANT 3 AND 4 YR OLDS,GRANTS,2103801992,1000077919
11.12.2023,Children and Adults,ABINGDON HOUSE SCHOOL PURLEY LTD,"16,300.00",NMSS/ INDEP SPECIAL,STATEMENTED FEES,2103794767,1000090520
21.12.2023,Children and Adults,ABINGDON HOUSE SCHOOL PURLEY LTD,"16,300.00",NMSS/ INDEP SPECIAL,STATEMENTED FEES,2103802783,1000090520
22.12.2023,Children and Adults,RENAISI LTD,"16,279.38",SHORT BREAKS INNV FUND,EXTERNAL AGENCIES AND BODIES,5902614677,1000022051
02.12.2023,Finance,5TH STUDIO,"16,262.22",CANADA WATER,PROFESSIONAL FEES,5902610634,1000068725
07.12.2023,Children and Adults,BURGESS SPORTS,"16,224.00",HOLIDAY ACTIVITIES & FOOD,EXTERNAL AGENCIES AND BODIES,5902611975,1000069532
02.12.2023,Environment Neighbourhoods and Growth,F M CONWAY LTD,"16,219.25",CAPITAL PS (LEISURE),CONSTRUCTION,2103792003,4001384
24.12.2023,Environment Neighbourhoods and Growth,KENT COUNTY COUNCIL - LASER,"16,214.01",CAMBERWELL LEISURE CENTRE,ELECTRICITY,5902614102,1000012926
18.12.2023,Corporate,MARSTON GROUP LTD,"16,212.75",VAT INPUTS - ADJUSTMENTS,VAT CONTROL ACCOUNT,2103798268,1000076638
27.12.2023,Children and Adults,LONDON EARLY YEARS FOUNDATION,"16,189.88",NURSERY ED GRANT 3 AND 4 YR OLDS,GRANTS,2103801986,1000077919
27.12.2023,Children and Adults,JOHN KEATS PRIMARY SCHOOL,"16,189.88",NURSERY ED GRANT 3 AND 4 YR OLDS,GRANTS,2103802016,1000082645
24.12.2023,Environment Neighbourhoods and Growth,KENT COUNTY COUNCIL - LASER,"16,161.64",DULWICH LEISURE CENTRE,ELECTRICITY,5902614093,1000012926
12.12.2023,Governance and Assurance,SODEXO MOTIVATION SOLUTIONS UK LTD,"16,154.08",HR PAYROLL COSTS,OTHER EMPLOYEE EXPENSES,5902612678,1000078322
19.12.2023,Environment Neighbourhoods and Growth,FAITHFUL & GOULD,"16,130.00",CAPITAL PS (REGEN),CONSTRUCTION FEES  - EXTERNAL,5902613805,1000061390
11.12.2023,Environment Neighbourhoods and Growth,DJ & SONS BUILDERS LTD,"16,000.00",DULWICH LEISURE CENTRE,BUILDING R&M,2103794521,3000002178
08.12.2023,Children and Adults,HAVERSTOCK,"15,990.00",CAPITAL PS (EDUCATION),CONSTRUCTION FEES - ARCHITECT,5902612010,1000074288
27.12.2023,Children and Adults,TRINITY CHILD CARE,"15,970.50",NURSERY ED GRANT 3 AND 4 YR OLDS,GRANTS,2103802067,1151305
22.12.2023,DSO,ARMINA LTD,"15,967.63",ROTHERHITHE & BERMONDSEY DD,OTHER CONTRACTORS,2103802839,3000002121
03.12.2023,Strategy and Communities,GATE ONE LIMITED,"15,950.00",CORPORATE & DEPARTMENTAL EXPENDITURE,CONSULTANTS SERVICES,5902610559,1000090308
16.12.2023,Housing,INTERIM PARTNERS LIMITED,"15,750.00",REPAIRS OPERATIONS,CONSULTANTS SERVICES,5902612417,1000089772
19.12.2023,Corporate,KEYWORTH PRIMARY SCHOOL,"15,663.47",EDUCATION VAT INPUTS,VAT CONTROL ACCOUNT,2103800332,5001000041
27.12.2023,Children and Adults,BRIGHT HORIZONS FAMILY SOLUTIONS,"15,653.63",NURSERY ED GRANT 3 AND 4 YR OLDS,GRANTS,2103802040,11294322
04.12.2023,Children and Adults,PHOENIXPLACE,"15,600.00",NMSS/ INDEP SPECIAL,STATEMENTED FEES,2103793066,1000075565
04.12.2023,Children and Adults,PHOENIXPLACE,"15,600.00",NMSS/ INDEP SPECIAL,STATEMENTED FEES,2103793071,1000075565
27.12.2023,Children and Adults,UNDER THE WILLOW NURSERY,"15,590.25",NURSERY ED GRANT 3 AND 4 YR OLDS,GRANTS,2103802051,1000071830
27.12.2023,Children and Adults,RELA SUPPORT SERVICES LTD,"15,588.57",SEMI-IND CARELEAVERS,EXTERNAL AGENCIES AND BODIES,2103803781,1000073128
20.12.2023,Environment Neighbourhoods and Growth,BETTERPOINTS LIMITED,"15,550.00",STREETS FOR PEOPLE - CYCLING,MISCELLANEOUS RECHARGES,5902614211,1000089817
07.12.2023,DSO,SPECTRA-GLAZE SERVICES,"15,535.71",SR COMMUNAL - DELIVERY TEAM,OTHER CONTRACTORS,5902611026,1000077605
15.12.2023,Children and Adults,REDACTED PERSONAL DATA,"15,525.44",LD LTS 18-64,PAYMENTS TO CLIENTS (DIRECT PAYMENTS),2103797219,1000046071
07.12.2023,Children and Adults,CARE2SHARE2 LTD,"15,500.00",CHILDREN�S RESID,EXTERNAL AGENCIES AND BODIES,2103794199,1000086672
27.12.2023,Children and Adults,ACORN CARE & EDUCATION LTD,"15,413.49",CHILDREN�S RESID,RESIDENTIAL CARE,2103803703,1000085841
13.12.2023,Environment Neighbourhoods and Growth,TAAKSVALE HOUSING LTD,"15,361.50",NO RECOURSE TO PUBLIC FUNDS,ACCOMMODATION CHARGES,5902612846,1000073665
12.12.2023,Children and Adults,ST JAMES CE PRIMARY SCHOOL,"15,241.00",NURSERY ED GRANT 3 AND 4 YR OLDS,EARLY YEARS - 3 AND 4 YEAR OLDS,5902612606,5001000070
06.12.2023,Children and Adults,THE DRIVE CARE HOMES LTD,"15,233.61",DISABILITIES LAC,RESIDENTIAL CARE,2103793740,1000003889
04.12.2023,Children and Adults,RIVERSTON SCHOOL,"15,197.00",INDEP MAINSTREAM,STATEMENTED FEES,2103793065,11213696
04.12.2023,Children and Adults,HARVEST CARE GROUP LTD,"15,181.02",SEMI-IND LAC 16-17,EXTERNAL AGENCIES AND BODIES,2103792999,1000079059
12.12.2023,Children and Adults,BRUNSWICK PARK PRIMARY SCHOOL,"15,167.00",LBS RB / SEN UNIT,HIGH NEEDS - TOP UP FUNDING,5902612466,5001000013
12.12.2023,Children and Adults,SNOWSFIELDS PRIMARY SCHOOL,"15,167.00",LBS RB / SEN UNIT,HIGH NEEDS - TOP UP FUNDING,5902612586,5001000061
04.12.2023,Housing,BEACON PARTNERSHIP LLP,"15,158.00",AYLESBURY AGENCY COSTS,PROFESSIONAL FEES,5902611157,1000082300
04.12.2023,Children and Adults,PHOENIXPLACE,"15,140.00",NMSS/ INDEP SPECIAL,STATEMENTED FEES,2103793070,1000075565
04.12.2023,Children and Adults,PHOENIXPLACE,"15,140.00",NMSS/ INDEP SPECIAL,STATEMENTED FEES,2103793075,1000075565
08.12.2023,Housing,BCS (ELECTRICAL & BUILDING SERVICES LTD),"15,138.97",GARAGE REPAIRS,BUILDING R&M,5902612001,1000062321
04.12.2023,Children and Adults,PHOENIXPLACE,"15,105.00",NMSS/ INDEP SPECIAL,STATEMENTED FEES,2103793067,1000075565
04.12.2023,Children and Adults,PHOENIXPLACE,"15,105.00",NMSS/ INDEP SPECIAL,STATEMENTED FEES,2103793069,1000075565
04.12.2023,Children and Adults,PHOENIXPLACE,"15,105.00",NMSS/ INDEP SPECIAL,STATEMENTED FEES,2103793072,1000075565
04.12.2023,Children and Adults,PHOENIXPLACE,"15,105.00",NMSS/ INDEP SPECIAL,STATEMENTED FEES,2103793074,1000075565
12.12.2023,Housing,TEATREE PROPERTY LIMITED,"15,090.00",NIGHTLY TA (NSC),EXTERNAL AGENCIES AND BODIES,5902612783,1000089741
21.12.2023,Housing,FINEFAIR LTD,"15,067.75",PSL PLACEMENTS,EXTERNAL AGENCIES AND BODIES,5902614264,1000075570
19.12.2023,Housing,AJM ADAPTIONS LTD,"15,030.00",CAPITAL PS (HOUSING GF),CAPITAL GRANTS,5902613748,1000080297
07.12.2023,Children and Adults,CARE2SHARE2 LTD,"15,000.00",CHILDREN�S RESID,EXTERNAL AGENCIES AND BODIES,2103794200,1000086672
13.12.2023,Children and Adults,ALLPAY LTD (CHILDRENS ALLOWANCE),"15,000.00",C & F FINANCE TEAM,OTHER PAYMENTS FOR CLIENTS,5902612952,1000080484
30.12.2023,Children and Adults,BLOOM PROCUREMENT SERVICES LTD,"15,000.00",CAPITAL PS (EDUCATION),CONSTRUCTION FEES  - EXTERNAL,5902614805,1000082531
15.12.2023,Children and Adults,REDACTED PERSONAL DATA,"14,990.08",LD LTS 18-64,PAYMENTS TO CLIENTS (DIRECT PAYMENTS),2103797025,1000070120
04.12.2023,Children and Adults,PHOENIXPLACE,"14,950.00",NMSS/ INDEP SPECIAL,STATEMENTED FEES,2103793068,1000075565
04.12.2023,Children and Adults,PHOENIXPLACE,"14,950.00",NMSS/ INDEP SPECIAL,STATEMENTED FEES,2103793073,1000075565
18.12.2023,Children and Adults,HIGH VIEW CARE SERVICES LTD,"14,884.80",PHY LTS 18-64,RESIDENTIAL CARE,2103799632,1000053562
18.12.2023,Children and Adults,MANLEY COURT NURSING HOME (BUPA),"14,857.48",SUB LTS 65+,NURSING PLACEMENTS FEES,2103800199,11101434
14.12.2023,Housing,BEACON PARTNERSHIP LLP,"14,813.50",AYLESBURY AGENCY COSTS,PROFESSIONAL FEES,5902611732,1000082300
05.12.2023,Environment Neighbourhoods and Growth,BUILDING DESIGN PARTNERSHIP LTD,"14,750.00",CAPITAL PS (LEISURE),CONSTR'N SUB CONTRACT - NON CERTIFICATED,5902611251,1000023260
21.12.2023,Environment Neighbourhoods and Growth,TECHNOGYM UK LIMITED,"14,709.20",CAPITAL PS (LEISURE),"PLANT, MACHINERY & EQUIPMENT ACQUISITION",5902614463,1000089821
20.12.2023,Housing,HMRC STAMP TAXES ONLY SDLT,"14,700.00",CAPITAL PS (HRA),LAND & BUILDINGS ACQUISITION,2103800712,1000052141
27.12.2023,Children and Adults,EXCEL CHILD CARE SERVICES LTD,"14,644.50",NURSERY ED GRANT 3 AND 4 YR OLDS,GRANTS,2103802004,1000060429
27.12.2023,Children and Adults,SUCCESS ASSOCIATES LIMITED,"14,644.50",NURSERY ED GRANT 3 AND 4 YR OLDS,GRANTS,2103802021,1000060300
18.12.2023,Children and Adults,NORBURY HALL RESIDENTIAL CARE HOME,"14,514.14",PHY LTS 18-64,"MAND STATUTORY CHARGES, RESIDENTIAL",2103800179,1000060513
19.12.2023,Corporate,JOHN RUSKIN PRIMARY SCHOOL,"14,505.92",EDUCATION VAT INPUTS,VAT CONTROL ACCOUNT,2103800363,5001000040
18.12.2023,Children and Adults,NASH CARE HOMES LTD,"14,470.72",LD LTS 18-64,RESIDENTIAL CARE,2103799455,1000080224
04.12.2023,Housing,BEACON PARTNERSHIP LLP,"14,469.00",AYLESBURY AGENCY COSTS,PROFESSIONAL FEES,5902611156,1000082300
20.12.2023,Children and Adults,RIVERSIDE PRIMARY SCHOOL,"14,454.76",FREE HEALTHY SCHOOL MEALS,EARLY YEARS - 3 AND 4 YEAR OLDS,2103800439,5001000056
12.12.2023,Housing,SITTARA LTD,"14,430.00",TA PLACEMENTS,EXTERNAL AGENCIES AND BODIES,5902612385,1000080857
27.12.2023,Children and Adults,FIRST CHOICE DAY NURSERY,"14,425.13",NURSERY ED GRANT 3 AND 4 YR OLDS,GRANTS,2103801976,1000075368
27.12.2023,Children and Adults,PLAYDAYS UK LTD,"14,425.13",NURSERY ED GRANT 3 AND 4 YR OLDS,GRANTS,2103802052,11210767
19.12.2023,Corporate,HAYMERLE SCHOOL,"14,423.23",EDUCATION VAT INPUTS,VAT CONTROL ACCOUNT,2103800377,5001000045
12.12.2023,Housing,THAMES VALLEY CONTROLS LTD,"14,411.00",THAMES VALLEY CONTROL,I-WORLD CONTRACTORS HOLDING ACCOUNT,5902612437,1295718
21.12.2023,Environment Neighbourhoods and Growth,REDLYNCH LEISURE INSTALLATIONS LTD,"14,401.50",CAPITAL PS (LEISURE),CONSTRUCTION FEES  - EXTERNAL,2103801972,3000000670
19.12.2023,Environment Neighbourhoods and Growth,REDLYNCH LEISURE INSTALLATIONS LTD,"14,401.50",CAPITAL PS (LEISURE),CONSTRUCTION FEES  - EXTERNAL,5902614127,3000000670
04.12.2023,Children and Adults,THE DRIVE CARE HOMES LTD,"14,393.10",DISABILITIES LAC,EXTERNAL AGENCIES AND BODIES,2103793025,1000003889
18.12.2023,Children and Adults,ACHIEVE TOGETHER SERVICES LIMITED,"14,384.10",LD LTS 18-64,SUPPORTED LIVING,2103799560,1000089975
27.12.2023,Children and Adults,RYE GARDEN DAY NURSERY,"14,361.75",NURSERY ED GRANT 3 AND 4 YR OLDS,GRANTS,2103802050,1000074965
29.12.2023,Housing,DURKAN LTD,"14,321.99",CAPITAL PS (HRA),CONSTRUCTION MAIN CONTRACT -CERTIFICATED,2103804416,3000000960
27.12.2023,Children and Adults,EAST DULWICH GROVE NURSERY LTD,"14,301.38",NURSERY ED GRANT 3 AND 4 YR OLDS,GRANTS,2103802003,1000077140
11.12.2023,Housing,P J COFFEY LTD,"14,300.00",REPAIRS OPERATIONS,PROFESSIONAL FEES,5902611276,1000084701
15.12.2023,Children and Adults,URBAN MISSION SCHOOLS AND COMMUNITY,"14,284.50",INDEP MAINSTREAM,STATEMENTED FEES,2103798257,1000086898
02.12.2023,Housing,PULSE ASSOCIATES LTD (T/A PULSE CONSULT),"14,225.00",CAPITAL PS (HRA),CONSTRUCTION FEES  - EXTERNAL,5902610239,1000087233
19.12.2023,Housing,HM REVENUE & CUSTOMS,"14,161.58",APPRENTICE LEVY,APPRENTICESHIP LEVY,2103787792,1016231
24.12.2023,Environment Neighbourhoods and Growth,KENT COUNTY COUNCIL - LASER,"14,160.29",THE CASTLE CENTRE,ELECTRICITY,5902614090,1000012926
22.12.2023,Environment Neighbourhoods and Growth,ASBESTOS SOLUTIONS LIMITED,"14,150.00",CAPITAL PS (REGEN),CONSTRUCTION MAIN CONTRACT,2103800317,3000002114
20.12.2023,Children and Adults,CATHEDRAL SCHOOL OF ST SAVIOUR & MARY,"14,146.08",FREE HEALTHY SCHOOL MEALS,EARLY YEARS - 3 AND 4 YEAR OLDS,2103800457,5001000088
19.12.2023,Housing,DENHAN INTERNATIONAL LIMITED,"14,127.25",NIGHTLY TA (NSC),EXTERNAL AGENCIES AND BODIES,5902613859,1000075567
18.12.2023,Housing,SOUTH LONDON & MAUDSLEY HOSPITAL,"14,103.99",RAPID REHOUSING,PROFESSIONAL FEES,5902613632,1000013096
08.12.2023,Environment Neighbourhoods and Growth,J & M OASIS LTD,"14,045.90",NO RECOURSE TO PUBLIC FUNDS,ACCOMMODATION CHARGES,5902612055,1000072169
12.12.2023,Children and Adults,KEYWORTH PRIMARY SCHOOL,"14,026.00",NURSERY ED GRANT 3 AND 4 YR OLDS,EARLY YEARS - 3 AND 4 YEAR OLDS,5902612538,5001000041
22.12.2023,Environment Neighbourhoods and Growth,TAAKSVALE HOUSING LTD,"14,009.05",NO RECOURSE TO PUBLIC FUNDS,ACCOMMODATION CHARGES,5902614649,1000073665
20.12.2023,Housing,AWH LEGAL LTD,"13,958.33",DISREPAIR,PAYMENTS FOR LEGAL SERVICES,2103801611,1000082134
27.12.2023,Children and Adults,AMELIA'S HOUSE LIMITED,"13,950.00",DISABILITIES LAC,EXTERNAL AGENCIES AND BODIES,2103803701,1000083007
06.12.2023,Finance,INFOSYS LIMITED,"13,942.00",CAPITAL PS (STRAT SERV),ICT ACQUISITION,5902611550,1000088973
23.12.2023,Environment Neighbourhoods and Growth,PSLT LIMITED,"13,931.00",PECKHAM PULSE LEISURE CENTRE,PLANNED MAINTENANCE,5902614174,1000089819
19.12.2023,Corporate,IVYDALE PRIMARY SCHOOL,"13,899.29",EDUCATION VAT INPUTS,VAT CONTROL ACCOUNT,2103800348,5001000038
11.12.2023,Children and Adults,MOAT SCHOOL LTD,"13,897.00",NMSS/ INDEP SPECIAL,STATEMENTED FEES,2103794739,1000010219
11.12.2023,Children and Adults,MOAT SCHOOL LTD,"13,897.00",NMSS/ INDEP SPECIAL,STATEMENTED FEES,2103794745,1000010219
11.12.2023,Children and Adults,MOAT SCHOOL LTD,"13,897.00",NMSS/ INDEP SPECIAL,STATEMENTED FEES,2103794746,1000010219
11.12.2023,Children and Adults,MOAT SCHOOL LTD,"13,897.00",NMSS/ INDEP SPECIAL,STATEMENTED FEES,2103794747,1000010219
12.12.2023,Children and Adults,IVYDALE PRIMARY SCHOOL,"13,895.00",NURSERY ED GRANT 3 AND 4 YR OLDS,EARLY YEARS - 3 AND 4 YEAR OLDS,5902612529,5001000038
18.12.2023,Children and Adults,CYGNET CARE SERVICES LTD,"13,891.72",LD LTS 18-64,RESIDENTIAL CARE,2103799709,1000050432
11.12.2023,Environment Neighbourhoods and Growth,MIDSTREAM LIGHTING LTD,"13,882.62",LIGHTING INTERNAL,OTHER CONTRACTORS,2103794534,3000002257
22.12.2023,Children and Adults,SUPREME EDUCATION LTD,"13,857.00",ALTERNATIVE PROVISION,EXTERNAL AGENCIES AND BODIES,5902614475,1000089065
18.12.2023,Finance,DENTONS UK AND MIDDLE EAST LLP,"13,835.52",CPHA SURPLUS,SOLICITORS FRAMEWORK LEGAL SERVICES,5902613524,1000083222
20.12.2023,Children and Adults,ST GEORGES RC SCHOOL,"13,828.71",FREE HEALTHY SCHOOL MEALS,EARLY YEARS - 3 AND 4 YEAR OLDS,2103800447,5001000068
27.12.2023,Children and Adults,LITTLE BEARS 4 LMITED T/A LITTLE BEARS IN ELEPHANT CENTRE,"13,804.70",NURSERY ED GRANT 3 AND 4 YR OLDS,GRANTS,2103802026,1000082505
05.12.2023,Housing,PENNINGTON CHOICES LTD,"13,778.61",PENNINGTON,I-WORLD CONTRACTORS HOLDING ACCOUNT,5902611280,1000067888
04.12.2023,Housing,SOUTH EAST BUILDING CONTRACTORS LTD,"13,763.83",CAPITAL PS (HOUSING GF),CAPITAL GRANTS,5902611076,1000049893
12.12.2023,Children and Adults,ALFRED SALTER PRIMARY SCHOOL,"13,750.00",LBS MAINSTREAM,HIGH NEEDS - TOP UP FUNDING,5902612447,5001000005
20.12.2023,Corporate,BESSEMER GRANGE PRIMARY SCHOOL,"13,726.45",EDUCATION VAT INPUTS,VAT CONTROL ACCOUNT,2103801560,5001000009
12.12.2023,Children and Adults,FRONTIER SUPPORT SERVICES LTD,"13,684.00",LD LTS 18-64,SUPPORTED LIVING,2103794985,1000072241
21.12.2023,Finance,INFOSYS LIMITED,"13,650.00",TECHNOLOGY TRANSFORMATION,SOFTWARE,5902614275,1000088973
18.12.2023,Children and Adults,ZERO THREE CARE LIMITED,"13,601.48",LD LTS 18-64,SUPPORTED LIVING,2103799780,1000085367
12.12.2023,Finance,CIVICA UK LTD,"13,589.12",COUNCIL TAX,SOFTWARE,5902612698,1730625
18.12.2023,Children and Adults,SPECTRA CARE LTD,"13,585.72",LD LTS 18-64,SUPPORTED LIVING,2103799325,1000086280
11.12.2023,Strategy and Communities,PECKHAM PALMS LTD,"13,583.00",VCS GRANTS,GRANTS,5902611559,1000081205
12.12.2023,Children and Adults,ROBERT BROWNING PRIMARY SCHOOL,"13,583.00",LBS MAINSTREAM,HIGH NEEDS - TOP UP FUNDING,5902612575,5001000057
04.12.2023,Children and Adults,PREMIER ROOFING AND CONSTRUCTION LTD,"13,578.00",CAPITAL PS (EDUCATION),CONSTRUCTION,2103792632,3000002158
10.12.2023,Housing,CARLISLE SECURITY SERVICES LTD,"13,546.03",CAMBERWELL,SECURITY SERVICES,5902611718,11212342
20.12.2023,Children and Adults,KEYWORTH PRIMARY SCHOOL,"13,540.29",FREE HEALTHY SCHOOL MEALS,EARLY YEARS - 3 AND 4 YEAR OLDS,2103800434,5001000041
18.12.2023,Children and Adults,YPR LIMITED,"13,520.00",LD LTS 18-64,SUPPORTED LIVING,2103799146,1000086517
12.12.2023,Children and Adults,AON SOLUTIONS UK LTD,"13,520.00",DIRECTOR OF EDUCATION,PROFESSIONAL FEES,5902612794,1000000036
18.12.2023,Children and Adults,SAFFRONLAND HOMES (MUNDANIA),"13,512.00",LD LTS 18-64,RESIDENTIAL CARE,2103799904,1000072153
21.12.2023,Children and Adults,AMBITIOUS ABOUT AUTISM,"13,483.51",NMSS/ INDEP SPECIAL,STATEMENTED FEES,2103802742,1000035784
15.12.2023,Children and Adults,ROYAL SOCIETY FOR BLIND CHILDREN,"13,451.37",SPECIALIST POST-16,STATEMENTED FEES,2103798253,1000087497
12.12.2023,Children and Adults,MICHAEL FARADAY PRIMARY SCHOOL,"13,260.00",NURSERY ED GRANT 3 AND 4 YR OLDS,EARLY YEARS - 3 AND 4 YEAR OLDS,5902612549,5001000048
20.12.2023,Children and Adults,ILDERTON PRIMARY SCHOOL,"13,228.71",FREE HEALTHY SCHOOL MEALS,EARLY YEARS - 3 AND 4 YEAR OLDS,2103800431,5001000037
19.12.2023,Strategy and Communities,BETA DISTRIBUTION (SOUTH) LTD,"13,215.50",SOUTHWARK LIFE,OFFICE EXPENSES,5902613840,1000044844
11.12.2023,Strategy and Communities,DENMAUR INDEPENDENT PAPERS LTD,"13,213.32",SOUTHWARK LIFE,OFFICE EXPENSES,5902612349,1000064794
24.12.2023,Strategy and Communities,PECKHAMPLEX LTD,"13,200.00",CORPORATE & DEPARTMENTAL EXPENDITURE,PROFESSIONAL FEES,5902614155,1000000629
27.12.2023,Children and Adults,ST JOHNS PRE SCHOOL,"13,190.25",NURSERY ED GRANT 3 AND 4 YR OLDS,GRANTS,2103802058,1000013380
11.12.2023,Children and Adults,AUTISM PARTNERSHIP LONDON LIMITED,"13,180.00",AP & HOSPITAL SCHLS,STATEMENTED FEES,2103794744,1000089499
12.12.2023,Children and Adults,ST JAMES CE PRIMARY SCHOOL,"13,167.00",LBS MAINSTREAM,HIGH NEEDS - TOP UP FUNDING,5902612609,5001000070
06.12.2023,Corporate,SCOTTISH EQUITABLE PLC,"13,157.74",A. V. C. TO OTHER PENSION,PAYROLL CREDITORS - EXTERNAL AVCS (LOCAL GOVT),2103793873,1000026367
18.12.2023,Children and Adults,PECULIAR CARE HOMES LTD,"13,148.00",LD LTS 18-64,SUPPORTED LIVING,2103799320,1000076991
21.12.2023,Suspense,UNISON,"13,147.60",SUSPENSE ACCOUNT (COMPANY CODE 1000),PAYROLL CREDITORS - UNION DEDUCTIONS,2103802099,11060053
27.12.2023,Housing,GUILDMORE LTD,"13,129.58",CAPITAL PS (HRA),CONSTRUCTION MAIN CONTRACT -CERTIFICATED,2103803122,3000002150
18.12.2023,Children and Adults,PECULIAR CARE HOMES LTD,"13,129.36",LD LTS 18-64,SUPPORTED LIVING,2103799284,1000076991
15.12.2023,Corporate,ZURICH MUNICIPAL,"13,127.40",MOTOR RELATED INSURANCE,TRANSPORT INSURANCE COSTS,5902613305,11011168
20.12.2023,Finance,VENN GROUP LTD,"13,090.00",IT MANAGEMENT,CONSULTANTS SERVICES,5902614198,1000033315
19.12.2023,Environment Neighbourhoods and Growth,ATALIAN SERVEST LTD,"13,041.02",CAPITAL PS (REGEN),CONSTRUCTION MAIN CONTRACT,2103800316,3000002240
14.12.2023,Housing,BRIDGEWATER ROOFING CONTRACTORS LTD,"13,015.08",A&E ELKINS,I-WORLD CONTRACTORS HOLDING ACCOUNT,2103796100,3000001482
08.12.2023,Environment Neighbourhoods and Growth,ICE SERVICES GROUP LTD,"13,000.00",MANAGEMENT TEAM,PROFESSIONAL FEES,5902610775,1000090182
11.12.2023,Children and Adults,VOICEABILITY ADVOCACY,"13,000.00",SHORT BREAKS INNV FUND,EXTERNAL AGENCIES AND BODIES,5902611371,1000064254
12.12.2023,Children and Adults,SOUTHWARK PARK PRIMARY SCHOOL,"13,000.00",LBS MAINSTREAM,HIGH NEEDS - TOP UP FUNDING,5902612591,5001000062
12.12.2023,Children and Adults,ST ANTHONYS RC SCHOOL,"12,994.00",NURSERY ED GRANT 3 AND 4 YR OLDS,EARLY YEARS - 3 AND 4 YEAR OLDS,5902612592,5001000064
12.12.2023,Children and Adults,PHOENIX PRIMARY SCHOOL,"12,978.00",NURSERY ED GRANT 3 AND 4 YR OLDS,EARLY YEARS - 3 AND 4 YEAR OLDS,5902612512,5001000032
14.12.2023,Housing,PRB ESTATES LTD,"12,964.16",PRBE,I-WORLD CONTRACTORS HOLDING ACCOUNT,2103796175,3000001691
14.12.2023,Housing,PRB ESTATES LTD,"12,964.16",PRBE,I-WORLD CONTRACTORS HOLDING ACCOUNT,2103796176,3000001691
18.12.2023,Housing,PRB ESTATES LTD,"12,964.16",PRBE,I-WORLD CONTRACTORS HOLDING ACCOUNT,2103798700,3000001691
18.12.2023,Housing,DUCTCLEAN (UK) LTD,"12,944.84",DUCTCLEAN,I-WORLD CONTRACTORS HOLDING ACCOUNT,2103800305,3000001635
20.12.2023,Children and Adults,BOUCHER C OF E PRIMARY SCHOOL,"12,928.71",FREE HEALTHY SCHOOL MEALS,EARLY YEARS - 3 AND 4 YEAR OLDS,2103800420,5001000011
20.12.2023,Children and Adults,CRAMPTON PRIMARY SCHOOL,"12,928.71",FREE HEALTHY SCHOOL MEALS,EARLY YEARS - 3 AND 4 YEAR OLDS,2103800423,5001000023
19.12.2023,Corporate,BESSEMER GRANGE PRIMARY SCHOOL,"12,906.45",EDUCATION VAT INPUTS,VAT CONTROL ACCOUNT,2103800330,5001000009
03.12.2023,Housing,NIBLOCK (BUILDERS) LTD,"12,854.62",CAPITAL PS (HRA),CONSTRUCTION MAIN CONTRACT -CERTIFICATED,2103791407,3000000235
18.12.2023,Children and Adults,CASSRA LLP T/A CROHAM PLACE,"12,811.24",LD LTS 18-64,NURSING PLACEMENTS FEES,2103799165,1000082899
25.12.2023,Environment Neighbourhoods and Growth,ACE LIFTS LTD,"12,805.50",CAPITAL PS (LEISURE),"PLANT, MACHINERY & EQUIPMENT ACQUISITION",5902614058,1000089847
20.12.2023,Children and Adults,ST JAMES CE PRIMARY SCHOOL,"12,802.65",FREE HEALTHY SCHOOL MEALS,EARLY YEARS - 3 AND 4 YEAR OLDS,2103800449,5001000070
13.12.2023,Environment Neighbourhoods and Growth,DJ & SONS BUILDERS LTD,"12,800.00",DULWICH LEISURE CENTRE,BUILDING R&M,2103795008,3000002178
12.12.2023,Children and Adults,ALFRED SALTER PRIMARY SCHOOL,"12,785.00",NURSERY ED GRANT 3 AND 4 YR OLDS,EARLY YEARS - 3 AND 4 YEAR OLDS,5902612444,5001000005
21.12.2023,Children and Adults,AMBITIOUS ABOUT AUTISM,"12,767.82",NMSS/ INDEP SPECIAL,STATEMENTED FEES,2103802748,1000035784
21.12.2023,Children and Adults,AMBITIOUS ABOUT AUTISM,"12,767.82",NMSS/ INDEP SPECIAL,STATEMENTED FEES,2103802754,1000035784
12.12.2023,Children and Adults,BESSEMER GRANGE PRIMARY SCHOOL,"12,750.00",LBS MAINSTREAM,HIGH NEEDS - TOP UP FUNDING,5902612457,5001000009
27.12.2023,Environment Neighbourhoods and Growth,CONSTELLIA PUBLIC LIMITED,"12,748.66",THE CASTLE CENTRE,PREMISES CLEANING,5902614222,1000088137
19.12.2023,Corporate,CRAWFORD PRIMARY SCHOOL,"12,735.29",EDUCATION VAT INPUTS,VAT CONTROL ACCOUNT,2103800328,5001000024
12.12.2023,Children and Adults,JOHN RUSKIN PRIMARY SCHOOL,"12,694.00",LBS RB / SEN UNIT,HIGH NEEDS - BASE FUNDING,5902612534,5001000040
08.12.2023,Children and Adults,DAVID MILES & PARTNERS LTD,"12,653.32",CAPITAL PS (SOC SERV),CONSTRUCTION MAIN CONTRACT,5902612020,1000001119
12.12.2023,Environment Neighbourhoods and Growth,REDACTED PERSONAL DATA,"12,647.70",UKRAINIAN REFUGEES,ACCOMMODATION CHARGES,5902612699,1000061134
18.12.2023,Housing,SANDERSONS BUILDING SERVICES LTD,"12,633.92",DISREPAIR,BUILDING R&M,2103800208,3000002065
18.12.2023,Children and Adults,THE DRIVE CARE HOMES LTD,"12,623.04",LD LTS 18-64,RESIDENTIAL CARE,2103799701,1000003889
15.12.2023,Children and Adults,PEOPLE PLUS GROUP LTD (INDEPENDENT LIVING SERVICES),"12,619.20",LD LTS 18-64,PAYMENTS TO CLIENTS (DIRECT PAYMENTS),2103797167,1000061886
21.12.2023,Housing,STANDAGE & CO LTD,"12,598.74",CAPITAL PS (HRA),CONSTRUCTION MAIN CONTRACT -CERTIFICATED,2103802071,4002817
12.12.2023,Children and Adults,SOUTHWARK PARK PRIMARY SCHOOL,"12,582.00",NURSERY ED GRANT 3 AND 4 YR OLDS,EARLY YEARS - 3 AND 4 YEAR OLDS,5902612588,5001000062
18.12.2023,Housing,PRB ESTATES LTD,"12,517.05",PRBE,I-WORLD CONTRACTORS HOLDING ACCOUNT,2103798697,3000001691
22.12.2023,Governance and Assurance,THE ARCH COMPANY PROPERTIES LTD,"12,500.00",160 TOOLEY ST.,RENTS,2103802881,1000082466
22.12.2023,Children and Adults,DOBBIN & SULLIVAN LTD,"12,500.00",THE NEST 255 RYELANE,RENTS,2103802885,1000084055
22.12.2023,Finance,WILSON'S SCHOOL FOUNDATION CIO,"12,500.00",CPHA  MANAGED PROPERTIES,RENTS,2103802975,3000767
01.12.2023,Children and Adults,EVERYONE HEALTH LTD,"12,484.47",STOP SMOKING,EXTERNAL AGENCIES AND BODIES,5902610053,1000084159
18.12.2023,Children and Adults,FERRY CARE LTD,"12,472.96",LD LTS 18-64,RESIDENTIAL CARE,2103799699,1000041775
21.12.2023,Finance,M.R.F. (UK) LIMITED,"12,436.13",APPLICATIONS,PROFESSIONAL FEES,5902614280,1000088845
27.12.2023,Children and Adults,BROADLANDS HALL LIMITED,"12,425.00",DISABILITIES LAC,EXTERNAL AGENCIES AND BODIES,2103803705,1000084303
20.12.2023,Children and Adults,ST JOSEPHS CATHOLIC PRIMARY SCHOOL,"12,414.23",FREE HEALTHY SCHOOL MEALS,EARLY YEARS - 3 AND 4 YEAR OLDS,2103800454,5001000078
20.12.2023,Children and Adults,GORDON CARE SERVICES LIMITED,"12,383.00",SPECIALIST CARE,SECTION 17 PAYMENTS TO AGENCIES/CARERS,2103801549,1000090067
08.12.2023,Environment Neighbourhoods and Growth,STONEGROVE LIMITED,"12,382.55",CAPITAL PS (REGEN),CONSTRUCTION MAIN CONTRACT,2103794501,3000001525
11.12.2023,Finance,LEADTEC LIMITED,"12,325.00",CAPITAL PS (STRAT SERV),ICT ACQUISITION,5902612272,1000088992
18.12.2023,Children and Adults,KISIMUL GROUP LTD,"12,271.44",LD LTS 18-64,SUPPORTED LIVING,2103799896,1000079657
19.12.2023,Finance,INVUSE LIMITED,"12,256.00",CAPITAL PS (STRAT SERV),ICT ACQUISITION,5902613864,1000087372
19.12.2023,Corporate,DULWICH VILLAGE CE INFANTS SCHOOL,"12,220.69",EDUCATION VAT INPUTS,VAT CONTROL ACCOUNT,2103800386,5001000027
04.12.2023,Children and Adults,BLOOM PROCUREMENT SERVICES LTD,"12,150.00",CAPITAL PS (EDUCATION),CONSTRUCTION FEES,5902611158,1000082531
18.12.2023,Children and Adults,REESON CARE HOMES LTD,"12,141.04",LD LTS 18-64,SUPPORTED LIVING,2103800203,1000084007
20.12.2023,Children and Adults,RIVERSIDE PRIMARY SCHOOL,"12,124.00",MATERNITY COVER,SCHOOLS CAPITATION,2103800465,5001000056
29.12.2023,Finance,CAPITA BUSINESS SERVICES LTD,"12,116.28",CAPITA,OTHER CONTRACTORS,5902615336,1000006291
13.12.2023,Finance,VENN GROUP LTD,"12,100.00",IT MANAGEMENT,AGENCY STAFF,5902612865,1000033315
13.12.2023,Housing,LONDON HOUNSLOW LTD,"12,095.00",NIGHTLY TA (NSC),EXTERNAL AGENCIES AND BODIES,5902612863,1000089873
29.12.2023,Environment Neighbourhoods and Growth,FRASER BROWN MACKENNA LTD,"12,095.00",CAPITAL PS (REGEN),CONSTRUCTION FEES,5902615232,1000081651
15.12.2023,Children and Adults,PENDERELS TRUST LTD,"12,016.32",PHB - SEL ICB,RECOVERABLE COSTS INCL. HEALTH,2103797030,1000075856
15.12.2023,Children and Adults,REDACTED PERSONAL DATA,"12,010.80",CHILDREN PHB - SEL ICB,PAYMENTS TO CLIENTS (DIRECT PAYMENTS),2103798175,1000076363
20.12.2023,Children and Adults,ST JOHNS RC PRIMARY SCHOOL,"12,005.55",FREE HEALTHY SCHOOL MEALS,EARLY YEARS - 3 AND 4 YEAR OLDS,2103800452,5001000075
12.12.2023,Environment Neighbourhoods and Growth,KENT COUNTY COUNCIL - LASER,"12,000.92",BURGESS SPORTS CENTRE,ELECTRICITY,5902612679,1000012926
07.12.2023,Environment Neighbourhoods and Growth,BLOOM PROCUREMENT SERVICES LTD,"12,000.00",CAPITAL PS (REGEN),CONSTRUCTION FEES - ENGINEER,5902610754,1000082531
12.12.2023,Housing,CALFORD SEADEN LLP,"12,000.00",CAPITAL PS (HRA),CONSTRUCTION FEES - EMPLOYERS AGENT,5902612754,1061592
24.12.2023,Children and Adults,INDOAMERICAN REFUGEE & MIGRANT ORGANISATION,"12,000.00",HEALTHY WEIGHT,EXTERNAL AGENCIES AND BODIES,5902614168,1000061618
20.12.2023,Children and Adults,ROADWORKS MEDIA,"12,000.00",YJS MGMT & SUPPORT,EXTERNAL AGENCIES AND BODIES,5902614235,1000081375
27.12.2023,Strategy and Communities,ROOCOU CONSULTING LTD,"12,000.00",STRATEGY AND CHANGE,CONSULTANTS SERVICES,5902614738,1000081284
27.12.2023,Children and Adults,LITTLE FINGERS MONTESSORI NURSERY LTD,"11,992.50",NURSERY ED GRANT 3 AND 4 YR OLDS,GRANTS,2103802027,1000073415
12.12.2023,Children and Adults,RYE OAK PRIMARY SCHOOL,"11,978.00",NURSERY ED GRANT 3 AND 4 YR OLDS,EARLY YEARS - 3 AND 4 YEAR OLDS,5902612576,5001000059
12.12.2023,Children and Adults,CAMELOT PRIMARY SCHOOL,"11,964.00",NURSERY ED GRANT 3 AND 4 YR OLDS,EARLY YEARS - 3 AND 4 YEAR OLDS,5902612468,5001000014
27.12.2023,Children and Adults,HARRIS PRIMARY ACADEMY PECKHAM PARK,"11,946.38",NURSERY ED GRANT 3 AND 4 YR OLDS,GRANTS,2103802013,1000068029
13.12.2023,Children and Adults,WALWORTH ACADEMY,"11,900.00",PUBLIC HEALTH FHSM,SCHOOLS CAPITATION,2103795980,1000062868
27.12.2023,Housing,LPS CONSULTING (LONDON) LIMITED,"11,900.00",DIRECTOR OF ASSET MANAGEMENT,PROFESSIONAL FEES,5902614874,1000084208
27.12.2023,Housing,CROWN HOUSING LTD,"11,885.00",NIGHTLY TA (NSC),EXTERNAL AGENCIES AND BODIES,5902614836,1000075070
19.12.2023,DSO,DIAMOND SCAFFOLDING (SOUTH EAST),"11,868.08",SR COMMUNAL - DELIVERY TEAM,OTHER CONTRACTORS,2103800693,3000001625
24.12.2023,Environment Neighbourhoods and Growth,BARCHAM TREES PLC,"11,863.00",CAPITAL PS (LEISURE),CONSTRUCTION FEES,5902613660,11254891
13.12.2023,Finance,WE ARE WATERLOO LTD,"11,832.69",WATERLOO QUARTER,EXTERNAL AGENCIES AND BODIES,5902612906,1000057618
12.12.2023,Governance and Assurance,SODEXO MOTIVATION SOLUTIONS UK LTD,"11,812.16",HR PAYROLL COSTS,OTHER EMPLOYEE EXPENSES,5902612678,1000078322
27.12.2023,Children and Adults,SURE AND FIRM FOUNDATIONS,"11,808.00",NURSERY ED GRANT 3 AND 4 YR OLDS,GRANTS,2103802037,1000066223
29.12.2023,Environment Neighbourhoods and Growth,GRISTWOOD & TOMS LTD,"11,803.24",CAPITAL PS (LEISURE),CONSTRUCTION,5902615291,1000028580
04.12.2023,Housing,CALFORD SEADEN LLP,"11,777.17",CAPITAL PS (HRA),CONSTRUCTION FEES - EMPLOYERS AGENT,5902610582,1061592
29.12.2023,Housing,CALFORD SEADEN LLP,"11,777.17",CAPITAL PS (HRA),CONSTRUCTION FEES - EMPLOYERS AGENT,5902614476,1061592
27.12.2023,Children and Adults,BRIGHT EXPLORERS DAY NURSERY,"11,773.13",NURSERY ED GRANT 3 AND 4 YR OLDS,GRANTS,2103801989,1000074268
18.12.2023,Children and Adults,ALWAYS INCLUSIVE LTD,"11,760.00",LD LTS 18-64,SUPPORTED LIVING,2103799943,1000088268
13.12.2023,Housing,STAR PEOPLE LTD,"11,718.30",PSL PLACEMENTS,EXTERNAL AGENCIES AND BODIES,5902612911,1000088790
27.12.2023,Children and Adults,SMART KIDS DAY NURSERY LTD,"11,709.75",NURSERY ED GRANT 3 AND 4 YR OLDS,GRANTS,2103802053,1000074580
14.12.2023,Environment Neighbourhoods and Growth,KENT COUNTY COUNCIL - LASER,"11,705.67",PECKHAM PULSE LEISURE CENTRE,GAS,5902611726,1000012926
18.12.2023,Children and Adults,WELLSPRING CARE HOMES LIMITED,"11,702.08",LD LTS 18-64,SUPPORTED LIVING,2103799328,1000088216
17.12.2023,Environment Neighbourhoods and Growth,TYCO INTEGRATED FIRE & SECURITY,"11,692.66",TOWN CENTRE CCTV,EQUIPMENT PURCHASE & REPAIR,5902612693,1000077948
18.12.2023,Housing,SANDERSONS BUILDING SERVICES LTD,"11,654.87",DISREPAIR,BUILDING R&M,2103800207,3000002065
18.12.2023,Children and Adults,CARLTON NURSING HOMES LTD,"11,647.36",LD LTS 18-64,RESIDENTIAL CARE,2103799248,1000070431
08.12.2023,Housing,FALCON POINT MANAGEMENT GROUP LTD,"11,632.98",FALCON POINT TMO,M&M ALLOWANCE CO-OPS,5902610860,11117573
18.12.2023,Children and Adults,VOYAGE CARE (MOUNTEARL),"11,622.12",LD LTS 18-64,RESIDENTIAL CARE,2103799357,1000078173
18.12.2023,Children and Adults,THE CHILTERNS - OPTIMA CARE,"11,602.92",LD LTS 18-64,RESIDENTIAL CARE,2103799564,1000042209
18.12.2023,Children and Adults,GARLAND LODGE LTD,"11,589.76",LD LTS 18-64,SUPPORTED LIVING,2103799826,1000084016
12.12.2023,Housing,MJV & CO  SOLICITORS LTD,"11,583.33",DISREPAIR,PAYMENTS FOR LEGAL SERVICES,2103794795,1000086326
22.12.2023,Children and Adults,FAITHFUL & GOULD,"11,552.76",CAPITAL PS (SOC SERV),CONSTRUCTION FEES,5902613397,1000061390
13.12.2023,Housing,LONDON HOUNSLOW LTD,"11,550.00",NIGHTLY TA (NSC),EXTERNAL AGENCIES AND BODIES,5902612884,1000089873
05.12.2023,Children and Adults,CAMELOT PRIMARY SCHOOL,"11,520.00",HOLIDAY ACTIVITIES & FOOD,EXTERNAL AGENCIES AND BODIES,5902611293,5001000014
18.12.2023,Children and Adults,HAVELOCK COURT (BUPA CARE),"11,502.16",PHY LTS 65+,NURSING PLACEMENTS FEES,2103799259,1000028902
12.12.2023,Children and Adults,ST JOSEPHS CATHOLIC SCHOOL,"11,500.00",LBS MAINSTREAM,HIGH NEEDS - TOP UP FUNDING,5902612628,5001000076
14.12.2023,Children and Adults,RAINTREE CARE LTD,"11,500.00",SPECIALIST CARE,SECTION 17 PAYMENTS TO AGENCIES/CARERS,5902613115,1000087495
23.12.2023,Children and Adults,MONTAGU EVANS LLP,"11,500.00",STRATEGIC DIRECTOR OF C&AS,PROFESSIONAL FEES,5902613751,1000073283
24.12.2023,Environment Neighbourhoods and Growth,KENT COUNTY COUNCIL - LASER,"11,492.81",CANADA WATER LIBRARY,ELECTRICITY,5902613916,1000012926
11.12.2023,Children and Adults,MOAT SCHOOL LTD,"11,465.00",NMSS/ INDEP SPECIAL,STATEMENTED FEES,2103794738,1000010219
18.12.2023,Children and Adults,INSIGHT,"11,458.64",LD LTS 18-64,RESIDENTIAL CARE,2103799273,1825618
18.12.2023,Children and Adults,OPTIMA CARE (SHINE) LONDON LTD,"11,444.80",LD LTS 18-64,SUPPORTED LIVING,2103799822,1000079614
15.12.2023,DSO,GERDA SECURITY PRODUCTS LTD,"11,420.00",R & M OVERHEADS,SECURITY EQUIPMENT F&F,5902613349,1000066345
27.12.2023,Children and Adults,DOG KENNEL HILL PRIMARY SCHOOL,"11,392.88",NURSERY ED GRANT 3 AND 4 YR OLDS,GRANTS,2103801998,1000089861
17.12.2023,Finance,SAPPHIRE CONSULTANCY LIMITED,"11,375.00",PROJECTS,OTHER CONTRACTORS,5902612739,1000089101
27.12.2023,Children and Adults,TOTS RYE DAY NURSERY LTD,"11,363.63",NURSERY ED GRANT 3 AND 4 YR OLDS,GRANTS,2103802066,1000089357
22.12.2023,Housing,CITYGLEN LTD,"11,347.80",NIGHTLY TA (NSC),EXTERNAL AGENCIES AND BODIES,5902614712,1000026239
12.12.2023,Children and Adults,BRUNSWICK PARK PRIMARY SCHOOL,"11,254.00",NURSERY ED GRANT 3 AND 4 YR OLDS,EARLY YEARS - 3 AND 4 YEAR OLDS,5902612462,5001000013
18.12.2023,Children and Adults,WELLSPRING CARE HOMES LIMITED,"11,252.00",LD LTS 18-64,SUPPORTED LIVING,2103799703,1000088216
01.12.2023,Housing,INTERIM PARTNERS LIMITED,"11,250.00",AM TRANSFORMATION COSTS,CONSULTANTS SERVICES,5902610146,1000089772
04.12.2023,Housing,INTERIM PARTNERS LIMITED,"11,250.00",REPAIRS OPERATIONS,CONSULTANTS SERVICES,5902610728,1000089772
12.12.2023,Children and Adults,CAMELOT PRIMARY SCHOOL,"11,250.00",LBS MAINSTREAM,HIGH NEEDS - TOP UP FUNDING,5902612471,5001000014
22.12.2023,DSO,ARMINA LTD,"11,247.50",TASK TEAM & HAT,OTHER CONTRACTORS,2103802839,3000002121
01.12.2023,Governance and Assurance,TABRIS LTD,"11,225.00",ILM COSTS,TRAINING,5902610496,1000080027
25.12.2023,Environment Neighbourhoods and Growth,KENT COUNTY COUNCIL - LASER,"11,222.95",PECKHAM LIBRARY,ELECTRICITY,5902613972,1000012926
18.12.2023,Children and Adults,COLLINGWOOD COURT (BUPA CARE HOMES),"11,211.46",PHY LTS 65+,NURSING PLACEMENTS FEES,2103799997,11042563
18.12.2023,Children and Adults,OPTIMA CARE (SHINE) LONDON LTD,"11,198.84",LD LTS 18-64,SUPPORTED LIVING,2103799573,1000079614
18.12.2023,Children and Adults,KARE HEALTHCARE LTD,"11,198.72",LD LTS 18-64,SUPPORTED LIVING,2103799330,1000089212
18.12.2023,Children and Adults,BEECHCROFT SUPPORT LIMITED,"11,168.28",LD LTS 18-64,SUPPORTED LIVING,2103799579,1000085412
15.12.2023,Children and Adults,REDACTED PERSONAL DATA,"11,162.76",MEM LTS 18-64,PAYMENTS TO CLIENTS (DIRECT PAYMENTS),2103797621,1000087779
20.12.2023,Housing,POTTER RAPER LTD,"11,128.45",CAPITAL PS (HRA),CONSTRUCTION FEES  - EXTERNAL,5902614156,1009369
27.12.2023,Children and Adults,LITTLE ACORNS DAY NURSERY,"11,126.71",NURSERY ED GRANT 3 AND 4 YR OLDS,GRANTS,2103802023,1000015844
18.12.2023,Children and Adults,SALUTEM SHARED SERVICES II LIMITED,"11,113.20",LD LTS 18-64,SUPPORTED LIVING,2103799613,1000088055
15.12.2023,Children and Adults,REDACTED PERSONAL DATA,"11,100.00",LD LTS 18-64,PAYMENTS TO CLIENTS (DIRECT PAYMENTS),2103797527,1000074131
10.12.2023,Environment Neighbourhoods and Growth,SOFTCAT PLC,"11,100.00",LEISURE INSOURCING MOBILISATION COST,HARDWARE,5902611382,1000088809
19.12.2023,Corporate,ST ANTHONYS RC SCHOOL,"11,095.03",EDUCATION VAT INPUTS,VAT CONTROL ACCOUNT,2103800365,5001000064
12.12.2023,Children and Adults,ST GEORGES CE SCHOOL,"11,083.00",LBS MAINSTREAM,HIGH NEEDS - TOP UP FUNDING,5902612605,5001000069
12.12.2023,Children and Adults,HEBER PRIMARY SCHOOL,"11,081.00",NURSERY ED GRANT 3 AND 4 YR OLDS,EARLY YEARS - 3 AND 4 YEAR OLDS,5902612520,5001000035
18.12.2023,Children and Adults,RICHARDSON DUSTON LIMITED,"11,070.52",PHY LTS 18-64,RESIDENTIAL CARE,2103800060,1000089236
10.12.2023,Environment Neighbourhoods and Growth,KENT COUNTY COUNCIL - LASER,"11,059.11",THE CASTLE CENTRE,GAS,5902611305,1000012926
02.12.2023,Environment Neighbourhoods and Growth,KENT COUNTY COUNCIL - LASER,"11,052.92",CANADA WATER LIBRARY,ELECTRICITY,5902610425,1000012926
12.12.2023,Children and Adults,JOHN RUSKIN PRIMARY SCHOOL,"11,000.00",LBS RB / SEN UNIT,HIGH NEEDS - TOP UP FUNDING,5902612536,5001000040
27.12.2023,Children and Adults,JOYFUL STAR NURSERY,"10,995.75",NURSERY ED GRANT 3 AND 4 YR OLDS,GRANTS,2103802017,1000074638
03.12.2023,Environment Neighbourhoods and Growth,ENVIRO TECHNOLOGY SERVICES PLC,"10,970.00",CAPITAL PS (LEISURE),"PLANT, MACHINERY & EQUIPMENT ACQUISITION",5902610510,1000005024
27.12.2023,Children and Adults,BIG N ALL PRESCHOOL AND DAY NURSERY,"10,945.50",NURSERY ED GRANT 3 AND 4 YR OLDS,GRANTS,2103801985,1000089398
13.12.2023,Environment Neighbourhoods and Growth,DJ & SONS BUILDERS LTD,"10,900.00",DULWICH LEISURE CENTRE,BUILDING R&M,2103795002,3000002178
20.12.2023,Children and Adults,ST JOSEPHS CATHOLIC SCHOOL,"10,888.18",FREE HEALTHY SCHOOL MEALS,EARLY YEARS - 3 AND 4 YEAR OLDS,2103800442,5001000076
27.12.2023,Children and Adults,THE BOSCO CENTRE,"10,856.63",NURSERY ED GRANT 3 AND 4 YR OLDS,GRANTS,2103801988,1000046317
20.12.2023,Children and Adults,GRANGE PRIMARY SCHOOL,"10,805.55",FREE HEALTHY SCHOOL MEALS,EARLY YEARS - 3 AND 4 YEAR OLDS,2103800428,5001000029
13.12.2023,Environment Neighbourhoods and Growth,DJ & SONS BUILDERS LTD,"10,800.00",CAPITAL PS (REGEN),CONSTRUCTION MAIN CONTRACT,2103795006,3000002178
13.12.2023,Environment Neighbourhoods and Growth,DJ & SONS BUILDERS LTD,"10,800.00",DULWICH LEISURE CENTRE,BUILDING R&M,2103795007,3000002178
19.12.2023,Corporate,ST JAMES THE GREAT RC SCHOOL,"10,795.72",EDUCATION VAT INPUTS,VAT CONTROL ACCOUNT,2103800402,5001000071
18.12.2023,Children and Adults,BEECHCROFT SUPPORT LIMITED,"10,767.12",LD LTS 18-64,SUPPORTED LIVING,2103799578,1000085412
18.12.2023,Children and Adults,FIRST CARE LODGE,"10,734.88",LD LTS 18-64,SUPPORTED LIVING,2103799586,1000084196
21.12.2023,Environment Neighbourhoods and Growth,C L ROADMARKINGS LTD,"10,720.49",ENGINEERING CRAFTS,OTHER CONTRACTORS,2103802087,3000000825
22.12.2023,Environment Neighbourhoods and Growth,THE DULWICH ESTATE,"10,718.75",ACCOMMODATION,RENTS,2103802921,3000036
22.12.2023,Environment Neighbourhoods and Growth,THE DULWICH ESTATE,"10,718.75",ACCOMMODATION,RENTS,2103802923,3000036
22.12.2023,Environment Neighbourhoods and Growth,THE DULWICH ESTATE,"10,718.75",ACCOMMODATION,RENTS,2103802925,3000036
22.12.2023,Environment Neighbourhoods and Growth,THE DULWICH ESTATE,"10,718.75",ACCOMMODATION,RENTS,2103802927,3000036
22.12.2023,Environment Neighbourhoods and Growth,THE DULWICH ESTATE,"10,718.75",ACCOMMODATION,RENTS,2103802929,3000036
22.12.2023,Environment Neighbourhoods and Growth,THE DULWICH ESTATE,"10,718.75",ACCOMMODATION,RENTS,2103802931,3000036
22.12.2023,Environment Neighbourhoods and Growth,THE DULWICH ESTATE,"10,718.75",ACCOMMODATION,RENTS,2103802933,3000036
22.12.2023,Environment Neighbourhoods and Growth,THE DULWICH ESTATE,"10,718.75",ACCOMMODATION,RENTS,2103802935,3000036
22.12.2023,Environment Neighbourhoods and Growth,THE DULWICH ESTATE,"10,718.75",ACCOMMODATION,RENTS,2103802937,3000036
22.12.2023,Environment Neighbourhoods and Growth,THE DULWICH ESTATE,"10,718.75",ACCOMMODATION,RENTS,2103802939,3000036
22.12.2023,Environment Neighbourhoods and Growth,THE DULWICH ESTATE,"10,718.75",ACCOMMODATION,RENTS,2103802941,3000036
22.12.2023,Environment Neighbourhoods and Growth,THE DULWICH ESTATE,"10,718.75",ACCOMMODATION,RENTS,2103802943,3000036
22.12.2023,Environment Neighbourhoods and Growth,THE DULWICH ESTATE,"10,718.75",ACCOMMODATION,RENTS,2103802945,3000036
22.12.2023,Environment Neighbourhoods and Growth,THE DULWICH ESTATE,"10,718.75",ACCOMMODATION,RENTS,2103802947,3000036
22.12.2023,Environment Neighbourhoods and Growth,THE DULWICH ESTATE,"10,718.75",ACCOMMODATION,RENTS,2103802949,3000036
22.12.2023,Environment Neighbourhoods and Growth,THE DULWICH ESTATE,"10,718.75",ACCOMMODATION,RENTS,2103802951,3000036
22.12.2023,Environment Neighbourhoods and Growth,THE DULWICH ESTATE,"10,718.75",ACCOMMODATION,RENTS,2103802953,3000036
22.12.2023,Environment Neighbourhoods and Growth,THE DULWICH ESTATE,"10,718.75",ACCOMMODATION,RENTS,2103802955,3000036
15.12.2023,Children and Adults,PEOPLE PLUS GROUP LTD (INDEPENDENT LIVING SERVICES),"10,707.20",LD LTS 18-64,PAYMENTS TO CLIENTS (DIRECT PAYMENTS),2103797810,1000061886
07.12.2023,Finance,GUYS & ST THOMAS NHS FOUNDATION TRUST,"10,694.00",CORONER'S,OTHER CONTRACTORS,5902611899,1765536
18.12.2023,Children and Adults,KARE HEALTHCARE LTD,"10,674.56",LD LTS 18-64,SUPPORTED LIVING,2103799728,1000089212
20.12.2023,Corporate,ROBERT BROWNING PRIMARY SCHOOL,"10,637.23",EDUCATION VAT INPUTS,VAT CONTROL ACCOUNT,2103801562,5001000057
19.12.2023,Corporate,CAMELOT PRIMARY SCHOOL,"10,627.40",EDUCATION VAT INPUTS,VAT CONTROL ACCOUNT,2103800353,5001000014
14.12.2023,Finance,HIAM ALI LTD,"10,611.30",CORONER'S,PROFESSIONAL FEES,5902613202,1000084044
18.12.2023,Children and Adults,LONDON CYRENIANS HOUSING LTD,"10,608.00",LD LTS 18-64,SUPPORTED LIVING,2103799138,1000078600
27.12.2023,Environment Neighbourhoods and Growth,CONSTELLIA PUBLIC LIMITED,"10,598.76",PECKHAM PULSE LEISURE CENTRE,PREMISES CLEANING,5902614226,1000088137
10.12.2023,Environment Neighbourhoods and Growth,KENT COUNTY COUNCIL - LASER,"10,598.47",THE CASTLE CENTRE,GAS,5902611308,1000012926
11.12.2023,Housing,L H BRIDGE LTD,"10,576.00",CAPITAL PS (HOUSING GF),CAPITAL GRANTS,5902612278,1000056928
10.12.2023,Housing,ALEXANDER MILLS CONSULTING LTD,"10,541.00",BUILDING SAFETY PROGRAMME,CONSULTANTS SERVICES,5902611278,1000088721
18.12.2023,Children and Adults,OPTIMA CARE (SHINE) LONDON LTD,"10,535.88",LD LTS 18-64,SUPPORTED LIVING,2103800014,1000079614
27.12.2023,Children and Adults,CAMBERWELL AFTER SCHOOL PROJECT,"10,521.38",NURSERY ED GRANT 3 AND 4 YR OLDS,GRANTS,2103801993,1000051625
27.12.2023,Children and Adults,MIATA EDUCATIONAL SERVICES LTD,"10,510.50",NURSERY ED GRANT 3 AND 4 YR OLDS,GRANTS,2103802002,1000003741
29.12.2023,Housing,STANDAGE & CO LTD,"10,500.44",CAPITAL PS (HRA),CONSTRUCTION MAIN CONTRACT -CERTIFICATED,2103804415,4002817
11.12.2023,Housing,CROWN HOUSING LTD,"10,500.00",TA PLACEMENTS,EXTERNAL AGENCIES AND BODIES,5902612307,1000075070
27.12.2023,Children and Adults,HATCHING DRAGONS SOUTHWARK LTD,"10,476.75",NURSERY ED GRANT 3 AND 4 YR OLDS,GRANTS,2103802014,1000087180
08.12.2023,Environment Neighbourhoods and Growth,DE GRAAFF & PARTNERS LTD,"10,476.60",CAPITAL PS (REGEN),CONSTRUCTION MAIN CONTRACT,5902610792,1000081567
18.12.2023,Children and Adults,ROYAL HOSPITAL FOR NEURODISABILITY,"10,463.12",PHY LTS 65+,NURSING PLACEMENTS FEES,2103800127,1010365
27.12.2023,Children and Adults,HEBER PRIMARY SCHOOL,"10,456.00",MATERNITY COVER,SCHOOLS CAPITATION,2103803106,5001000035
18.12.2023,Children and Adults,BOUGHTON GREEN ROAD LIMITED,"10,427.64",PHY LTS 18-64,NURSING PLACEMENTS FEES,2103799559,1000089115
27.12.2023,Children and Adults,BEORMUND PRIMARY SCHOOL,"10,422.00",TEACHERS PAY GRANT,SCHOOLS CAPITATION,2103803100,5001000008
18.12.2023,Children and Adults,LOVING CARE LTD,"10,405.00",LD LTS 18-64,RESIDENTIAL CARE,2103799394,1000082873
04.12.2023,Children and Adults,PHS GROUP PLC,"10,388.44",46 HALF MOON LANE,OTHER CONTRACTORS,5902611176,1851993
18.12.2023,Children and Adults,INSIGHT,"10,368.64",LD LTS 18-64,RESIDENTIAL CARE,2103799246,1825618
21.12.2023,Housing,PINNICALE BUILDING SERVICES LIMITED,"10,345.00",DISREPAIR,BUILDING R&M,5902614217,1000082308
18.12.2023,Children and Adults,ADMIRALTY CARE HOME LIMITED,"10,314.29",PHY LTS 65+,RESIDENTIAL CARE,2103799161,1000090492
13.12.2023,Environment Neighbourhoods and Growth,DJ & SONS BUILDERS LTD,"10,300.00",DULWICH LEISURE CENTRE,BUILDING R&M,2103795009,3000002178
18.12.2023,Children and Adults,WELLSPRING CARE HOMES LIMITED,"10,296.00",LD LTS 18-64,SUPPORTED LIVING,2103799886,1000088216
11.12.2023,Children and Adults,VOICEABILITY ADVOCACY,"10,250.00",INDEPENDENT MC ADVOCACY,ADVOCACY,5902611348,1000064254
12.12.2023,Children and Adults,VOICEABILITY ADVOCACY,"10,250.00",INDEPENDENT MC ADVOCACY,ADVOCACY,5902612722,1000064254
27.12.2023,Children and Adults,INTEGRATED SERVICES PROGRAMME,"10,232.21",FRIENDS & FAMILY FOSTERING,EXTERNAL AGENCIES AND BODIES,2103803767,1642068
06.12.2023,Children and Adults,ELIALI MPC LTD,"10,214.29",CHILDREN�S RESID,RESIDENTIAL CARE,2103793743,1000089944
07.12.2023,Environment Neighbourhoods and Growth,F M CONWAY LTD,"10,208.22",CAPITAL PS (REGEN),CONSTRUCTION,2103792639,4001384
20.12.2023,Environment Neighbourhoods and Growth,LEASEPLAN UK LTD,"10,195.37",COMMERCIAL VEH CTRL A/C,HIRED VEHICLES,5902614046,11014756
27.12.2023,Children and Adults,PURPLE JAY LIMITED,"10,193.63",NURSERY ED GRANT 3 AND 4 YR OLDS,GRANTS,2103802045,1000087821
07.12.2023,Finance,HIAM ALI LTD,"10,171.80",CORONER'S,PROFESSIONAL FEES,5902610907,1000084044
13.12.2023,Children and Adults,HM PRISON & PROBATION SERVICE,"10,168.00",REMAND - YDA YOI,RESIDENTIAL CARE,2103795625,1000083827
18.12.2023,Children and Adults,ACHIEVE TOGETHER SERVICES LIMITED,"10,142.40",LD LTS 18-64,RESIDENTIAL CARE,2103800150,1000089975
18.12.2023,Environment Neighbourhoods and Growth,AND FITNESS FOR ALL CIC,"10,137.60",CAPITAL PS (LEISURE),CAPITAL GRANTS,5902613628,1000090396
12.12.2023,Children and Adults,ST JAMES THE GREAT RC SCHOOL,"10,137.00",NURSERY ED GRANT 3 AND 4 YR OLDS,EARLY YEARS - 3 AND 4 YEAR OLDS,5902612610,5001000071
10.12.2023,Housing,WALWORTH GARDEN LTD,"10,136.42",GARDEN MAINTENANCE PROJECT,GROUNDS MAINTENANCE,5902612040,1000042204
18.12.2023,Housing,DUCTCLEAN (UK) LTD,"10,091.00",DUCTCLEAN,I-WORLD CONTRACTORS HOLDING ACCOUNT,2103798714,3000001635
12.12.2023,Children and Adults,IVYDALE PRIMARY SCHOOL,"10,083.00",LBS MAINSTREAM,HIGH NEEDS - TOP UP FUNDING,5902612531,5001000038
19.12.2023,Housing,SHUTTLEWORTH (UK) LTD,"10,080.00",NIGHTLY TA (NSC),EXTERNAL AGENCIES AND BODIES,5902613911,1000056468
20.12.2023,Children and Adults,ST JAMES THE GREAT RC SCHOOL,"10,079.49",FREE HEALTHY SCHOOL MEALS,EARLY YEARS - 3 AND 4 YEAR OLDS,2103800450,5001000071
20.12.2023,Children and Adults,ROBERT BROWNING PRIMARY SCHOOL,"10,059.23",FREE HEALTHY SCHOOL MEALS,EARLY YEARS - 3 AND 4 YEAR OLDS,2103800440,5001000057
18.12.2023,Children and Adults,CARETECH COMMUNITY SERVICES LTD,"10,034.64",LD LTS 18-64,RESIDENTIAL CARE,2103799989,1000066698
11.12.2023,Environment Neighbourhoods and Growth,DJ & SONS BUILDERS LTD,"10,000.00",CAPITAL PS (REGEN),CONSTRUCTION MAIN CONTRACT,2103794535,3000002178
18.12.2023,Environment Neighbourhoods and Growth,REDACTED PERSONAL DATA,"10,000.00",LICENSING,LEGAL FEES & COURT COSTS,2103800228,1000054298
04.12.2023,Finance,ID CONSULTING LTD,"10,000.00",DIGITAL DELIVERY,CONSULTANTS SERVICES,5902611072,1000090290
22.12.2023,Finance,FAMILY FUND TRADING LTD,"10,000.00",SESS,OTHER PAYMENTS FOR CLIENTS,5902613997,1000071092
22.12.2023,Children and Adults,ALLPAY LTD (ADULTS - INSTANT ISSUE,"10,000.00",DIR OF ASC,MISCELLANEOUS RECHARGES,5902614642,1000079884
18.12.2023,Environment Neighbourhoods and Growth,WALWORTH GARDEN LTD,"9,999.00",CAPITAL PS (LEISURE),CAPITAL GRANTS,5902612780,1000042204
13.12.2023,Housing,SECURENT LTD,"9,990.00",NIGHTLY TA (NSC),EXTERNAL AGENCIES AND BODIES,5902612849,1000079400
27.12.2023,Children and Adults,LONDON EARLY YEARS FOUNDATION,"9,953.40",NURSERY ED GRANT 3 AND 4 YR OLDS,GRANTS,2103802012,1000077919
27.12.2023,Children and Adults,REDACTED PERSONAL DATA,"9,952.02",NURSERY ED GRANT 3 AND 4 YR OLDS,GRANTS,2103801987,1000054116
18.12.2023,Children and Adults,OPTIMA CARE (SHINE) LONDON LTD,"9,946.12",LD LTS 18-64,SUPPORTED LIVING,2103799716,1000079614
18.12.2023,Children and Adults,OPTIMA CARE (SHINE) LONDON LTD,"9,946.12",LD LTS 18-64,SUPPORTED LIVING,2103799717,1000079614
18.12.2023,Children and Adults,OZUMBA TRAINING AND CONSULTANCY SERVICES,"9,914.72",LD LTS 18-64,SUPPORTED LIVING,2103799854,1000090089
18.12.2023,Children and Adults,BEECHCROFT SUPPORT LIMITED,"9,909.96",LD LTS 18-64,SUPPORTED LIVING,2103799580,1000085412
18.12.2023,Environment Neighbourhoods and Growth,J KASH LTD,"9,894.22",PUBLIC LIGHTING,OTHER CONTRACTORS,2103800268,3000002219
18.12.2023,Children and Adults,LONDON CYRENIANS HOUSING LTD,"9,876.16",LD LTS 18-64,SUPPORTED LIVING,2103800012,1000078600
27.12.2023,Children and Adults,BROADLANDS HALL LIMITED,"9,875.00",DISABILITIES LAC,RESIDENTIAL CARE,2103803706,1000084303
18.12.2023,Children and Adults,INSIGHT,"9,857.96",LD LTS 18-64,RESIDENTIAL CARE,2103799123,1825618
13.12.2023,Children and Adults,HM PRISON & PROBATION SERVICE,"9,840.00",REMAND - YDA YOI,RESIDENTIAL CARE,2103795622,1000083827
19.12.2023,Environment Neighbourhoods and Growth,TOFCO CPP LTD,"9,840.00",PUBLIC LIGHTING,MATERIALS,5902613895,1000084062
18.12.2023,Children and Adults,CASSRA LLP T/A CROHAM PLACE,"9,780.00",PHY LTS 18-64,NURSING PLACEMENTS FEES,2103799877,1000082899
12.12.2023,Finance,LEADTEC LIMITED,"9,775.00",CAPITAL PS (STRAT SERV),ICT ACQUISITION,5902612399,1000088992
12.12.2023,Children and Adults,BELLENDEN PRIMARY SCHOOL,"9,764.00",NURSERY ED GRANT 3 AND 4 YR OLDS,EARLY YEARS - 3 AND 4 YEAR OLDS,5902612448,5001000007
22.12.2023,Housing,REDACTED PERSONAL DATA,"9,756.50",NIGHTLY TA (NSC),EXTERNAL AGENCIES AND BODIES,5902614518,1000061134
11.12.2023,Children and Adults,ILDERTON MOTORVEHICLE PROJECT,"9,750.00",AP & HOSPITAL SCHLS,STATEMENTED FEES,2103794742,1000066082
11.12.2023,Housing,LAMBERT SMITH HAMPTON GROUP LTD,"9,750.00",TECHNICAL SUPPORT,PROFESSIONAL FEES,5902612368,1000060045
18.12.2023,Housing,STANDAGE & CO LTD,"9,744.00",AYLESBURY,SECURITY SERVICES,2103798705,4002817
18.12.2023,Children and Adults,FIRST CARE LODGE,"9,730.24",LD LTS 18-64,SUPPORTED LIVING,2103800016,1000084196
27.12.2023,Children and Adults,SUNLITE RECRUITMENT COMPANY LIMITED,"9,720.00",SEMI-IND CARELEAVERS,EXTERNAL AGENCIES AND BODIES,2103803802,1000089704
18.12.2023,Children and Adults,ASD UNIQUE SERVICES LTD,"9,665.80",LD LTS 18-64,RESIDENTIAL CARE,2103799954,1000038819
18.12.2023,Children and Adults,BRANDON TRUST,"9,618.96",LD LTS 18-64,SUPPORTED LIVING,2103800143,1000042417
19.12.2023,DSO,J KASH LTD,"9,584.94",SR COMMUNAL - DELIVERY TEAM,OTHER CONTRACTORS,2103800696,3000002219
19.12.2023,DSO,SMITHY DECORATING,"9,581.32",SBS DISREPAIR,OTHER CONTRACTORS,2103800694,3000002050
12.12.2023,Governance and Assurance,CORPORATE DOCUMENT SERVICES LTD,"9,577.33",REPAIR AND MAINTENANCE SERVICES,PRINTING,5902612766,11324274
11.12.2023,Children and Adults,PHEBDAN HEALTHCARE SERVICES LIMITED,"9,560.00",LD LTS 18-64 AAD,SUPPORTED LIVING,2103794627,1000087033
18.12.2023,Children and Adults,CARETECH COMMUNITY SERVICES LTD,"9,553.40",LD LTS 18-64,RESIDENTIAL CARE,2103799414,1000066698
18.12.2023,Children and Adults,COUNTRY COURT CARE HOMES 2 LTD,"9,550.99",DISCHARGE TO ACCESS,NURSING PLACEMENTS FEES,2103799306,1000080172
12.12.2023,Housing,VIGILANT SECURITY SERVICES UK,"9,525.92",DAVID BARKER HOSTEL,SECURITY SERVICES,5902612390,1000090073
20.12.2023,Housing,BELSHAW & CURTIN SOLICITORS,"9,514.00",DISREPAIR,PAYMENTS FOR LEGAL SERVICES,2103801594,1767379
13.12.2023,Suspense,LONDON PENSIONS FUND AUTHORITY,"9,513.63",SUSPENSE ACCOUNT (COMPANY CODE 1000),PAYROLL CREDITORS - OTHER PENSION FUNDS,2103795973,1000062252
20.12.2023,Housing,STABILIS ASSOCIATES LTD,"9,504.00",REPAIRS OPERATIONS,PROFESSIONAL FEES,5902614181,1000082512
11.12.2023,Housing,CAPITAL SERVICES LONDON LTD,"9,500.00",COMMERCIAL (QS),PROFESSIONAL FEES,5902611277,1000082548
12.12.2023,Finance,COMMUNITY SOUTHWARK,"9,500.00",COST OF LIVING FUND,OTHER CONTRACTORS,5902612673,1000018147
11.12.2023,Environment Neighbourhoods and Growth,METIS CONSULTANTS LIMITED,"9,495.83",SECTION 278 & 38,OTHER CONTRACTORS,5902611101,1000086330
18.12.2023,Children and Adults,RAINTREE CARE LTD,"9,480.00",LD LTS 18-64 AAD,SUPPORTED LIVING,2103799619,1000087495
20.12.2023,Children and Adults,RYE OAK PRIMARY SCHOOL,"9,459.23",FREE HEALTHY SCHOOL MEALS,EARLY YEARS - 3 AND 4 YEAR OLDS,2103800441,5001000059
10.12.2023,Environment Neighbourhoods and Growth,MACE LTD,"9,450.00",CAPITAL PS (REGEN),CONSTRUCTION FEES,5902612184,1000067959
04.12.2023,Housing,C&C BUILDERS LTD,"9,443.02",CAPITAL PS (HOUSING GF),CAPITAL GRANTS,2103793064,3000001986
15.12.2023,Housing,GOLDSTONE ESTATES LTD,"9,436.40",NIGHTLY TA (NSC),EXTERNAL AGENCIES AND BODIES,5902613395,1000076548
18.12.2023,Children and Adults,CHOICE SUPPORT,"9,434.40",LD LTS 18-64,SUPPORTED LIVING,2103799339,1104183
06.12.2023,Children and Adults,HOMERTON UNIVERSITY HOSPITAL NHS FOUNDATION TRUST,"9,425.91",SEXUAL HEALTH - STI,MEDICAL / HEALTH & SAFETY SERVICES,5902611646,1000075435
18.12.2023,Children and Adults,ALWAYS INCLUSIVE LTD,"9,422.40",LD LTS 18-64,SUPPORTED LIVING,2103800120,1000088268
12.12.2023,Children and Adults,THE ST THOMAS THE APOSTLE COLLEGE,"9,417.00",LBS MAINSTREAM,HIGH NEEDS - TOP UP FUNDING,5902612620,5001000074
12.12.2023,Children and Adults,THE GROVE CHILDRENS CENTRE,"9,417.00",LBS MAINSTREAM,HIGH NEEDS - TOP UP FUNDING,5902612651,5001000090
19.12.2023,Finance,HIAM ALI LTD,"9,410.40",CORONER'S,PROFESSIONAL FEES,5902613750,1000084044
06.12.2023,Environment Neighbourhoods and Growth,BARCHAM TREES PLC,"9,409.00",CAPITAL PS (LEISURE),CONSTRUCTION FEES,5902611554,11254891
19.12.2023,Corporate,ST JOSEPHS CATHOLIC PRIMARY SCHOOL,"9,403.99",EDUCATION VAT INPUTS,VAT CONTROL ACCOUNT,2103800390,5001000078
18.12.2023,Children and Adults,OCEAN COMMUNITY SERVICES LTD,"9,384.36",LD LTS 18-64,RESIDENTIAL CARE,2103799529,1000050124
20.12.2023,Children and Adults,CHARLOTTE  SHARMAN PRIMARY SCHOOL,"9,367.91",FREE HEALTHY SCHOOL MEALS,EARLY YEARS - 3 AND 4 YEAR OLDS,2103800422,5001000016
08.12.2023,Children and Adults,BRESLIN CONSTRUCTION LTD,"9,360.00",COMMISSIONING DIRECTORATE,SECURITY EQUIPMENT F&F,5902612058,1000078031
20.12.2023,Children and Adults,SNOWSFIELDS PRIMARY SCHOOL,"9,350.54",FREE HEALTHY SCHOOL MEALS,EARLY YEARS - 3 AND 4 YEAR OLDS,2103800443,5001000061
12.12.2023,Children and Adults,AON SOLUTIONS UK LTD,"9,340.00",DIRECTOR OF EDUCATION,PROFESSIONAL FEES,5902612792,1000000036
12.12.2023,Children and Adults,RYE OAK PRIMARY SCHOOL,"9,333.00",LBS MAINSTREAM,HIGH NEEDS - TOP UP FUNDING,5902612581,5001000059
12.12.2023,Children and Adults,ST ANTHONYS RC SCHOOL,"9,333.00",LBS MAINSTREAM,HIGH NEEDS - TOP UP FUNDING,5902612595,5001000064
08.12.2023,Environment Neighbourhoods and Growth,MOTT MACDONALD LTD,"9,305.00",CAPITAL PS (REGEN),CONSTRUCTION FEES,5902612162,1000067305
18.12.2023,Children and Adults,GREEN CARE AND SUPPORT LIMITED,"9,276.80",LD LTS 18-64,SUPPORTED LIVING,2103799585,1000087661
14.12.2023,Housing,POTTER RAPER LTD,"9,258.33",CAPITAL PS (HRA),CONSTRUCTION FEES - EMPLOYERS AGENT,5902611897,1009369
18.12.2023,Children and Adults,FIRST CARE LODGE,"9,256.00",LD LTS 18-64,SUPPORTED LIVING,2103799087,1000084196
02.12.2023,Housing,PULSE ASSOCIATES LTD (T/A PULSE CONSULT),"9,250.00",CAPITAL PS (HRA),CONSTRUCTION FEES  - EXTERNAL,5902610236,1000087233
10.12.2023,Finance,METIS CONSULTANTS LIMITED,"9,250.00",MASTER PLAN - H/WAY & TRANS INTERCHANGE,PROFESSIONAL FEES,5902611140,1000086330
08.12.2023,Children and Adults,UNIVERSITY OF EXETER,"9,250.00",SCHOLARSHIP SCHEME,EXTERNAL AGENCIES AND BODIES,5902612048,1000042056
21.12.2023,Children and Adults,QUEEN MARY UNIVERSITY OF LONDON,"9,250.00",SCHOLARSHIP SCHEME,EXTERNAL AGENCIES AND BODIES,5902614236,1000067740
21.12.2023,Children and Adults,UNIVERSITY OF EAST LONDON,"9,250.00",SCHOLARSHIP SCHEME,EXTERNAL AGENCIES AND BODIES,5902614237,1000050467
21.12.2023,Children and Adults,UNIVERSITY OF SURREY,"9,250.00",SCHOLARSHIP SCHEME,EXTERNAL AGENCIES AND BODIES,5902614238,1000031791
21.12.2023,Children and Adults,UNIVERSITY OF EAST ANGLIA,"9,250.00",SCHOLARSHIP SCHEME,EXTERNAL AGENCIES AND BODIES,5902614239,1000089173
29.12.2023,Children and Adults,LOUGHBOROUGH UNIVERSITY,"9,250.00",SCHOLARSHIP SCHEME,EXTERNAL AGENCIES AND BODIES,5902615187,1000039223
29.12.2023,Children and Adults,MANCHESTER METROPOLITAN UNIVERSITY,"9,250.00",SCHOLARSHIP SCHEME,EXTERNAL AGENCIES AND BODIES,5902615377,1000052052
27.12.2023,Children and Adults,LITTLE ME CANADA WATER LTD,"9,227.45",NURSERY ED GRANT 3 AND 4 YR OLDS,GRANTS,2103802029,1000083348
15.12.2023,Children and Adults,REDACTED PERSONAL DATA,"9,214.20",PHB - SEL ICB,RECOVERABLE COSTS INCL. HEALTH,2103796975,1000044274
18.12.2023,Children and Adults,CHOICE CARE GROUP,"9,200.08",LD LTS 18-64,RESIDENTIAL CARE,2103800026,1572506
18.12.2023,Children and Adults,LONDON CYRENIANS HOUSING LTD,"9,196.40",LD LTS 18-64,SUPPORTED LIVING,2103799137,1000078600
27.12.2023,Children and Adults,ARC COMMUNITY TRUSTEES,"9,184.50",NURSERY ED GRANT 3 AND 4 YR OLDS,GRANTS,2103801983,1000046206
18.12.2023,Children and Adults,CHOICE CARE GROUP,"9,181.28",LD LTS 18-64,RESIDENTIAL CARE,2103799361,1572506
12.12.2023,Children and Adults,OLIVER GOLDSMITH PRIMARY SCHOOL,"9,171.00",NURSERY ED GRANT 3 AND 4 YR OLDS,EARLY YEARS - 3 AND 4 YEAR OLDS,5902612554,5001000051
12.12.2023,Housing,CAMBRIDGE HOUSE & TALBOT,"9,166.67",DISREPAIR,PAYMENTS FOR LEGAL SERVICES,2103794791,1139414
12.12.2023,Children and Adults,ST JOSEPHS CATHOLIC PRIMARY SCHOOL,"9,164.00",NURSERY ED GRANT 3 AND 4 YR OLDS,EARLY YEARS - 3 AND 4 YEAR OLDS,5902612629,5001000078
20.12.2023,Children and Adults,HOLLYDALE PRIMARY SCHOOL,"9,156.33",FREE HEALTHY SCHOOL MEALS,EARLY YEARS - 3 AND 4 YEAR OLDS,2103800430,5001000036
15.12.2023,Children and Adults,REDACTED PERSONAL DATA,"9,142.28",LD LTS 18-64 AAD,PAYMENTS TO CLIENTS (DIRECT PAYMENTS),2103797131,1000080806
27.12.2023,Children and Adults,FLEET TUTORS,"9,133.00",VIRTUAL SCHOOL PP,EXTERNAL AGENCIES AND BODIES,5902614811,1000044820
18.12.2023,Children and Adults,LEONARD CHESHIRE (CHIPSTEAD LAKE),"9,126.12",PHY LTS 18-64,RESIDENTIAL CARE,2103799696,1000049764
18.12.2023,Children and Adults,THE AVENUES TRUST,"9,091.48",LD LTS 18-64,RESIDENTIAL CARE,2103800039,1981708
18.12.2023,Children and Adults,CHOICE CARE GROUP,"9,089.08",LD LTS 18-64,RESIDENTIAL CARE,2103799497,1572506
18.12.2023,Children and Adults,CHOICE SUPPORT,"9,079.36",LD LTS 65+,SUPPORTED LIVING,2103799715,1104183
19.12.2023,Corporate,BETHLEM & MAUDSLEY HOSPITAL SCHOOL,"9,031.93",EDUCATION VAT INPUTS,VAT CONTROL ACCOUNT,2103800366,5001000010
18.12.2023,Finance,SHARPE PRITCHARD LLP,"9,025.60",CANADA WATER,LEGAL FEES & COURT COSTS,5902613534,1790085
04.12.2023,Children and Adults,MITUS CARE LTD,"9,000.00",CHILDREN�S RESID,RESIDENTIAL CARE,2103793024,1000090130
01.12.2023,Finance,NEC SOFTWARE SOLUTIONS UK LTD,"9,000.00",ADMINISTRATIVE SUPPORT,SOFTWARE,5902610285,1000087043
12.12.2023,Children and Adults,KEYWORTH PRIMARY SCHOOL,"9,000.00",LBS MAINSTREAM,HIGH NEEDS - TOP UP FUNDING,5902612541,5001000041
12.12.2023,Housing,HUNTER & PARTNERS LTD,"9,000.00",CAPITAL PS (HRA),CONSTRUCTION FEES - ARCHITECT,5902612730,1000055088
22.12.2023,Housing,INTERIM PARTNERS LIMITED,"9,000.00",AM TRANSFORMATION COSTS,CONSULTANTS SERVICES,5902613518,1000089772
18.12.2023,Children and Adults,FIR TREE LODGE (SEE ABILITY),"8,995.40",LD LTS 18-64,RESIDENTIAL CARE,2103799240,1000052257
27.12.2023,Children and Adults,GERMAN KINDERGARTEN LTD,"8,994.38",NURSERY ED GRANT 3 AND 4 YR OLDS,GRANTS,2103802008,1000058090
18.12.2023,Children and Adults,SAFFRONLAND HOMES (MINEHEAD),"8,979.36",LD LTS 65+,RESIDENTIAL CARE,2103799950,1000072152
18.12.2023,Children and Adults,SAFFRONLAND HOMES (HESTIA),"8,978.92",LD LTS 18-64,RESIDENTIAL CARE,2103799509,1000021616
18.12.2023,Children and Adults,SAFFRONLAND HOMES (HESTIA),"8,978.92",LD LTS 18-64,RESIDENTIAL CARE,2103799735,1000021616
23.12.2023,Environment Neighbourhoods and Growth,PSLT LIMITED,"8,966.00",LEISURE CENTRAL COST,PLANNED MAINTENANCE,5902614174,1000089819
13.12.2023,Housing,WALWORTH GARDEN LTD,"8,963.42",GARDEN MAINTENANCE PROJECT,GROUNDS MAINTENANCE,5902612992,1000042204
11.12.2023,Governance and Assurance,WORKING ON WELLBEING LTD,"8,944.25",OPTIMA HEALTH,MEDICAL / HEALTH & SAFETY SERVICES,5902612289,1000077251
11.12.2023,Housing,QUINARY LTD,"8,940.00",NIGHTLY TA (NSC),EXTERNAL AGENCIES AND BODIES,5902612319,1000029106
21.12.2023,Children and Adults,ROYAL BOROUGH OF KENSINGTON & CHELSEA,"8,937.30",POST 16,SOFTWARE,5902614428,1000033864
18.12.2023,Children and Adults,CARETECH COMMUNITY SERVICES LTD,"8,927.16",LD LTS 18-64,RESIDENTIAL CARE,2103799814,1000066698
19.12.2023,Housing,VIGILANT SECURITY SERVICES UK,"8,912.00",MANOR PLACE HOSTEL,SECURITY SERVICES,5902613786,1000090073
18.12.2023,Children and Adults,SAFFRONLAND HOMES (HESTIA),"8,906.00",LD LTS 18-64,RESIDENTIAL CARE,2103799708,1000021616
27.12.2023,Children and Adults,MARYAMS NURSERY LTD,"8,902.13",NURSERY ED GRANT 3 AND 4 YR OLDS,GRANTS,2103802036,1000088453
04.12.2023,Housing,SOUTH EAST BUILDING CONTRACTORS LTD,"8,890.36",CAPITAL PS (HOUSING GF),CAPITAL GRANTS,5902611116,1000049893
22.12.2023,Housing,J & M OASIS LTD,"8,879.40",NIGHTLY TA (NSC),EXTERNAL AGENCIES AND BODIES,5902614559,1000072169
27.12.2023,Housing,ARMINA LTD,"8,875.27",DISREPAIR,BUILDING R&M,2103803090,3000002121
18.12.2023,Children and Adults,DIAGRAMA HEALTH CARE,"8,859.44",LD LTS 18-64,RESIDENTIAL CARE,2103800093,1000075492
19.12.2023,DSO,SER CONTRACTOR LTD,"8,850.85",SR - VOIDS TEAM,OTHER CONTRACTORS,2103800687,3000002234
19.12.2023,Housing,LODGISTICS ESTATES,"8,848.45",PSL PLACEMENTS,EXTERNAL AGENCIES AND BODIES,5902613903,1000080324
04.12.2023,DSO,ARMINA LTD,"8,827.57",ROTHERHITHE & BERMONDSEY DD,OTHER CONTRACTORS,2103792638,3000002121
18.12.2023,Children and Adults,RIGHT SUPPORT MANAGEMENT LTD,"8,825.84",LD LTS 18-64,SUPPORTED LIVING,2103799719,1000070289
18.12.2023,Finance,FRAME PROJECTS LTD,"8,825.00",OKR MASTER PLANNING,PROFESSIONAL FEES,5902613639,1000085978
29.12.2023,Housing,STAR PEOPLE LTD,"8,820.00",NIGHTLY TA (NSC),EXTERNAL AGENCIES AND BODIES,5902615132,1000088790
18.12.2023,Children and Adults,ASHINGHAM HOUSE LIMITED,"8,819.16",LD LTS 18-64,RESIDENTIAL CARE,2103799190,1000016504
06.12.2023,Housing,HITACHI SOLUTIONS EUROPE LIMITED,"8,812.50",REPAIRS OPERATIONS,CONSULTANTS SERVICES,5902611697,1000084180
18.12.2023,Children and Adults,BEECHCROFT SUPPORT LIMITED,"8,806.72",MH LTS 18-64,SUPPORTED LIVING,2103799827,1000085412
27.12.2023,Children and Adults,BASCULE LTD,"8,793.38",NURSERY ED GRANT 3 AND 4 YR OLDS,GRANTS,2103802038,1000037268
22.12.2023,Environment Neighbourhoods and Growth,INVICTA BUILDING SERVICES LTD,"8,791.02",CAPITAL PS (REGEN),CONSTRUCTION MAIN CONTRACT,2103798695,3000001295
18.12.2023,Children and Adults,BRITISH HOME & HOSPITAL FOR INCURABLES,"8,789.16",PHY LTS 65+,NURSING PLACEMENTS FEES,2103799424,1001606
11.12.2023,Housing,CHRIS DAVIS CONSULTANCY LTD,"8,787.50",CAPITAL PS (HRA),CONSTRUCTION,5902611355,1000084202
27.12.2023,Children and Adults,LITTLE PIPS PRESCHOOL,"8,775.00",NURSERY ED GRANT 3 AND 4 YR OLDS,GRANTS,2103802030,1000079580
18.12.2023,Children and Adults,BROADHAM CARE LIMITED,"8,752.16",LD LTS 18-64,RESIDENTIAL CARE,2103799452,1000057411
13.12.2023,Finance,MAKING PLACES TOGETHER LTD.,"8,750.00",DIGITAL TRANSFORMATION TEAM,CONSULTANTS SERVICES,5902611401,1000089222
18.12.2023,Housing,BRESLIN CONSTRUCTION LTD,"8,740.00",COMMERCIAL PROPERTIES,BUILDING R&M,2103798716,3000001948
18.12.2023,Housing,SANDERSONS BUILDING SERVICES LTD,"8,710.65",DISREPAIR,BUILDING R&M,2103800304,3000002065
12.12.2023,Finance,FUJITSU SERVICES LTD,"8,704.17",CAPITAL PS (STRAT SERV),ICT ACQUISITION,5902612806,1000089033
18.12.2023,Children and Adults,CHOICE SUPPORT,"8,700.56",LD LTS 18-64,SUPPORTED LIVING,2103799341,1104183
18.12.2023,Housing,SANDERSONS BUILDING SERVICES LTD,"8,695.32",DISREPAIR,BUILDING R&M,2103800303,3000002065
12.12.2023,Children and Adults,RYE OAK PRIMARY SCHOOL,"8,694.00",LBS RB / SEN UNIT,HIGH NEEDS - BASE FUNDING,5902612578,5001000059
22.12.2023,Housing,BRESLIN CONSTRUCTION LTD,"8,680.00",COMMERCIAL PROPERTIES,BUILDING R&M,2103798267,3000001948
18.12.2023,Housing,DIAMOND PROPERTY MANAGEMENT LTD,"8,670.00",TA PLACEMENTS,EXTERNAL AGENCIES AND BODIES,5902613499,1000088789
19.12.2023,Corporate,ST MARY MAGDALENE CE SCHOOL,"8,669.22",EDUCATION VAT INPUTS,VAT CONTROL ACCOUNT,2103800325,5001000080
12.12.2023,Children and Adults,ALBION PRIMARY SCHOOL,"8,667.00",LBS MAINSTREAM,HIGH NEEDS - TOP UP FUNDING,5902612443,5001000000
12.12.2023,Children and Adults,ST FRANCIS'S RC PRIMARY SCHOOL,"8,667.00",LBS MAINSTREAM,HIGH NEEDS - TOP UP FUNDING,5902612599,5001000067
18.12.2023,Children and Adults,BRITISH HOME & HOSPITAL FOR INCURABLES,"8,664.00",PHY LTS 18-64,NURSING PLACEMENTS FEES,2103800174,1001606
19.12.2023,Corporate,MICHAEL FARADAY PRIMARY SCHOOL,"8,647.53",EDUCATION VAT INPUTS,VAT CONTROL ACCOUNT,2103800388,5001000048
18.12.2023,Children and Adults,BRANDON TRUST,"8,647.00",LD LTS 18-64,SUPPORTED LIVING,2103799927,1000042417
20.12.2023,Children and Adults,FRIARS PRIMARY (FOUNDATION) SCHOOL,"8,641.86",FREE HEALTHY SCHOOL MEALS,EARLY YEARS - 3 AND 4 YEAR OLDS,2103800427,5001000033
19.12.2023,Corporate,GRANGE PRIMARY SCHOOL,"8,618.01",EDUCATION VAT INPUTS,VAT CONTROL ACCOUNT,2103800323,5001000029
18.12.2023,Children and Adults,SAFFRONLAND HOMES (HESTIA),"8,612.20",LD LTS 18-64,RESIDENTIAL CARE,2103799944,1000021616
12.12.2023,Children and Adults,BIONICAL SOLUTIONS LIMITED,"8,600.00",STOP SMOKING,EXTERNAL AGENCIES AND BODIES,5902612409,1000084774
12.12.2023,Children and Adults,MICHAEL FARADAY PRIMARY SCHOOL,"8,583.00",LBS MAINSTREAM,HIGH NEEDS - TOP UP FUNDING,5902612552,5001000048
27.12.2023,Children and Adults,SUNSHINE FRUITS NURSERY LTD,"8,580.98",NURSERY ED GRANT 3 AND 4 YR OLDS,GRANTS,2103802061,1000081059
27.12.2023,Children and Adults,PARENT AND CHILD FOSTERING ASSESSMENTS,"8,578.00",FRIENDS & FAMILY FOSTERING,EXTERNAL AGENCIES AND BODIES,2103803762,1000078962
19.12.2023,Finance,FARRELLS (LONDON) LLP,"8,577.50",OKR MASTER PLANNING,PROFESSIONAL FEES,5902613954,1000083336
18.12.2023,Children and Adults,GROVE CARE PARTNERSHIP LIMITED,"8,553.08",LD LTS 18-64,RESIDENTIAL CARE,2103799759,1000052893
11.12.2023,Children and Adults,OASIS ACADEMY SOUTH BANK,"8,535.74",AC & FREE - MSTREAM,STATEMENTED FEES,2103794724,1000073422
11.12.2023,Children and Adults,OASIS ACADEMY SOUTH BANK,"8,535.74",AC & FREE - MSTREAM,STATEMENTED FEES,2103794726,1000073422
11.12.2023,Children and Adults,OASIS ACADEMY SOUTH BANK,"8,535.74",AC & FREE - MSTREAM,STATEMENTED FEES,2103794728,1000073422
11.12.2023,Children and Adults,OASIS ACADEMY SOUTH BANK,"8,535.74",AC & FREE - MSTREAM,STATEMENTED FEES,2103794729,1000073422
11.12.2023,Children and Adults,JOHN DONNE PRIMARY SCHOOL,"8,535.74",AC & FREE - MSTREAM,STATEMENTED FEES,2103794751,1000073253
11.12.2023,Children and Adults,JOHN DONNE PRIMARY SCHOOL,"8,535.74",AC & FREE - MSTREAM,STATEMENTED FEES,2103794755,1000073253
11.12.2023,Children and Adults,JOHN DONNE PRIMARY SCHOOL,"8,535.74",AC & FREE - MSTREAM,STATEMENTED FEES,2103794756,1000073253
11.12.2023,Children and Adults,JOHN DONNE PRIMARY SCHOOL,"8,535.74",AC & FREE - MSTREAM,STATEMENTED FEES,2103794757,1000073253
11.12.2023,Children and Adults,JOHN DONNE PRIMARY SCHOOL,"8,535.74",AC & FREE - MSTREAM,STATEMENTED FEES,2103794758,1000073253
11.12.2023,Children and Adults,JOHN DONNE PRIMARY SCHOOL,"8,535.74",AC & FREE - MSTREAM,STATEMENTED FEES,2103794761,1000073253
11.12.2023,Children and Adults,JOHN DONNE PRIMARY SCHOOL,"8,535.74",AC & FREE - MSTREAM,STATEMENTED FEES,2103794762,1000073253
11.12.2023,Children and Adults,JOHN DONNE PRIMARY SCHOOL,"8,535.74",AC & FREE - MSTREAM,STATEMENTED FEES,2103794763,1000073253
11.12.2023,Children and Adults,JOHN DONNE PRIMARY SCHOOL,"8,535.74",AC & FREE - MSTREAM,STATEMENTED FEES,2103794764,1000073253
15.12.2023,Children and Adults,OAKFIELD PREPARATORY SCHOOL,"8,531.00",INDEP MAINSTREAM,STATEMENTED FEES,2103798250,1000066448
15.12.2023,Children and Adults,OAKFIELD PREPARATORY SCHOOL,"8,531.00",INDEP MAINSTREAM,STATEMENTED FEES,2103798251,1000066448
27.12.2023,Environment Neighbourhoods and Growth,CONSTELLIA PUBLIC LIMITED,"8,510.18",DULWICH LEISURE CENTRE,PREMISES CLEANING,5902614228,1000088137
18.12.2023,Children and Adults,BOUGHTON GREEN ROAD LIMITED,"8,505.00",PHY LTS 18-64,NURSING PLACEMENTS FEES,2103799983,1000089115
01.12.2023,Children and Adults,NOURISH SCOTLAND,"8,500.00",SUSTAINABLE FOOD,TRAINING,5902610234,1000090414
23.12.2023,Children and Adults,BLOOM PROCUREMENT SERVICES LTD,"8,500.00",CAPITAL PS (EDUCATION),CONSTRUCTION FEES,5902614526,1000082531
28.12.2023,Environment Neighbourhoods and Growth,THEATRE PECKHAM,"8,500.00",ARTS GRANTS,GRANTS,5902614897,1071668
11.12.2023,Children and Adults,JOHN DONNE PRIMARY SCHOOL,"8,498.87",AC & FREE - MSTREAM,STATEMENTED FEES,2103794754,1000073253
18.12.2023,Children and Adults,L & Q LIVING,"8,485.00",LD LTS 18-64,SUPPORTED LIVING,2103799322,1000057917
29.12.2023,Governance and Assurance,"HEADSPACE, INC","8,464.00",HR PAYROLL COSTS,MEDICAL / HEALTH & SAFETY SERVICES,5902615131,1000087719
27.12.2023,Children and Adults,UNDER THE WILLOW NURSERY,"8,458.13",NURSERY ED GRANT 3 AND 4 YR OLDS,GRANTS,2103802068,1000071830
11.12.2023,Housing,ROOFF LTD,"8,452.45",CAPITAL PS (HRA),CONSTRUCTION MAIN CONTRACT -CERTIFICATED,2103794520,3000001090
14.12.2023,Housing,VIGILANT SECURITY SERVICES UK,"8,448.00",MANOR PLACE HOSTEL,SECURITY SERVICES,5902613194,1000090073
18.12.2023,Children and Adults,GARLAND LODGE LTD,"8,444.80",LD LTS 18-64,SUPPORTED LIVING,2103799577,1000084016
14.12.2023,Environment Neighbourhoods and Growth,KENT COUNTY COUNCIL - LASER,"8,444.22",PECKHAM PULSE LEISURE CENTRE,GAS,5902611736,1000012926
20.12.2023,Children and Adults,TOWER BRIDGE PRIMARY SCHOOL,"8,438.96",FREE HEALTHY SCHOOL MEALS,EARLY YEARS - 3 AND 4 YEAR OLDS,2103800458,5001000095
18.12.2023,Children and Adults,OPTIMA CARE (SHINE) LONDON LTD,"8,433.00",LD LTS 18-64,SUPPORTED LIVING,2103799572,1000079614
21.12.2023,Environment Neighbourhoods and Growth,REDLYNCH LEISURE INSTALLATIONS LTD,"8,401.50",CAPITAL PS (LEISURE),CONSTRUCTION FEES  - EXTERNAL,2103801972,3000000670
19.12.2023,Environment Neighbourhoods and Growth,REDLYNCH LEISURE INSTALLATIONS LTD,"8,401.50",CAPITAL PS (LEISURE),CONSTRUCTION FEES  - EXTERNAL,5902614127,3000000670
19.12.2023,Corporate,ST FRANCIS'S RC PRIMARY SCHOOL,"8,382.44",EDUCATION VAT INPUTS,VAT CONTROL ACCOUNT,2103800361,5001000067
18.12.2023,Children and Adults,SAFFRONLAND HOMES (MINEHEAD),"8,377.68",LD LTS 18-64,RESIDENTIAL CARE,2103799450,1000072152
12.12.2023,Children and Adults,GRANGE PRIMARY SCHOOL,"8,364.00",NURSERY ED GRANT 3 AND 4 YR OLDS,EARLY YEARS - 3 AND 4 YEAR OLDS,5902612502,5001000029
18.12.2023,Children and Adults,SAFFRONLAND HOMES (MINEHEAD),"8,352.12",LD LTS 18-64,RESIDENTIAL CARE,2103799528,1000072152
07.12.2023,Housing,SATCHELL MORAN SOLICITORS LTD,"8,333.33",DISREPAIR,PAYMENTS FOR LEGAL SERVICES,2103794428,1000087281
12.12.2023,Housing,HODGE JONES & ALLEN SOLICITORS,"8,333.33",DISREPAIR,PAYMENTS FOR LEGAL SERVICES,2103794810,11011881
18.12.2023,Housing,VIGILANT SECURITY SERVICES UK,"8,332.80",MANOR PLACE HOSTEL,SECURITY SERVICES,5902613714,1000090073
18.12.2023,Children and Adults,KARE HEALTHCARE LTD,"8,320.00",PHY LTS 65+,SUPPORTED LIVING,2103800123,1000089212
27.12.2023,Children and Adults,E A JIGSAW CARE LIMITED,"8,309.26",SEMI-IND CARELEAVERS,EXTERNAL AGENCIES AND BODIES,2103803825,1000084233
06.12.2023,Environment Neighbourhoods and Growth,METIS CONSULTANTS LIMITED,"8,303.18",CAPITAL PS (REGEN),CAPITAL GRANTS,5902611578,1000086330
04.12.2023,Housing,CALFORD SEADEN LLP,"8,280.55",CAPITAL PS (HRA),CONSTRUCTION FEES  - EXTERNAL,5902611115,1061592
29.12.2023,Housing,CALFORD SEADEN LLP,"8,280.54",CAPITAL PS (HRA),CONSTRUCTION FEES  - EXTERNAL,5902614704,1061592
18.12.2023,Children and Adults,ASHMEAD HEALTHCARE LTD,"8,278.24",LD LTS 18-64,RESIDENTIAL CARE,2103799711,1000077917
11.12.2023,Children and Adults,OASIS ACADEMY SOUTH BANK,"8,263.02",AC & FREE - MSTREAM,STATEMENTED FEES,2103794727,1000073422
18.12.2023,Children and Adults,GLENPAT HOMES,"8,239.12",LD LTS 18-64,RESIDENTIAL CARE,2103799692,1000059312
23.12.2023,Finance,POST OFFICE LTD,"8,217.44",COST OF LIVING FUND,EXTERNAL AGENCIES AND BODIES,5902614561,1000069858
19.12.2023,Corporate,IVYDALE PRIMARY SCHOOL,"8,215.67",EDUCATION VAT INPUTS,VAT CONTROL ACCOUNT,2103800347,5001000038
19.12.2023,Corporate,ST JAMES CE PRIMARY SCHOOL,"8,202.22",EDUCATION VAT INPUTS,VAT CONTROL ACCOUNT,2103800369,5001000070
17.12.2023,Environment Neighbourhoods and Growth,DJ & SONS BUILDERS LTD,"8,200.00",DULWICH LEISURE CENTRE,BUILDING R&M,2103796178,3000002178
18.12.2023,Children and Adults,ALWAYS INCLUSIVE LTD,"8,199.36",LD LTS 18-64,SUPPORTED LIVING,2103799831,1000088268
18.12.2023,Children and Adults,GREEN CARE AND SUPPORT LIMITED,"8,195.20",LD LTS 18-64,SUPPORTED LIVING,2103799584,1000087661
08.12.2023,Finance,BIDVEST NOONAN (UK) LTD,"8,170.00",TOWER WORKSHOPS,SECURITY SERVICES,5902612016,1000087102
18.12.2023,Children and Adults,CHOICE SUPPORT,"8,168.84",LD LTS 18-64,SUPPORTED LIVING,2103799771,1104183
19.12.2023,Children and Adults,COHESION CONSULTING LTD,"8,168.00",PUBLIC HEALTH FHSM,EXTERNAL AGENCIES AND BODIES,5902612904,1000089725
18.12.2023,Children and Adults,BEECHCROFT SUPPORT LIMITED,"8,161.36",LD LTS 18-64,SUPPORTED LIVING,2103799829,1000085412
19.12.2023,Corporate,ZURICH MUNICIPAL,"8,142.40",PROPERTY RELATED INSURANCE,PROPERTY INSURANCE COSTS,5902613968,11011168
15.12.2023,Children and Adults,REDACTED PERSONAL DATA,"8,128.00",AP & HOSPITAL SCHLS,STATEMENTED FEES,2103798246,1000090488
07.12.2023,Children and Adults,MILTON KEYNES SURVEYS LTD,"8,120.00",SERVICE DEVELOPMENT UNIT,CONSULTANTS SERVICES,5902610725,1000077138
18.12.2023,Children and Adults,CHOICE CARE GROUP,"8,118.80",LD LTS 18-64,RESIDENTIAL CARE,2103799416,1572506
12.12.2023,Children and Adults,ENGLISH MARTYRS RC PRIMARY SCHOOL,"8,114.00",NURSERY ED GRANT 3 AND 4 YR OLDS,EARLY YEARS - 3 AND 4 YEAR OLDS,5902612506,5001000030
18.12.2023,Housing,SANDERSONS BUILDING SERVICES LTD,"8,107.22",DISREPAIR,BUILDING R&M,2103800302,3000002065
11.12.2023,Housing,CONTAKT LTD,"8,075.00",ENG CONTRACTS,PROFESSIONAL FEES,5902611386,1000089730
19.12.2023,Corporate,FRIARS PRIMARY (FOUNDATION) SCHOOL,"8,069.40",EDUCATION VAT INPUTS,VAT CONTROL ACCOUNT,2103800321,5001000033
18.12.2023,Children and Adults,ALWAYS INCLUSIVE LTD,"8,064.00",LD LTS 18-64,SUPPORTED LIVING,2103799292,1000088268
13.12.2023,Environment Neighbourhoods and Growth,INTO SERVICES LONDON LTD,"8,062.00",CAPITAL PS (LEISURE),CONSTRUCTION FEES  - EXTERNAL,5902612919,1000059328
27.12.2023,Environment Neighbourhoods and Growth,CONSTELLIA PUBLIC LIMITED,"8,060.48",CAMBERWELL LEISURE CENTRE,PREMISES CLEANING,5902614218,1000088137
12.12.2023,Children and Adults,ST JOHNS RC PRIMARY SCHOOL,"8,047.00",NURSERY ED GRANT 3 AND 4 YR OLDS,EARLY YEARS - 3 AND 4 YEAR OLDS,5902612621,5001000075
19.12.2023,Corporate,CRAWFORD PRIMARY SCHOOL,"8,041.90",EDUCATION VAT INPUTS,VAT CONTROL ACCOUNT,2103800326,5001000024
05.12.2023,Environment Neighbourhoods and Growth,EURO CLAD PROJECT SERVICES LTD,"8,015.00",DULWICH LEISURE CENTRE,BUILDING R&M,2103793081,3000002256
18.12.2023,Children and Adults,LEONARD CHESHIRE (THICKET ROAD),"8,004.84",LD LTS 18-64,RESIDENTIAL CARE,2103799095,1000049761
18.12.2023,Children and Adults,THE LONDON CARE GROUP,"8,000.00",LD LTS 18-64,SUPPORTED LIVING,2103799116,1000090111
04.12.2023,Finance,GRANT THORNTON UK LLP,"8,000.00",EXTERNAL AUDIT GRANT FEES,PROFESSIONAL FEES,5902610605,1000058344
15.12.2023,Environment Neighbourhoods and Growth,REDACTED PERSONAL DATA,"8,000.00",CAPITAL PS (REGEN),CONSTRUCTION FEES  - EXTERNAL,5902612258,1000088392
25.12.2023,Finance,GRANT THORNTON UK LLP,"8,000.00",EXTERNAL AUDIT GRANT FEES,PROFESSIONAL FEES,5902614408,1000058344
10.12.2023,Environment Neighbourhoods and Growth,110 (UK) LIMITED,"7,998.00",LEISURE INSOURCING MOBILISATION COST,EQUIPMENT PURCHASE & REPAIR,5902611394,1000089749
18.12.2023,Children and Adults,HIGH VIEW CARE SERVICES LTD,"7,957.88",MEM LTS 18-64,NURSING PLACEMENTS FEES,2103799761,1000053562
18.12.2023,Children and Adults,REESON CARE HOMES LTD,"7,931.04",LD LTS 18-64,SUPPORTED LIVING,2103800202,1000084007
29.12.2023,Environment Neighbourhoods and Growth,KENT COUNTY COUNCIL - LASER,"7,913.01",CREMATORIUM,GAS,5902615248,1000012926
27.12.2023,Children and Adults,SUNHILL DAYCARE (EUROPE) LIMITED,"7,902.20",NURSERY ED GRANT 3 AND 4 YR OLDS,GRANTS,2103802060,1000083945
14.12.2023,Finance,BRESLIN CONSTRUCTION LTD,"7,890.00",CPHA  MANAGED PROPERTIES,BUILDING R&M,2103796180,3000001948
14.12.2023,Environment Neighbourhoods and Growth,KENT COUNTY COUNCIL - LASER,"7,866.31",PECKHAM PULSE LEISURE CENTRE,GAS,5902611733,1000012926
18.12.2023,Children and Adults,VOYAGE LTD (EVESLEIGH KENT),"7,859.88",PHY LTS 18-64,RESIDENTIAL CARE,2103799538,1000041320
26.12.2023,Environment Neighbourhoods and Growth,JOYRIDERS BRITAIN C.I.C,"7,845.39",STREETS FOR PEOPLE - CYCLING,MISCELLANEOUS RECHARGES,5902614089,1000089887
20.12.2023,Children and Adults,BELLENDEN PRIMARY SCHOOL,"7,836.07",FREE HEALTHY SCHOOL MEALS,EARLY YEARS - 3 AND 4 YEAR OLDS,2103800418,5001000007
08.12.2023,Children and Adults,HAVERSTOCK,"7,831.68",CAPITAL PS (EDUCATION),CONSTRUCTION FEES - ARCHITECT,5902612009,1000074288
18.12.2023,Children and Adults,CHOICE SUPPORT,"7,818.80",LD LTS 18-64,SUPPORTED LIVING,2103800138,1104183
13.12.2023,Housing,THEORI HOUSING MANAGEMENT SERVICES,"7,816.20",NIGHTLY TA (NSC),EXTERNAL AGENCIES AND BODIES,5902612857,1000079264
18.12.2023,Children and Adults,DISABILITIES TRUST,"7,815.40",PHY LTS 18-64,NURSING PLACEMENTS FEES,2103800191,1000043358
27.12.2023,Children and Adults,NEXUS FOSTERING,"7,808.59",FRIENDS & FAMILY FOSTERING,EXTERNAL AGENCIES AND BODIES,2103803734,1000069682
18.12.2023,Children and Adults,SAFFRONLAND HOMES (MINEHEAD),"7,800.00",LD LTS 18-64,RESIDENTIAL CARE,2103799867,1000072152
18.12.2023,Finance,INVUSE LIMITED,"7,800.00",CAPITAL PS (STRAT SERV),ICT ACQUISITION,5902613738,1000087372
18.12.2023,Children and Adults,SUNRISE REHABILITATION CENTRE,"7,789.60",LD LTS 18-64,SUPPORTED LIVING,2103800017,1000086998
06.12.2023,Environment Neighbourhoods and Growth,SHELL UK OIL PRODUCTS LTD,"7,788.92",COMMERCIAL VEH CTRL A/C,VEHICLE FUEL,5902611533,1000081254
07.12.2023,Finance,GUYS & ST THOMAS NHS FOUNDATION TRUST,"7,772.00",CORONER'S,OTHER CONTRACTORS,5902611902,1765536
20.12.2023,Housing,ANTONY HODARI  SOLICITORS,"7,750.00",DISREPAIR,PAYMENTS FOR LEGAL SERVICES,2103801598,1000031040
27.12.2023,Children and Adults,CASA TIERRA BILINGUAL CHILDCARE LIMITED,"7,749.00",NURSERY ED GRANT 3 AND 4 YR OLDS,GRANTS,2103803115,1000087759
18.12.2023,Children and Adults,PLUS SERVICES,"7,721.60",LD LTS 18-64,RESIDENTIAL CARE,2103799770,1000021241
18.12.2023,Children and Adults,VOYAGE CARE (MOUNTEARL),"7,713.64",LD LTS 18-64,RESIDENTIAL CARE,2103799623,1000078173
19.12.2023,Corporate,HOLLYDALE PRIMARY SCHOOL,"7,710.79",EDUCATION VAT INPUTS,VAT CONTROL ACCOUNT,2103800399,5001000036
18.12.2023,Finance,KEYSTREAM GROUP LIMITED,"7,700.00",IT MANAGEMENT,CONSULTANTS SERVICES,5902613740,1000089467
18.12.2023,Children and Adults,BRANDON TRUST,"7,694.72",LD LTS 18-64,SUPPORTED LIVING,2103799212,1000042417
18.12.2023,Children and Adults,CHOICE SUPPORT,"7,685.84",LD LTS 18-64,SUPPORTED LIVING,2103799230,1104183
14.12.2023,Environment Neighbourhoods and Growth,KENT COUNTY COUNCIL - LASER,"7,675.34",PECKHAM PULSE LEISURE CENTRE,GAS,5902611738,1000012926
12.12.2023,Children and Adults,SNOWSFIELDS PRIMARY SCHOOL,"7,667.00",LBS RB / SEN UNIT,HIGH NEEDS - BASE FUNDING,5902612584,5001000061
18.12.2023,Children and Adults,ACHIEVE TOGETHER SERVICES LIMITED,"7,666.12",LD LTS 18-64,SUPPORTED LIVING,2103799601,1000089975
18.12.2023,Children and Adults,ACHIEVE TOGETHER SERVICES LIMITED,"7,662.68",LD LTS 18-64,RESIDENTIAL CARE,2103799347,1000089975
23.12.2023,Environment Neighbourhoods and Growth,KNOX BHAVAN ARCHITECTS LLP,"7,662.55",CAPITAL PS (REGEN),CONSTRUCTION FEES - ARCHITECT,5902613947,1000088675
27.12.2023,Children and Adults,SYNERGY FOSTERING LTD,"7,657.00",FRIENDS & FAMILY FOSTERING,EXTERNAL AGENCIES AND BODIES,2103803779,1000031559
18.12.2023,Children and Adults,RESIDENTIAL CARE SERVICES LTD,"7,628.20",LD LTS 18-64,SUPPORTED LIVING,2103799139,1000082629
19.12.2023,Corporate,HEBER PRIMARY SCHOOL,"7,622.56",EDUCATION VAT INPUTS,VAT CONTROL ACCOUNT,2103800368,5001000035
13.12.2023,Environment Neighbourhoods and Growth,LONDON WILDLIFE TRUST,"7,620.00",ENVIRONMENT & LEISURE GRANTS,OTHER CONTRACTORS,5902612843,1832374
21.12.2023,Environment Neighbourhoods and Growth,LONDON WILDLIFE TRUST,"7,620.00",ENVIRONMENT & LEISURE GRANTS,OTHER CONTRACTORS,5902613612,1832374
29.12.2023,Environment Neighbourhoods and Growth,CLYDE & CO,"7,600.00",FACILITIES MANAGEMENT,PAYMENTS FOR LEGAL SERVICES,5902615329,1000067838
18.12.2023,Children and Adults,ASHFIELD RESIDENTIAL CARE HOME,"7,597.80",PHY LTS 65+,RESIDENTIAL CARE,2103799740,1000079717
23.12.2023,Environment Neighbourhoods and Growth,PSLT LIMITED,"7,592.00",SEVEN ISLANDS LEISURE CENTRE,PLANNED MAINTENANCE,5902614174,1000089819
20.12.2023,Housing,M&S LAW  LTD,"7,583.33",DISREPAIR,PAYMENTS FOR LEGAL SERVICES,2103801604,1000089057
12.12.2023,Children and Adults,HEBER PRIMARY SCHOOL,"7,583.00",LBS MAINSTREAM,HIGH NEEDS - TOP UP FUNDING,5902612522,5001000035
11.12.2023,Children and Adults,FRANK BARNES SCHOOL FOR DEAF CHILDREN,"7,579.89",OTHER LA SPECIAL,STATEMENTED FEES,2103794736,1000072261
18.12.2023,Children and Adults,BRANDON TRUST,"7,564.52",LD LTS 18-64,SUPPORTED LIVING,2103799345,1000042417
18.12.2023,Children and Adults,BRANDON TRUST,"7,564.52",LD LTS 18-64,SUPPORTED LIVING,2103800029,1000042417
18.12.2023,Children and Adults,BRANDON TRUST,"7,564.52",LD LTS 18-64,SUPPORTED LIVING,2103800109,1000042417
18.12.2023,Children and Adults,BRANDON TRUST,"7,564.52",LD LTS 18-64,SUPPORTED LIVING,2103800142,1000042417
18.12.2023,Children and Adults,COUNTRY COURT CARE HOMES 2 LTD,"7,563.24",PHY LTS 65+,NURSING PLACEMENTS FEES,2103799870,1000080172
18.12.2023,Children and Adults,COUNTRY COURT CARE HOMES 2 LTD,"7,563.24",PHY LTS 65+,NURSING PLACEMENTS FEES,2103800181,1000080172
18.12.2023,Children and Adults,CHOICE SUPPORT,"7,551.88",LD LTS 18-64,SUPPORTED LIVING,2103799594,1104183
18.12.2023,Children and Adults,GARLAND LODGE LTD,"7,546.24",LD LTS 18-64,SUPPORTED LIVING,2103799141,1000084016
30.12.2023,Finance,SALT LAKE MEDICAL LTD,"7,537.00",CORONER'S,PROFESSIONAL FEES,5902615173,1000078684
18.12.2023,Children and Adults,CHOICE SUPPORT,"7,535.60",LD LTS 65+,SUPPORTED LIVING,2103799530,1104183
18.12.2023,Children and Adults,WALWORTH ACADEMY,"7,531.00",VIRTUAL SCHOOL PP,SCHOOLS CAPITATION,2103800267,1000062868
18.12.2023,Children and Adults,COUNTRY COURT CARE HOMES 2 LTD,"7,530.59",DISCHARGE TO ACCESS,NURSING PLACEMENTS FEES,2103799309,1000080172
18.12.2023,Children and Adults,GREEN CARE AND SUPPORT LIMITED,"7,529.60",LD LTS 18-64,SUPPORTED LIVING,2103800018,1000087661
06.12.2023,Housing,NOWMEDICAL LTD,"7,520.00",HOUSING OPTIONS,PROFESSIONAL FEES,5902611731,1000068185
18.12.2023,Children and Adults,REDACTED PERSONAL DATA,"7,512.96",LD LTS 18-64,SUPPORTED LIVING,2103799467,1000088380
18.12.2023,Children and Adults,WELLSPRING CARE HOMES LIMITED,"7,508.00",LD LTS 18-64,SUPPORTED LIVING,2103799425,1000088216
09.12.2023,Environment Neighbourhoods and Growth,CARNAVAL DEL PUEBLO ASSOCIATION,"7,500.00",BUSINESS SUPPORT,GRANTS,5902612062,1000060476
12.12.2023,Children and Adults,ST JOHNS & ST CLEMENTS CE SCHOOL,"7,500.00",LBS RB / SEN UNIT,HIGH NEEDS - TOP UP FUNDING,5902612616,5001000073
12.12.2023,Children and Adults,TOWER BRIDGE PRIMARY SCHOOL,"7,500.00",LBS MAINSTREAM,HIGH NEEDS - TOP UP FUNDING,5902612655,5001000095
29.12.2023,Environment Neighbourhoods and Growth,STREATHAM & MARLBOROUGH CRICKET CLUB,"7,500.00",CAPITAL PS (LEISURE),CONSTR'N SUB CONTRACT - NON CERTIFICATED,5902615378,1000048556
18.12.2023,Children and Adults,BEECHCROFT SUPPORT LIMITED,"7,475.52",LD LTS 18-64,SUPPORTED LIVING,2103799828,1000085412
18.12.2023,Children and Adults,LONDON CYRENIANS HOUSING LTD,"7,470.12",LD LTS 18-64,SUPPORTED LIVING,2103799285,1000078600
15.12.2023,Finance,NEC SOFTWARE SOLUTIONS UK LTD,"7,468.00",ADMINISTRATIVE SUPPORT,SOFTWARE,5902612330,1000087043
18.12.2023,Children and Adults,ALWAYS INCLUSIVE LTD,"7,450.56",LD LTS 18-64,SUPPORTED LIVING,2103799463,1000088268
27.12.2023,Children and Adults,LITTLE WINNERS DAY NURSERY LTD,"7,449.00",NURSERY ED GRANT 3 AND 4 YR OLDS,GRANTS,2103802032,1000041814
21.12.2023,Finance,S&J CONSULTING LIMITED,"7,440.00",PROCUREMENT ADVICE TEAM,TRAINING,5902613337,1000090465
18.12.2023,Children and Adults,LONDON CYRENIANS HOUSING LTD,"7,427.20",LD LTS 18-64,SUPPORTED LIVING,2103799857,1000078600
06.12.2023,Housing,KENT COUNTY COUNCIL - LASER,"7,420.92",SUPPORTED HOSTELS,GAS,5902611709,1000012926
12.12.2023,Children and Adults,GRANGE PRIMARY SCHOOL,"7,417.00",LBS MAINSTREAM,HIGH NEEDS - TOP UP FUNDING,5902612505,5001000029
14.12.2023,Children and Adults,FRAMEWORK HOUSING ASSOCIATION,"7,410.00",TIER 4 SERVICES,OTHER CONTRACTORS,5902613236,1000086098
18.12.2023,Children and Adults,HIGH VIEW CARE SERVICES LTD,"7,398.72",MH LTS 18-64,RESIDENTIAL CARE,2103799451,1000065920
18.12.2023,Children and Adults,CHOICE SUPPORT,"7,395.32",LD LTS 18-64,RESIDENTIAL CARE,2103799453,1104183
02.12.2023,Environment Neighbourhoods and Growth,KENT COUNTY COUNCIL - LASER,"7,379.39",PECKHAM LIBRARY,ELECTRICITY,5902610428,1000012926
11.12.2023,Children and Adults,ILDERTON MOTORVEHICLE PROJECT,"7,350.00",AP & HOSPITAL SCHLS,STATEMENTED FEES,2103794740,1000066082
08.12.2023,Environment Neighbourhoods and Growth,ZFA ACCOMMODATION LTD,"7,350.00",UKRAINIAN REFUGEES,ACCOMMODATION CHARGES,5902612064,1000082620
18.12.2023,Children and Adults,BURGESS AUTISTIC TRUST,"7,349.48",LD LTS 18-64,SUPPORTED LIVING,2103799574,1000044550
12.12.2023,Children and Adults,BRUNSWICK PARK PRIMARY SCHOOL,"7,333.00",LBS RB / SEN UNIT,HIGH NEEDS - BASE FUNDING,5902612464,5001000013
12.12.2023,Children and Adults,BRUNSWICK PARK PRIMARY SCHOOL,"7,333.00",LBS MAINSTREAM,HIGH NEEDS - TOP UP FUNDING,5902612467,5001000013
12.12.2023,Children and Adults,ST JAMES THE GREAT RC SCHOOL,"7,333.00",LBS MAINSTREAM,HIGH NEEDS - TOP UP FUNDING,5902612613,5001000071
27.12.2023,Children and Adults,LITTLE ANGELS DAY NURSERY & CHILDCARE SERVICES LTD,"7,322.25",NURSERY ED GRANT 3 AND 4 YR OLDS,GRANTS,2103802025,1000058464
18.12.2023,Children and Adults,BRANDON TRUST,"7,299.92",LD LTS 18-64,SUPPORTED LIVING,2103799540,1000042417
19.12.2023,Corporate,CATHEDRAL SCHOOL OF ST SAVIOUR & MARY,"7,279.91",EDUCATION VAT INPUTS,VAT CONTROL ACCOUNT,2103800342,5001000088
19.12.2023,Finance,BYWATERS (LEYTON) LTD,"7,271.46",TOWER WORKSHOPS,REFUSE COLLECTION CONTRACT,5902613910,1822101
07.12.2023,Housing,EMERALD LAW SOLICITORS LTD,"7,266.67",DISREPAIR,PAYMENTS FOR LEGAL SERVICES,2103794433,1000090123
29.12.2023,Housing,HMRC STAMP TAXES ONLY SDLT,"7,260.00",CAPITAL PS (HRA),LAND & BUILDINGS ACQUISITION,2103804055,1000052141
18.12.2023,Children and Adults,HAVELOCK COURT (BUPA CARE),"7,257.99",PHY LTS 65+,NURSING PLACEMENTS FEES,2103800189,1000028902
08.12.2023,DSO,DIAMOND SCAFFOLDING (SOUTH EAST),"7,255.60",SR COMMUNAL - DELIVERY TEAM,OTHER CONTRACTORS,2103794510,3000001625
18.12.2023,Children and Adults,ALWAYS INCLUSIVE LTD,"7,250.88",LD LTS 18-64,SUPPORTED LIVING,2103800119,1000088268
12.12.2023,Children and Adults,BOUCHER C OF E PRIMARY SCHOOL,"7,250.00",LBS MAINSTREAM,HIGH NEEDS - TOP UP FUNDING,5902612461,5001000011
27.12.2023,Children and Adults,E A JIGSAW CARE LIMITED,"7,240.67",SEMI-IND LAC 16-17,OTHER PAYMENTS FOR CLIENTS,2103803828,1000084233
18.12.2023,Children and Adults,SALISBURY SUPPORT 4 AUTISM LTD,"7,235.20",LD LTS 18-64,SUPPORTED LIVING,2103799748,1000082674
20.12.2023,Children and Adults,PILGRIM'S WAY PRIMARY SCHOOL,"7,230.28",FREE HEALTHY SCHOOL MEALS,EARLY YEARS - 3 AND 4 YEAR OLDS,2103800438,5001000054
12.12.2023,DSO,PROPERTY FACILITIES GROUP PLC,"7,205.00",ELECTRICIANS - DAY TO DAY,OTHER CONTRACTORS,2103795001,3000001420
18.12.2023,Children and Adults,HC-ONE LTD (TOWER BRIDGE CARE HOME),"7,200.21",PHY LTS 65+,NURSING PLACEMENTS FEES,2103799593,1000067670
15.12.2023,Children and Adults,PEOPLE PLUS GROUP LTD (INDEPENDENT LIVING SERVICES),"7,200.00",LD LTS 18-64 AAD,PAYMENTS TO CLIENTS (DIRECT PAYMENTS),2103797750,1000061886
27.12.2023,Children and Adults,GERMAN KINDERGARTEN LTD,"7,195.50",NURSERY ED GRANT 3 AND 4 YR OLDS,GRANTS,2103802009,1000058090
06.12.2023,Housing,JUDGE AND PRIESTLEY SOLICITORS,"7,186.00",TA HOSTELS,PAYMENTS FOR LEGAL SERVICES,2103793182,1472217
12.12.2023,Children and Adults,ENGLISH MARTYRS RC PRIMARY SCHOOL,"7,167.00",LBS MAINSTREAM,HIGH NEEDS - TOP UP FUNDING,5902612509,5001000030
07.12.2023,Environment Neighbourhoods and Growth,RS REAL ESTATE LTD,"7,165.00",NO RECOURSE TO PUBLIC FUNDS,ACCOMMODATION CHARGES,5902611854,1000072485
15.12.2023,Children and Adults,PEOPLE PLUS GROUP LTD (INDEPENDENT LIVING SERVICES),"7,151.16",LD LTS 18-64,DISCRETIONARY FLEXIBLE FEES & INCOME,2103797701,1000061886
18.12.2023,Children and Adults,BRANDON TRUST,"7,142.20",LD LTS 18-64,SUPPORTED LIVING,2103800169,1000042417
18.12.2023,Children and Adults,BRANDON TRUST,"7,141.32",LD LTS 18-64,SUPPORTED LIVING,2103799607,1000042417
18.12.2023,Children and Adults,BRANDON TRUST,"7,141.32",LD LTS 18-64,SUPPORTED LIVING,2103799609,1000042417
18.12.2023,Children and Adults,BRANDON TRUST,"7,141.32",LD LTS 18-64,SUPPORTED LIVING,2103800082,1000042417
18.12.2023,Children and Adults,ALWAYS INCLUSIVE LTD,"7,138.56",LD LTS 18-64,SUPPORTED LIVING,2103799724,1000088268
18.12.2023,Children and Adults,ALWAYS INCLUSIVE LTD,"7,138.56",LD LTS 18-64,SUPPORTED LIVING,2103800121,1000088268
10.12.2023,Environment Neighbourhoods and Growth,LEASEPLAN UK LTD,"7,128.84",COMMERCIAL VEH CTRL A/C,VEHICLE REPAIRS & MAINTENANCE,5902611999,11014756
18.12.2023,Children and Adults,OVAL CARE HOMES LTD,"7,113.60",LD LTS 18-64,SUPPORTED LIVING,2103799099,1000089506
18.12.2023,Children and Adults,GREEN CARE AND SUPPORT LIMITED,"7,072.00",LD LTS 18-64,SUPPORTED LIVING,2103800122,1000087661
18.12.2023,Children and Adults,CHOICE SUPPORT,"7,064.12",LD LTS 18-64,SUPPORTED LIVING,2103799342,1104183
19.12.2023,Corporate,ENGLISH MARTYRS RC PRIMARY SCHOOL,"7,063.94",EDUCATION VAT INPUTS,VAT CONTROL ACCOUNT,2103800404,5001000030
18.12.2023,Children and Adults,CLACTON FAMILY TRUST RESIDENTIAL HOME,"7,062.52",LD LTS 18-64,SUPPORTED LIVING,2103800118,1000086761
18.12.2023,Children and Adults,ST JOHNS NURSING HOME LTD,"7,059.20",DISCHARGE TO ACCESS,NURSING PLACEMENTS FEES,2103800097,1000047405
18.12.2023,Children and Adults,CRAEGMOOR HEALTHCARE,"7,047.92",LD LTS 18-64,RESIDENTIAL CARE,2103799126,1323845
18.12.2023,Children and Adults,GREEN CARE AND SUPPORT LIMITED,"7,040.00",LD LTS 18-64 AAD,SUPPORTED LIVING,2103799797,1000087661
24.12.2023,Housing,KENT COUNTY COUNCIL - LASER,"7,039.64",QUEENS ROAD 3,ELECTRICITY,5902613823,1000012926
18.12.2023,Children and Adults,CHOICE SUPPORT,"7,036.76",LD LTS 18-64,SUPPORTED LIVING,2103799480,1104183
15.12.2023,Children and Adults,PEOPLE PLUS GROUP LTD (INDEPENDENT LIVING SERVICES),"7,014.72",PHB - SEL ICB,RECOVERABLE COSTS INCL. HEALTH,2103796983,1000061886
18.12.2023,Children and Adults,VOYAGE LTD (EVESLEIGH KENT),"7,010.28",LD LTS 18-64,RESIDENTIAL CARE,2103800050,1000041320
18.12.2023,Children and Adults,COUNTRY COURT CARE HOMES 2 LTD,"7,005.14",PHY LTS 65+,NURSING PLACEMENTS FEES,2103799648,1000080172
12.12.2023,Children and Adults,ST SAVIOURS & ST OLAVES SCHOOL,"7,000.00",LBS MAINSTREAM,HIGH NEEDS - TOP UP FUNDING,5902612641,5001000084
23.12.2023,Finance,GRANT THORNTON UK LLP,"7,000.00",EXTERNAL AUDIT CORE FEES,PROFESSIONAL FEES,5902614113,1000058344
19.12.2023,Corporate,PETER HILLS CE SCHOOL,"6,993.28",EDUCATION VAT INPUTS,VAT CONTROL ACCOUNT,2103800406,5001000053
21.12.2023,Suspense,HSF HEALTH PLAN,"6,963.26",SUSPENSE ACCOUNT (COMPANY CODE 1000),PAYROLL - 3RD PARTY DEDUCTIONS,2103802101,1000053489
22.12.2023,Finance,PIPE SCAFFOLDING LTD,"6,960.00",MISC INDUSTRIAL PROPERTIES,BUILDING R&M,5902614356,1000083894
18.12.2023,Children and Adults,COGNITHAN LTD,"6,952.20",PHY LTS 18-64,SUPPORTED LIVING,2103799443,1000090046
07.12.2023,Finance,LAND USE CONSULTANTS LTD,"6,948.38",STRATEGIC APPLICATIONS,PROFESSIONAL FEES,5902611890,11132526
12.12.2023,Finance,WE ARE WATERLOO LTD,"6,947.76",WATERLOO QUARTER,EXTERNAL AGENCIES AND BODIES,5902612735,1000057618
13.12.2023,Children and Adults,NOTTINGHAMSHIRE COUNTY COUNCIL,"6,943.75",CHILDREN�S RESID,RESIDENTIAL CARE,2103795883,11133399
04.12.2023,DSO,ARMINA LTD,"6,939.70",WALWORTH DD,OTHER CONTRACTORS,2103792638,3000002121
11.12.2023,Children and Adults,THE LONDON CITY CARE AND SUPPORT,"6,930.00",SEMI-IND CARELEAVERS,EXTERNAL AGENCIES AND BODIES,2103794571,1000090438
23.12.2023,Finance,VENN GROUP LTD,"6,930.00",IT MANAGEMENT,CONSULTANTS SERVICES,5902614202,1000033315
18.12.2023,Children and Adults,CHOICE SUPPORT,"6,924.68",LD LTS 18-64,SUPPORTED LIVING,2103799167,1104183
18.12.2023,Children and Adults,ARIA HEALTHCARE GROUP LTD,"6,921.16",PHY LTS 18-64,NURSING PLACEMENTS FEES,2103799883,1000090139
18.12.2023,Children and Adults,VOYAGE LTD (EVESLEIGH KENT),"6,921.12",LD LTS 18-64,RESIDENTIAL CARE,2103799396,1000041320
15.12.2023,Environment Neighbourhoods and Growth,LYNGSOE SYSTEMS LTD,"6,920.00",IT DEVELOPMENT,COMMS & COMPUTING CONTRACT CHARGES,5902613335,1000083086
29.12.2023,Housing,HSB ENGINEERING INSURANCE SERVICES,"6,919.16",LIFTS,LIFTS,5902615313,1000089047
20.12.2023,Children and Adults,ST GEORGES CE SCHOOL,"6,918.70",FREE HEALTHY SCHOOL MEALS,EARLY YEARS - 3 AND 4 YEAR OLDS,2103800448,5001000069
27.12.2023,Children and Adults,VICTORIOUS VENTURA LIMITED,"6,912.75",NURSERY ED GRANT 3 AND 4 YR OLDS,GRANTS,2103802056,1000087823
06.12.2023,Environment Neighbourhoods and Growth,METIS CONSULTANTS LIMITED,"6,909.00",CAPITAL PS (LEISURE),CAPITAL GRANTS,5902611561,1000086330
20.12.2023,Corporate,TOWER BRIDGE PRIMARY SCHOOL,"6,905.89",EDUCATION VAT INPUTS,VAT CONTROL ACCOUNT,2103801564,5001000095
07.12.2023,Children and Adults,ELEVEN D'S LTD,"6,900.00",SEMI-IND LAC 16-17,EXTERNAL AGENCIES AND BODIES,2103794207,1000089531
12.12.2023,Children and Adults,HATS GROUP LTD,"6,897.50",LD LTS 18-64,CLIENT TRANSPORT,2103794826,1000042743
12.12.2023,Children and Adults,PILGRIM'S WAY PRIMARY SCHOOL,"6,889.00",NURSERY ED GRANT 3 AND 4 YR OLDS,EARLY YEARS - 3 AND 4 YEAR OLDS,5902612563,5001000054
22.12.2023,Housing,ARCHITECTURAL DECORATORS LTD,"6,885.60",CAPITAL PS (HRA),CONSTRUCTION MAIN CONTRACT -CERTIFICATED,2103802828,3000001065
18.12.2023,Children and Adults,BARCHESTER HEALTHCARE LTD,"6,885.44",PHY LTS 18-64,"MAND STATUTORY CHARGES, NURSING",2103799730,1000072936
23.12.2023,Housing,CALFORD SEADEN LLP,"6,882.96",CAPITAL PS (HRA),CONSTRUCTION FEES  - EXTERNAL,5902614703,1061592
22.12.2023,Governance and Assurance,EDF ENERGY PLC,"6,881.44",47B EAST DULWICH ROAD,ELECTRICITY,5902614482,1008746
23.12.2023,Governance and Assurance,KENNEDY CATER LTD,"6,878.51",LEGAL SVCES MANAGEMENT,SUBSCRIPTIONS,5902614348,1000074118
05.12.2023,Housing,"THE SALVATION ARMY, WILLIAM BOOTH NURSERY & AFTER SCHOOL CLUB","6,875.00",RESIDENTS PARTICIPATION FUND,GRANTS,5902611117,1000031051
18.12.2023,Children and Adults,CARE UK,"6,851.52",PHY LTS 65+,NURSING PLACEMENTS FEES,2103799374,1000063363
15.12.2023,Suspense,KEMICO LIMITED,"6,840.00",SUSPENSE ACCOUNT (COMPANY CODE 1000),CREDITORS -GR/IR CLEARING ACCOUNT,5902613225,1000030226
18.12.2023,Children and Adults,INDEPENDENCE HOMES LTD,"6,834.12",LD LTS 18-64,SUPPORTED LIVING,2103799626,1000058961
19.12.2023,Housing,LIVING ACCOMMODATION LTD,"6,820.00",NIGHTLY TA (NSC),EXTERNAL AGENCIES AND BODIES,5902613857,1000063985
18.12.2023,Children and Adults,STEPPING STONES RESETTLEMENT UNIT,"6,810.64",LD LTS 18-64,RESIDENTIAL CARE,2103800197,1000032806
08.12.2023,Environment Neighbourhoods and Growth,WSP UK LTD,"6,800.00",BUSINESS CORE,CONSULTANTS SERVICES,5902612144,1000054214
19.12.2023,Corporate,CATHEDRAL SCHOOL OF ST SAVIOUR & MARY,"6,785.15",EDUCATION VAT INPUTS,VAT CONTROL ACCOUNT,2103800364,5001000088
29.12.2023,Housing,CALFORD SEADEN LLP,"6,784.05",CAPITAL PS (HRA),CONSTRUCTION FEES  - EXTERNAL,5902614705,1061592
04.12.2023,Housing,CALFORD SEADEN LLP,"6,783.72",CAPITAL PS (HRA),CONSTRUCTION FEES  - EXTERNAL,5902611113,1061592
11.12.2023,Children and Adults,ILDERTON MOTORVEHICLE PROJECT,"6,780.00",AP & HOSPITAL SCHLS,STATEMENTED FEES,2103794743,1000066082
10.12.2023,Environment Neighbourhoods and Growth,ERECT ARCHITECTURE LTD,"6,752.00",CAPITAL PS (LEISURE),CONSTRUCTION FEES - ARCHITECT,5902611600,1000078487
07.12.2023,Housing,INAAYA  SOLICITORS,"6,750.00",DISREPAIR,PAYMENTS FOR LEGAL SERVICES,2103794435,1000089496
12.12.2023,Children and Adults,OLIVER GOLDSMITH PRIMARY SCHOOL,"6,750.00",LBS MAINSTREAM,HIGH NEEDS - TOP UP FUNDING,5902612557,5001000051
12.12.2023,Finance,FUJITSU SERVICES LTD,"6,750.00",CAPITAL PS (STRAT SERV),ICT ACQUISITION,5902612788,1000089033
18.12.2023,Children and Adults,SAFFRONLAND HOMES,"6,737.12",LD LTS 65+,RESIDENTIAL CARE,2103799270,11172608
07.12.2023,Housing,HODGE JONES & ALLEN SOLICITORS,"6,729.17",DISREPAIR,PAYMENTS FOR LEGAL SERVICES,2103794434,11011881
06.12.2023,Children and Adults,NATIONAL FOSTERING AGENCY LTD,"6,726.60",FRIENDS & FAMILY FOSTERING,EXTERNAL AGENCIES AND BODIES,2103793767,1000038868
18.12.2023,Children and Adults,HC-ONE LTD (TOWER BRIDGE CARE HOME),"6,722.33",PHY LTS 65+,RESIDENTIAL CARE,2103799917,1000067670
12.12.2023,Finance,DAISY CORPORATE SERVICES TRADING LIMITED,"6,719.28",SHARED SERVICES,DATA COMMUNICATIONS,5902612391,1000075666
27.12.2023,Children and Adults,FUTURES FOR CHILDREN LIMITED,"6,713.98",FRIENDS & FAMILY FOSTERING,EXTERNAL AGENCIES AND BODIES,2103803747,1000041984
18.12.2023,Children and Adults,CHOICE SUPPORT,"6,713.00",LD LTS 18-64,SUPPORTED LIVING,2103799479,1104183
27.12.2023,Children and Adults,SILVER BIRCH CARE LTD,"6,696.62",SEMI-IND LAC 16-17,EXTERNAL AGENCIES AND BODIES,2103803875,1000076525
29.12.2023,Children and Adults,INTERCOUNTRY ADOPTION CENTRE,"6,695.00",ADOPT LONDON SOUTH,EXTERNAL AGENCIES AND BODIES,5902615121,1000035796
12.12.2023,Housing,IRVINGS LAW  LIMITED,"6,690.53",DISREPAIR,PAYMENTS FOR LEGAL SERVICES,2103794808,1000088815
18.12.2023,Children and Adults,CHOICE SUPPORT,"6,686.84",LD LTS 18-64,SUPPORTED LIVING,2103799713,1104183
27.12.2023,Children and Adults,THE XCEL 2000 PARTNERSHIP LTD,"6,668.66",FRIENDS & FAMILY FOSTERING,EXTERNAL AGENCIES AND BODIES,2103803732,1000024427
12.12.2023,Children and Adults,PETER HILLS CE SCHOOL,"6,667.00",LBS RB / SEN UNIT,HIGH NEEDS - BASE FUNDING,5902612560,5001000053
12.12.2023,Children and Adults,ROBERT BROWNING PRIMARY SCHOOL,"6,667.00",LBS RB / SEN UNIT,HIGH NEEDS - BASE FUNDING,5902612573,5001000057
20.12.2023,Housing,M&S LAW  LTD,"6,666.67",DISREPAIR,PAYMENTS FOR LEGAL SERVICES,2103801599,1000089057
18.12.2023,Children and Adults,PRIORY,"6,665.48",PHY LTS 18-64,NURSING PLACEMENTS FEES,2103799679,1000015902
18.12.2023,Children and Adults,AGINCARE (SOUTHWARK) LIMITED,"6,650.00",PHY LTS 65+,RESIDENTIAL CARE,2103799914,1000089635
20.12.2023,Housing,IMPERIUM LAW  SOLICITORS,"6,650.00",DISREPAIR,PAYMENTS FOR LEGAL SERVICES,2103801587,1000086655
13.12.2023,Children and Adults,REDACTED PERSONAL DATA,"6,646.92",SPECIAL GUARDIANSHIP,PAYMENTS TO CARERS,2103795083,1000086129
15.12.2023,Children and Adults,REDACTED PERSONAL DATA,"6,644.40",LD LTS 18-64,PAYMENTS TO CLIENTS (DIRECT PAYMENTS),2103797433,1000060258
27.12.2023,Children and Adults,INTEGRATED SERVICES PROGRAMME,"6,638.69",FRIENDS & FAMILY FOSTERING,EXTERNAL AGENCIES AND BODIES,2103803742,1642068
27.12.2023,Children and Adults,MOSAIC FOSTER CARE LTD,"6,626.25",FRIENDS & FAMILY FOSTERING,EXTERNAL AGENCIES AND BODIES,2103803773,1000076259
18.12.2023,Children and Adults,PLUS SERVICES,"6,619.56",LD LTS 65+,SUPPORTED LIVING,2103799282,1000021241
03.12.2023,Environment Neighbourhoods and Growth,HERITAGE CHARITY LONDON,"6,570.00",CAPITAL PS (LEISURE),CAPITAL GRANTS,5902610466,1000090399
18.12.2023,Housing,SANDERSONS BUILDING SERVICES LTD,"6,562.78",DISREPAIR,BUILDING R&M,2103800301,3000002065
09.12.2023,Environment Neighbourhoods and Growth,HIGHTECH WATER SERVICES LIMITED,"6,560.53",CAPITAL PS (LEISURE),"PLANT, MACHINERY & EQUIPMENT ACQUISITION",5902611263,1000089824
27.12.2023,Housing,CALFORD SEADEN LLP,"6,560.00",CAPITAL PS (HRA),CONSTRUCTION FEES - EMPLOYERS AGENT,5902614787,1061592
12.12.2023,DSO,RTS WASTE MANAGEMENT LTD,"6,558.94",VOIDS OVERHEADS,WASTE DISPOSAL CONTRACT,5902612796,1000061248
18.12.2023,Children and Adults,CHOICE SUPPORT,"6,548.94",LD LTS 18-64,SUPPORTED LIVING,2103799218,1104183
08.12.2023,Environment Neighbourhoods and Growth,KENT COUNTY COUNCIL - LASER,"6,547.91",CREMATORIUM,ELECTRICITY,5902612166,1000012926
13.12.2023,Children and Adults,ST JOSEPHS CATHOLIC PRIMARY SCHOOL,"6,545.00",MATERNITY COVER,SCHOOLS CAPITATION,2103795974,5001000078
18.12.2023,Children and Adults,HAVELOCK COURT (BUPA CARE),"6,544.16",PHY LTS 18-64,NURSING PLACEMENTS FEES,2103799258,1000028902
21.12.2023,DSO,PREMIER BUSINESS AUDIO LTD,"6,525.00",REORGANISATION COSTS,MARKETING & PUBLICITY SERVICES,5902614432,1000079807
21.12.2023,Children and Adults,KEEVA CARE LIMITED,"6,524.00",LD LTS 65+,SUPPORTED LIVING,2103802331,1000086100
18.12.2023,Children and Adults,BRANDON TRUST,"6,507.16",LD LTS 18-64,SUPPORTED LIVING,2103799608,1000042417
05.12.2023,Housing,KNIGHT FRANK LLP,"6,500.00",CAPITAL PS (HRA),PLANNING & S106 FEES,5902611282,1000089806
14.12.2023,Environment Neighbourhoods and Growth,DUNCAN & GROVE LTD,"6,498.70",CAPITAL PS (LEISURE),CONSTRUCTION FEES  - EXTERNAL,5902611616,1000086448
18.12.2023,Children and Adults,CO-OP FUNERALCARE,"6,490.75",APPOINTEESHIPS,OTHER PAYMENTS FOR CLIENTS,2103798274,1000084350
04.12.2023,Children and Adults,SILVER BIRCH CARE LTD,"6,480.60",SEMI-IND LAC 16-17,EXTERNAL AGENCIES AND BODIES,2103793001,1000076525
28.12.2023,Housing,ARJ CONSTRUCTION LTD,"6,476.90",CAPITAL PS (HRA),CONSTRUCTION MAIN CONTRACT,2103801974,3000002232
13.12.2023,Environment Neighbourhoods and Growth,GOLDSTONE ESTATES LTD,"6,469.60",UKRAINIAN REFUGEES,ACCOMMODATION CHARGES,5902612927,1000076548
19.12.2023,Environment Neighbourhoods and Growth,FABRIKAT (NOTTINGHAM) LTD,"6,466.46",PUBLIC LIGHTING,MATERIALS,5902613820,1036223
24.12.2023,Governance and Assurance,KENT COUNTY COUNCIL - LASER,"6,464.95",QUEENS ROAD 2 (BLOCK J),ELECTRICITY,5902613833,1000012926
18.12.2023,Children and Adults,TV EDWARDS LLP,"6,464.04",AAD TEAM,LEGAL FEES & COURT COSTS,5902613547,1000083115
04.12.2023,Environment Neighbourhoods and Growth,COIN STREET CENTRE TRUST,"6,462.50",GRANTS COMMISSIONING,GRANTS,5902611165,1000046703
08.12.2023,Housing,PEABODY TRUST,"6,459.20",CAPITAL PS (HOUSING GF),CAPITAL GRANTS,5902612070,1000051027
20.12.2023,Housing,AWH LEGAL LTD,"6,458.33",DISREPAIR,PAYMENTS FOR LEGAL SERVICES,2103801607,1000082134
18.12.2023,Children and Adults,OPTIMA CARE (SHINE) LONDON LTD,"6,453.84",LD LTS 18-64,SUPPORTED LIVING,2103800013,1000079614
04.12.2023,Environment Neighbourhoods and Growth,BIBLIOTHECA LTD,"6,449.20",STOCK SERVICES,STATIONERY,5902610914,1000069536
04.12.2023,Housing,KENT COUNTY COUNCIL - LASER,"6,448.44",HEATING ACCOUNT,ELECTRICITY,5902611133,1000012926
18.12.2023,Children and Adults,KEMPTON CARE AND SUPPORT SERVICES LTD,"6,448.00",LD LTS 18-64,SUPPORTED LIVING,2103799466,1000087491
18.12.2023,Children and Adults,OATLEIGH CARE LTD,"6,442.86",PHY LTS 65+,RESIDENTIAL CARE,2103800156,1000081452
19.12.2023,Environment Neighbourhoods and Growth,CABLE TEST LTD,"6,430.09",PUBLIC LIGHTING,OTHER CONTRACTORS,5902613938,1000079183
07.12.2023,Children and Adults,CHOICE FOSTERING LTD,"6,428.70",FRIENDS & FAMILY FOSTERING,EXTERNAL AGENCIES AND BODIES,2103794204,1000089265
18.12.2023,Children and Adults,KEEVA CARE LIMITED,"6,428.60",LD LTS 18-64,SUPPORTED LIVING,2103799145,1000086100
21.12.2023,Children and Adults,THE COMPLETE WORKS INDEPENDENT SCHOOL,"6,422.79",ALTERNATIVE PROVISION,EXTERNAL AGENCIES AND BODIES,5902614472,1000033256
27.12.2023,Children and Adults,FAMILY WORKS FOSTERING LTD,"6,421.65",FRIENDS & FAMILY FOSTERING,EXTERNAL AGENCIES AND BODIES,2103803765,1000082529
18.12.2023,Children and Adults,BRANDON TRUST,"6,417.64",LD LTS 18-64,SUPPORTED LIVING,2103799418,1000042417
18.12.2023,Children and Adults,THE MEATH,"6,414.28",LD LTS 18-64,RESIDENTIAL CARE,2103800047,1000056796
22.12.2023,Housing,HARROW GREEN LTD,"6,405.80",RESIDENT SERVICES BUSINESS SUPPORT,REMOVAL EXPENSES,5902614402,1000076673
22.12.2023,Children and Adults,AVOCET SOCIAL CARE LTD,"6,400.00",FOSTERING TEAM,PROFESSIONAL FEES,5902614673,1000071940
18.12.2023,Children and Adults,BRANDON TRUST,"6,395.28",LD LTS 18-64,SUPPORTED LIVING,2103800153,1000042417
04.12.2023,Children and Adults,LIKA FAMILY FOSTERING,"6,394.29",FRIENDS & FAMILY FOSTERING,EXTERNAL AGENCIES AND BODIES,2103793028,1000080099
18.12.2023,Environment Neighbourhoods and Growth,BRONZEWOOD CONSTRUCTION LTD,"6,390.00",GRANGE DOORS,OTHER CONTRACTORS,2103798711,3000002238
18.12.2023,Children and Adults,PEARTREE CARE CENTRE (EXCELCARE),"6,384.00",MEM LTS 65+,OTHER PAYMENTS FOR CLIENTS,2103799154,1000048698
01.12.2023,Governance and Assurance,TABRIS LTD,"6,384.00",ILM COSTS,TRAINING,5902610491,1000080027
12.12.2023,Governance and Assurance,EXCEL EXECUTIVE LTD,"6,371.52",REPAIR AND MAINTENANCE SERVICES,CAB FARES,5902612713,1000080424
18.12.2023,Housing,VIBRANT ENERGY MATTERS LTD,"6,369.40",TA ESTATE VOIDS,MINOR VOIDS,5902613693,1000068154
18.12.2023,Children and Adults,BRANDON TRUST,"6,369.36",LD LTS 18-64,SUPPORTED LIVING,2103799888,1000042417
18.12.2023,Children and Adults,BRANDON TRUST,"6,369.36",LD LTS 18-64,SUPPORTED LIVING,2103800083,1000042417
11.12.2023,Environment Neighbourhoods and Growth,INFINITY NETWORKS LTD,"6,364.00",CAPITAL PS (REGEN),CONSTRUCTION MAIN CONTRACT,5902612323,1000035571
18.12.2023,Children and Adults,ACHIEVE TOGETHER SERVICES LIMITED,"6,363.60",MEM LTS 18-64,SUPPORTED LIVING,2103800149,1000089975
15.12.2023,Housing,OLIVER LANDON LTD,"6,360.00",NIGHTLY TA (NSC),EXTERNAL AGENCIES AND BODIES,5902613400,1000082788
13.12.2023,Children and Adults,KINTORE WAY CHILDRENS CENTRE,"6,353.00",TEACHERS PAY GRANT,EARLY YEARS - 3 AND 4 YEAR OLDS,2103795989,5001000047
27.12.2023,Children and Adults,INTEGRATED SERVICES PROGRAMME,"6,326.21",FRIENDS & FAMILY FOSTERING,EXTERNAL AGENCIES AND BODIES,2103803741,1642068
27.12.2023,Children and Adults,INTEGRATED SERVICES PROGRAMME,"6,326.21",FRIENDS & FAMILY FOSTERING,EXTERNAL AGENCIES AND BODIES,2103803744,1642068
27.12.2023,Children and Adults,INTEGRATED SERVICES PROGRAMME,"6,326.21",FRIENDS & FAMILY FOSTERING,EXTERNAL AGENCIES AND BODIES,2103803745,1642068
27.12.2023,Children and Adults,BUTTERFLY LANE NURSERY LTD,"6,320.93",NURSERY ED GRANT 3 AND 4 YR OLDS,GRANTS,2103801991,1000080549
18.12.2023,Children and Adults,BRANDON TRUST,"6,309.00",LD LTS 18-64,SUPPORTED LIVING,2103799610,1000042417
